Workbook

Sheet Sheet1
C1: TAGS | F1: NES | I1: NES_p-valueFiltered | L1: p-value | O1: q-value
A2: NAME | B2: SIZE | C2: low_vs_wt-tags | D2: high_vs_wt-tags | E2: 12_high_tag | F2: low_vs_wt-nes | G2: high_vs_wt-nes | H2: Column3 | I2: low_vs_wt-f | J2: high_vs_wt-f | K2: Column4 | L2: low_vs_wt-p | M2: high_vs_wt-p | N2: Column5 | O2: low_vs_wt-q | P2: high_vs_wt-q | Q2: Column6
A3: 1.1.1.1 PS.LIGHTREACTION.PHOTOSYSTEM II.LHC-II | B3: 34 | C3: 0.24 | D3: -1 | E3: -0.94 | F3: 1.1364778 | G3: -2.8507993 | H3: -2.8361762 | I3: 0 | J3: -2.8507993 | K3: -2.8361762 | L3: 0.28455284 | M3: 0 | N3: 0 | O3: 0.6672353 | P3: 0 | Q3: 0
A4: 1.1.1.2 PS.LIGHTREACTION.PHOTOSYSTEM II.PSII POLYPEPTIDE SUBUNITS | B4: 59 | C4: -0.66 | D4: -0.97 | E4: -0.87 | F4: -1.0902085 | G4: -3.0182064 | H4: -3.0314417 | I4: 0 | J4: -3.0182064 | K4: -3.0314417 | L4: 0.27331188 | M4: 0 | N4: 0 | O4: 0.48474905 | P4: 0 | Q4: 0
A5: 1.1.2.1 PS.LIGHTREACTION.PHOTOSYSTEM I.LHC-I | B5: 28 | C5: 1 | D5: -1 | E5: -1 | F5: 1.0152767 | G5: -2.6286025 | H5: -2.781654 | I5: 0 | J5: -2.6286025 | K5: -2.781654 | L5: 0.44855306 | M5: 0 | N5: 0 | O5: 0.79015464 | P5: 0 | Q5: 0
A6: 1.1.2.2 PS.LIGHTREACTION.PHOTOSYSTEM I.PSI POLYPEPTIDE SUBUNITS | B6: 35 | C6: 0.97 | D6: -0.97 | E6: -0.97 | F6: 0.901356 | G6: -2.887299 | H6: -2.9446847 | I6: 0 | J6: -2.887299 | K6: -2.9446847 | L6: 0.60120845 | M6: 0 | N6: 0 | O6: 0.8645604 | P6: 0 | Q6: 0
A7: 1.2.6 PS.PHOTORESPIRATION.HYDROXYPYRUVATE REDUCTASE | B7: 15 | E7: -0.07 | H7: -0.7921222 | K7: 0 | N7: 0.7402299 | Q7: 0.93289673
A8: 1.3.6 PS.CALVIN CYCLE.ALDOLASE | B8: 17 | C8: -0.59 | D8: -0.53 | E8: -0.45 | F8: -0.83079046 | G8: -1.2299635 | H8: -1.6244227 | I8: 0 | J8: 0 | K8: -1.6244227 | L8: 0.7121588 | M8: 0.2004662 | N8: 0.03160271 | O8: 0.889433 | P8: 0.3163074 | Q8: 0.046946567
A9: 1.3.13 PS.CALVIN CYCLE.RUBISCO INTERACTING | B9: 26 | C9: -0.77 | D9: -0.85 | E9: -0.87 | F9: -1.684967 | G9: -2.107853 | H9: -2.141852 | I9: 0 | J9: -2.107853 | K9: -2.141852 | L9: 0.012853471 | M9: 0 | N9: 0 | O9: 0.054769225 | P9: 0.00022599593 | Q9: 0.00025842697
A10: 2.1.2.2 MAJOR CHO METABOLISM.SYNTHESIS.STARCH.STARCH SYNTHASE | B10: 18 | C10: 0.11 | D10: 0.06 | E10: -0.71 | F10: 1.2298695 | G10: 0.8098519 | H10: -1.2822697 | I10: 0 | J10: 0 | K10: 0 | L10: 0.2160804 | M10: 0.7363184 | N10: 0.17872341 | O10: 0.5347292 | P10: 0.89936906 | Q10: 0.26798144
A11: 2.2.2.1.2 MAJOR CHO METABOLISM.DEGRADATION.STARCH.STARCH CLEAVAGE.BETA AMYLASE | B11: 17 | C11: 0.53 | D11: 0.35 | E11: 0.38 | F11: 1.9691802 | G11: 1.4605502 | H11: 1.402282 | I11: 1.9691802 | J11: 0 | K11: 0 | L11: 0 | M11: 0.06486487 | N11: 0.077617325 | O11: 0.0033705386 | P11: 0.115478724 | Q11: 0.16504067
A12: 3.2.3 MINOR CHO METABOLISM.TREHALOSE.POTENTIAL TPS/TPP | B12: 17 | C12: 0.76 | D12: 0.24 | F12: 1.4887282 | G12: 1.324373 | I12: 0 | J12: 0 | L12: 0.041666668 | M12: 0.11544991 | O12: 0.19729362 | P12: 0.21525158
A13: 3.5 MINOR CHO METABOLISM.OTHERS | B13: 56 | C13: -0.18 | D13: 0.2 | E13: 0.2 | F13: -0.79655933 | G13: 1.0183083 | H13: 0.93857473 | I13: 0 | J13: 0 | K13: 0 | L13: 0.85835695 | M13: 0.43613708 | N13: 0.5620915 | O13: 0.9138832 | P13: 0.5897938 | Q13: 0.72666496
A14: 3.6 MINOR CHO METABOLISM.CALLOSE | B14: 18 | C14: 0.28 | D14: 0.28 | E14: 0.31 | F14: 1.5646737 | G14: 1.327037 | H14: 1.1609416 | I14: 0 | J14: 0 | K14: 0 | L14: 0.027914613 | M14: 0.14074074 | N14: 0.2693727 | O14: 0.13615125 | P14: 0.21846093 | Q14: 0.40570214
A15: 4.1.16 GLYCOLYSIS.CYTOSOLIC BRANCH.PHOSPHO-ENOL-PYRUVATE CARBOXYLASE KINASE (PPCK) | B15: 15 | C15: 0.33 | D15: -0.4 | F15: 0.9623768 | G15: -0.7588209 | I15: 0 | J15: 0 | L15: 0.51741296 | M15: 0.7688679 | O15: 0.8305958 | P15: 0.98444074
A16: 8.1.1.1 TCA / ORG TRANSFORMATION.TCA.PYRUVATE DH.E1 | B16: 15 | C16: 0.2 | D16: 0.2 | F16: 0.4015689 | G16: 0.9492146 | I16: 0 | J16: 0 | L16: 0.99488056 | M16: 0.5462185 | O16: 1 | P16: 0.7097009
A17: 9.1.2 MITOCHONDRIAL ELECTRON TRANSPORT / ATP SYNTHESIS.NADH-DH.LOCALISATION NOT CLEAR | B17: 40 | C17: -0.48 | D17: 0.8 | E17: 0.71 | F17: -0.9872653 | G17: 1.238337 | H17: 1.5266078 | I17: 0 | J17: 0 | K17: 0 | L17: 0.48238483 | M17: 0.17077176 | N17: 0.015306123 | O17: 0.610404 | P17: 0.31664386 | Q17: 0.08727661
A18: 9.6 MITOCHONDRIAL ELECTRON TRANSPORT / ATP SYNTHESIS.CYTOCHROME C | B18: 15 | C18: -0.4 | D18: 0.33 | F18: -1.524087 | G18: 0.72855777 | I18: 0 | J18: 0 | L18: 0.030303031 | M18: 0.8472469 | O18: 0.12248383 | P18: 0.98952454
A19: 9.7 MITOCHONDRIAL ELECTRON TRANSPORT / ATP SYNTHESIS.CYTOCHROME C OXIDASE | B19: 18 | C19: -0.17 | D19: 0.11 | F19: -1.0873709 | G19: 1.065157 | I19: 0 | J19: 0 | L19: 0.33050847 | M19: 0.4039146 | O19: 0.4824704 | P19: 0.5296811
A20: 9.9 MITOCHONDRIAL ELECTRON TRANSPORT / ATP SYNTHESIS.F1-ATPASE | B20: 32 | C20: -0.38 | D20: 0.53 | E20: 0.53 | F20: -1.1036316 | G20: 0.6961238 | H20: 0.8566579 | I20: 0 | J20: 0 | K20: 0 | L20: 0.2857143 | M20: 0.88245034 | N20: 0.677643 | O20: 0.48109204 | P20: 1 | Q20: 0.844378
A21: 10.1.6 CELL WALL.PRECURSOR SYNTHESIS.GAE | B21: 19 | C21: -0.42 | D21: -0.53 | F21: -1.6096314 | G21: -1.4864194 | I21: 0 | J21: 0 | L21: 0.018372703 | M21: 0.075 | O21: 0.0821731 | P21: 0.095012404
A22: 10.2 CELL WALL.CELLULOSE SYNTHESIS | B22: 24 | C22: 0.38 | D22: -0.38 | E22: -0.65 | F22: 1.3565224 | G22: -0.78455895 | H22: -2.1408293 | I22: 0 | J22: 0 | K22: -2.1408293 | L22: 0.10714286 | M22: 0.7975309 | N22: 0.0022624435 | O22: 0.36758888 | P22: 1 | Q22: 0.00022971285
A23: 10.2.1 CELL WALL.CELLULOSE SYNTHESIS.CELLULOSE SYNTHASE | B23: 35 | C23: -0.2 | D23: -0.54 | E23: -0.6 | F23: -1.1824983 | G23: -0.8392994 | H23: -1.3009444 | I23: 0 | J23: 0 | K23: 0 | L23: 0.21671018 | M23: 0.74104685 | N23: 0.1199095 | O23: 0.37605637 | P23: 0.9603594 | Q23: 0.2604203
A24: 10.5.1.1 CELL WALL.CELL WALL PROTEINS.AGPS.AGP | B24: 21 | C24: -0.71 | D24: -0.52 | E24: -0.65 | F24: -1.7685975 | G24: -2.1091502 | H24: -2.427318 | I24: -1.7685975 | J24: -2.1091502 | K24: -2.427318 | L24: 0.0026666666 | M24: 0 | N24: 0 | O24: 0.03360934 | P24: 0.00012626263 | Q24: 0
A25: 10.6.1 CELL WALL.DEGRADATION.CELLULASES AND BETA -1,4-GLUCANASES | B25: 23 | C25: -0.35 | D25: -0.57 | E25: -0.69 | F25: -1.3619353 | G25: -1.522566 | H25: -1.600701 | I25: 0 | J25: 0 | K25: 0 | L25: 0.10824742 | M25: 0.043902438 | N25: 0.032941177 | O25: 0.21814331 | P25: 0.0789726 | Q25: 0.055377346
A26: 10.6.2 CELL WALL.DEGRADATION.MANNAN-XYLOSE-ARABINOSE-FUCOSE | B26: 29 | C26: -0.28 | D26: 0.48 | E26: 0.42 | F26: -1.5225264 | G26: 1.045749 | H26: 1.7798741 | I26: 0 | J26: 0 | K26: 1.7798741 | L26: 0.027247956 | M26: 0.40222576 | N26: 0.0036231885 | O26: 0.117802985 | P26: 0.54501826 | Q26: 0.0111758765
A27: 10.6.3 CELL WALL.DEGRADATION.PECTATE LYASES AND POLYGALACTURONASES | B27: 50 | C27: 0.14 | D27: -0.44 | E27: -0.48 | F27: 0.928422 | G27: -1.4744034 | H27: -1.8121061 | I27: 0 | J27: 0 | K27: -1.8121061 | L27: 0.58433735 | M27: 0.04699739 | N27: 0.007792208 | O27: 0.8385235 | P27: 0.1006575 | Q27: 0.010776752
A28: 10.7 CELL WALL.MODIFICATION | B28: 55 | C28: -0.29 | D28: 0.25 | E28: 0.35 | F28: -1.3410159 | G28: 0.9387073 | H28: 1.2079242 | I28: 0 | J28: 0 | K28: 0 | L28: 0.043887146 | M28: 0.5775076 | N28: 0.1952862 | O28: 0.23884887 | P28: 0.7150808 | Q28: 0.33697927
A29: 10.8.1 CELL WALL.PECTIN*ESTERASES.PME | B29: 32 | C29: -0.34 | D29: -0.31 | E29: -0.48 | F29: -1.7483578 | G29: -1.2408009 | H29: -1.6538737 | I29: -1.7483578 | J29: 0 | K29: -1.6538737 | L29: 0.0025906735 | M29: 0.16284987 | N29: 0.0072115385 | O29: 0.034130596 | P29: 0.31136388 | Q29: 0.039842375
A30: 11.1.8 LIPID METABOLISM.FA SYNTHESIS AND FA ELONGATION.ACYL COA LIGASE | B30: 23 | C30: 0.35 | D30: 0.52 | E30: 0.33 | F30: 1.4717549 | G30: 1.6577212 | H30: (at3g21760 : 374.0) Encodes HYR1, a UDP glycosyltransferase (UGT). HYR1 glucosylates hypostatin, an inhibitor of cell expansion in vivo to form a bioactive glucoside.; HYPOSTATIN RESISTANCE 1 (HYR1); FUNCTIONS IN: UDP-glycosyltransferase activity, transferase activity, transferring glycosyl groups; INVOLVED IN: metabolic process; LOCATED IN: cellular_component unknown; EXPRESSED IN: 21 plant structures; EXPRESSED DURING: 13 growth stages; CONTAINS InterPro DOMAIN/s: UDP-glucuronosyl/UDP-glucosyltransferase (InterPro:IPR002213); BEST Arabidopsis thaliana protein match is: UDP-glucosyl transferase 71B6 (TAIR:AT3G21780.1); Has 7489 Blast hits to 7432 proteins in 389 species: Archae - 0; Bacteria - 261; Metazoa - 2177; Fungi - 28; Plants - 4962; Viruses - 0; Other Eukaryotes - 61 (source: NCBI BLink). & (q43641|ufog_solme : 129.0) Anthocyanidin 3-O-glucosyltransferase (EC 2.4.1.115) (Flavonol 3-O-glucosyltransferase) (UDP-glucose flavonoid 3-O-glucosyltransferase) - Solanum melongena (Eggplant) (Aubergine) & (reliability: 712.0) & (original description: no original description);(at3g21760 : 374.0) Encodes HYR1, a UDP glycosyltransferase (UGT). HYR1 glucosylates hypostatin, an inhibitor of cell expansion in vivo to form a bioactive glucoside.; HYPOSTATIN RESISTANCE 1 (HYR1); FUNCTIONS IN: UDP-glycosyltransferase activity, transferase activity, transferring glycosyl groups; INVOLVED IN: metabolic process; LOCATED IN: cellular_component unknown; EXPRESSED IN: 21 plant structures; EXPRESSED DURING: 13 growth stages; CONTAINS InterPro DOMAIN/s: UDP-glucuronosyl/UDP-glucosyltransferase (InterPro:IPR002213); BEST Arabidopsis thaliana protein match is: UDP-glucosyl transferase 71B6 (TAIR:AT3G21780.1); Has 7489 Blast hits to 7432 proteins in 389 species: Archae - 0; Bacteria - 261; Metazoa - 2177; Fungi - 28; Plants - 4962; Viruses - 0; Other Eukaryotes - 61 (source: NCBI BLink). & (q43641|ufog_solme : 129.0) Anthocyanidin 3-O-glucosyltransferase (EC 2.4.1.115) (Flavonol 3-O-glucosyltransferase) (UDP-glucose flavonoid 3-O-glucosyltransferase) - Solanum melongena (Eggplant) (Aubergine) & (reliability: 748.0) & (original description: no original description) | I30: 0 | J30: 1.6577212 | K30: 0 | L30: 0.05116279 | M30: 0.01512605 | N30: 0.040747028 | O30: 0.21625353 | P30: 0.030566161 | Q30: 0.099733494
A31: 11.3 LIPID METABOLISM.PHOSPHOLIPID SYNTHESIS | B31: 18 | C31: 0.44 | D31: -0.39 | E31: -0.67 | F31: 0.7661345 | G31: -1.3483644 | H31: -1.93939 | I31: 0 | J31: 0 | K31: -1.93939 | L31: 0.77242523 | M31: 0.09954751 | N31: 0.0021231424 | O31: 0.99385303 | P31: 0.20199311 | Q31: 0.0030843145
A32: 11.6 LIPID METABOLISM.LIPID TRANSFER PROTEINS ETC | B32: 24 | C32: 0.54 | D32: 0.21 | E32: 0.29 | F32: 1.2928733 | G32: 1.0419194 | H32: 1.0626034 | I32: 0 | J32: 0 | K32: 0 | L32: 0.13256955 | M32: 0.39935064 | N32: 0.41323793 | O32: 0.49613306 | P32: 0.5483075 | Q32: 0.5573035
A33: 11.8 LIPID METABOLISM.EXOTICS(STEROIDS, SQUALENE ETC) | B33: 17 | C33: 0.24 | D33: 0.24 | E33: 0.31 | F33: 1.1569409 | G33: 1.1932127 | H33: 1.4324565 | I33: 0 | J33: 0 | K33: 0 | L33: 0.2682927 | M33: 0.24479167 | N33: 0.07400722 | O33: 0.627242 | P33: 0.36672938 | Q33: 0.14594583
A34: 11.8.1 LIPID METABOLISM.EXOTICS (STEROIDS, SQUALENE ETC).SPHINGOLIPIDS | B34: 47 | C34: -0.36 | D34: -0.26 | E34: -0.22 | F34: -1.2521255 | G34: -1.148579 | H34: -1.1547017 | I34: 0 | J34: 0 | K34: 0 | L34: 0.12721893 | M34: 0.23140496 | N34: 0.23114355 | O34: 0.30937424 | P34: 0.42601204 | Q34: 0.40495747
A35: 11.9.2 LIPID METABOLISM.LIPID DEGRADATION.LIPASES | B35: 25 | C35: -0.12 | D35: 0.56 | E35: -0.35 | F35: -0.9291323 | G35: 1.3562627 | H35: -0.9557693 | I35: 0 | J35: 0 | K35: 0 | L35: 0.53157896 | M35: 0.099159665 | N35: 0.5316742 | O35: 0.71045095 | P35: 0.19719987 | Q35: 0.74108016
A36: 11.9.2.1 LIPID METABOLISM.LIPID DEGRADATION.LIPASES.TRIACYLGLYCEROL LIPASE | B36: 31 | C36: 0.35 | D36: 0.32 | E36: 0.54 | F36: 0.87701243 | G36: 1.9041566 | H36: 1.6619874 | I36: 0 | J36: 1.9041566 | K36: 1.6619874 | L36: 0.64649683 | M36: 0 | N36: 0.017574692 | O36: 0.8830569 | P36: 0.0039137723 | Q36: 0.03094362
A37: 11.9.3 LIPID METABOLISM.LIPID DEGRADATION.LYSOPHOSPHOLIPASES | B37: 15 | E37: 0.53 | H37: 1.4151485 | K37: 0 | N37: 0.097297296 | Q37: 0.1571012
A38: 11.9.3.1 LIPID METABOLISM.LIPID DEGRADATION.LYSOPHOSPHOLIPASES.PHOSPHOLIPASE D | B38: 15 | C38: -0.47 | D38: -0.27 | F38: -1.4410319 | G38: -1.8335947 | I38: 0 | J38: -1.8335947 | L38: 0.07476635 | M38: 0 | O38: 0.17249654 | P38: 0.008614645
A39: 11.9.3.2 LIPID METABOLISM.LIPID DEGRADATION.LYSOPHOSPHOLIPASES.CARBOXYLESTERASE | B39: 22 | C39: -0.45 | D39: 0.5 | E39: 0.37 | F39: -1.4245639 | G39: 1.9607472 | H39: 1.7419404 | I39: 0 | J39: 1.9607472 | K39: 1.7419404 | L39: 0.071611255 | M39: 0 | N39: 0.0034722222 | O39: 0.18365242 | P39: 0.0013607331 | Q39: 0.01572463
A40: 11.9.4.3 LIPID METABOLISM.LIPID DEGRADATION.BETA-OXIDATION.ENOYL COA HYDRATASE | B40: 15 | C40: 0.67 | D40: 0.47 | E40: 0.33 | F40: 0.9717621 | G40: 0.949001 | H40: 0.5834066 | I40: 0 | J40: 0 | K40: 0 | L40: 0.51365185 | M40: 0.5343915 | N40: 0.935305 | O40: 0.8226368 | P40: 0.7039551 | Q40: 1
A41: 11.9.4.5 LIPID METABOLISM.LIPID DEGRADATION.BETA-OXIDATION.ACYL-COA THIOESTERASE | B41: 17 | C41: 0.47 | D41: 0.47 | E41: 0.24 | F41: 0.72978806 | G41: 1.7926122 | H41: 1.5497282 | I41: 0 | J41: 1.7926122 | K41: 0 | L41: 0.8397976 | M41: 0 | N41: 0.02909091 | O41: 1 | P41: 0.008457462 | Q41: 0.07418775
A42: 13.1.3.4 AMINO ACID METABOLISM.SYNTHESIS.ASPARTATE FAMILY.METHIONINE | B42: 27 | C42: -0.67 | D42: -0.56 | E42: -0.74 | F42: -1.5815538 | G42: -0.97049487 | H42: -1.8254398 | I42: 0 | J42: 0 | K42: -1.8254398 | L42: 0.01861702 | M42: 0.47757256 | N42: 0.0021929825 | O42: 0.09335788 | P42: 0.7730391 | Q42: 0.009900957
A43: 13.2.6.3 AMINO ACID METABOLISM.DEGRADATION.AROMATIC AA.TRYPTOPHAN | B43: 19 | C43: 0.53 | D43: 0.74 | E43: 0.5 | F43: 1.0136364 | G43: 1.5082002 | H43: 1.4443891 | I43: 0 | J43: 0 | K43: 0 | L43: 0.44151565 | M43: 0.03407155 | N43: 0.06521739 | O43: 0.78581965 | P43: 0.08877816 | Q43: 0.13761702
A44: 15.2 METAL HANDLING.BINDING, CHELATION AND STORAGE | B44: 49 | C44: -0.29 | D44: -0.27 | E44: 0.04 | F44: -1.0565643 | G44: -0.6691419 | H44: 0.84598845 | I44: 0 | J44: 0 | K44: 0 | L44: 0.34935898 | M44: 0.975 | N44: 0.74319726 | O44: 0.5147505 | P44: 1 | Q44: 0.8496802
A45: 16.2 SECONDARY METABOLISM.PHENYLPROPANOIDS | B45: 25 | C45: 0.52 | D45: 0.48 | E45: 0.55 | F45: 1.1985306 | G45: 1.4589927 | H45: 1.7110898 | I45: 0 | J45: 0 | K45: 1.7110898 | L45: 0.24232633 | M45: 0.07450331 | N45: 0.011029412 | O45: 0.5496713 | P45: 0.11452106 | Q45: 0.019999979
A46: 16.7 SECONDARY METABOLISM.WAX | B46: 20 | C46: 0.45 | D46: -0.45 | E46: -0.3 | F46: 0.8351795 | G46: -1.20246 | H46: -1.2536027 | I46: 0 | J46: 0 | K46: 0 | L46: 0.6839465 | M46: 0.22222222 | N46: 0.18018018 | O46: 0.92867184 | P46: 0.35411313 | Q46: 0.29751933
A47: 16.8.3 SECONDARY METABOLISM.FLAVONOIDS.DIHYDROFLAVONOLS | B47: 23 | C47: 0.26 | D47: 0.3 | E47: 0.33 | F47: 1.0261018 | G47: 1.6921691 | H47: 1.375635 | I47: 0 | J47: 1.6921691 | K47: 0 | L47: 0.43365696 | M47: 0.011551155 | N47: 0.12 | O47: 0.7964516 | P47: 0.023262737 | Q47: 0.18139288
A48: 16.8.3.3 SECONDARY METABOLISM.FLAVONOIDS.DIHYDROFLAVONOLS.FLAVONOID 3-MONOOXYGENASE | B48: 15 | E48: 0.47 | H48: 1.8350034 | K48: 1.8350034 | N48: 0.0017953322 | Q48: 0.0067470116
A49: 16.8.4 SECONDARY METABOLISM.FLAVONOIDS.FLAVONOLS | B49: 21 | C49: 0.48 | D49: 0.57 | F49: 1.5840149 | G49: 1.7016641 | I49: 0 | J49: 1.7016641 | L49: 0.01141925 | M49: 0.0050847456 | O49: 0.120731026 | P49: 0.021111615
A50: 17.1.2 HORMONE METABOLISM.ABSCISIC ACID.SIGNAL TRANSDUCTION | B50: 25 | C50: 0.48 | D50: 0.72 | E50: 0.55 | F50: 1.8800068 | G50: 2.1878896 | H50: 1.9336845 | I50: 1.8800068 | J50: 2.1878896 | K50: 1.9336845 | L50: 0.0016129032 | M50: 0 | N50: 0 | O50: 0.015199075 | P50: 0 | Q50: 0.002558539
A51: 17.1.3 HORMONE METABOLISM.ABSCISIC ACID.INDUCED-REGULATED-RESPONSIVE-ACTIVATED | B51: 21 | C51: 0.48 | D51: 0.67 | E51: 0.77 | F51: 1.8437324 | G51: 1.9730338 | H51: 2.0659008 | I51: 1.8437324 | J51: 1.9730338 | K51: 2.0659008 | L51: 0.0016722408 | M51: 0.0017605633 | N51: 0 | O51: 0.018073404 | P51: 0.0013036929 | Q51: 0.00049267366
A52: 17.2.2 HORMONE METABOLISM.AUXIN.SIGNAL TRANSDUCTION | B52: 45 | C52: 0.2 | D52: 1 | E52: 0.05 | F52: 1.4137015 | G52: 0.45088112 | H52: 0.8670803 | I52: 0 | J52: 0 | K52: 0 | L52: 0.06278027 | M52: 1 | N52: 0.6672535 | O52: 0.2933349 | P52: 1 | Q52: 0.8385418
A53: 17.2.3 HORMONE METABOLISM.AUXIN.INDUCED-REGULATED-RESPONSIVE-ACTIVATED | B53: 89 | C53: 0.42 | D53: 0.21 | E53: 0.22 | F53: 1.2703223 | G53: 0.9456556 | H53: 1.0255181 | I53: 0 | J53: 0 | K53: 0 | L53: 0.11141678 | M53: 0.579795 | N53: 0.41898528 | O53: 0.4980471 | P53: 0.70570046 | Q53: 0.59527534
A54: 17.3.2.99 HORMONE METABOLISM.BRASSINOSTEROID.SIGNAL TRANSDUCTION.OTHER | B54: 15 | C54: 0.27 | D54: 0.6 | F54: 1.0755394 | G54: 0.6169571 | I54: 0 | J54: 0 | L54: 0.38449112 | M54: 0.91470057 | O54: 0.73849356 | P54: 1
A55: 17.4.1 HORMONE METABOLISM.CYTOKININ.SYNTHESIS-DEGRADATION | B55: 15 | C55: 0.47 | D55: -0.13 | F55: 1.6203821 | G55: -0.8537954 | I55: 0 | J55: 0 | L55: 0.021594685 | M55: 0.6591928 | O55: 0.112275705 | P55: 0.9783185
A56: 17.5.1 HORMONE METABOLISM.ETHYLENE.SYNTHESIS-DEGRADATION | B56: 25 | C56: 0.36 | D56: 0.12 | E56: 0.22 | F56: 1.6155381 | G56: 1.0479326 | H56: 0.89007694 | I56: 0 | J56: 0 | K56: 0 | L56: 0.017377567 | M56: 0.38380283 | N56: 0.636528 | O56: 0.11059922 | P56: 0.54521894 | Q56: 0.8120117
A57: 17.5.2 HORMONE METABOLISM.ETHYLENE.SIGNAL TRANSDUCTION | B57: 43 | C57: -0.19 | D57: 0.14 | E57: 0.42 | F57: -0.99271244 | G57: 1.2027576 | H57: 1.8551253 | I57: 0 | J57: 0 | K57: 1.8551253 | L57: 0.4707521 | M57: 0.19439869 | N57: 0 | O57: 0.60668164 | P57: 0.358481 | Q57: 0.005270674
A58: 17.5.3 HORMONE METABOLISM.ETHYLENE.INDUCED-REGULATED-RESPONSIVE-ACTIVATED | B58: 20 | C58: 0.3 | D58: 0.5 | E58: 0.38 | F58: 1.2353933 | G58: 1.3052583 | H58: 1.3811934 | I58: 0 | J58: 0 | K58: 0 | L58: 0.19830509 | M58: 0.13490725 | N58: 0.108156025 | O58: 0.53022087 | P58: 0.23736301 | Q58: 0.18493788
A59: 17.8.1 HORMONE METABOLISM.SALICYLIC ACID.SYNTHESIS-DEGRADATION | B59: 20 | C59: 0.4 | D59: 0.35 | E59: -0.56 | F59: 0.76948476 | G59: 1.1739544 | H59: -1.0630779 | I59: 0 | J59: 0 | K59: 0 | L59: 0.7689769 | M59: 0.25266904 | N59: 0.3738938 | O59: 0.99607325 | P59: 0.3798607 | Q59: 0.5535723
A60: 18 CO-FACTOR AND VITAMINE METABOLISM | B60: 27 | C60: 0.26 | D60: -0.22 | E60: -0.3 | F60: 0.91088396 | G60: -0.8471292 | H60: -1.379909 | I60: 0 | J60: 0 | K60: 0 | L60: 0.5804878 | M60: 0.69417477 | N60: 0.08788598 | O60: 0.8575345 | P60: 0.96814525 | Q60: 0.20185418
A61: 18.7 CO-FACTOR AND VITAMINE METABOLISM.IRON-SULPHUR CLUSTERS | B61: 15 | C61: 0.13 | D61: 0.8 | F61: 0.709609 | G61: 1.4279288 | I61: 0 | J61: 0 | L61: 0.8367347 | M61: 0.06 | O61: 1 | P61: 0.13110875
A62: 20.1 STRESS.BIOTIC | B62: 184 | C62: 0.22 | D62: 0.4 | E62: 0.41 | F62: 1.3588523 | G62: 1.979799 | H62: 2.0292907 | I62: 0 | J62: 1.979799 | K62: 2.0292907 | L62: 0.022222223 | M62: 0 | N62: 0 | O62: 0.37310174 | P62: 0.000953317 | Q62: 0.001187488
A63: 20.1.7 STRESS.BIOTIC.PR-PROTEINS | B63: 95 | C63: -0.29 | D63: 0.23 | E63: 0.29 | F63: -1.3385457 | G63: 1.3307017 | H63: 1.3548883 | I63: 0 | J63: 0 | K63: 0 | L63: 0.03533569 | M63: 0.06714286 | N63: 0.057660624 | O63: 0.22151326 | P63: 0.21685995 | Q63: 0.19567128
A64: 20.2 STRESS.ABIOTIC | B64: 41 | C64: 0.29 | D64: 0.27 | E64: 0.19 | F64: 1.1066942 | G64: 1.6410445 | H64: 1.1179088 | I64: 0 | J64: 1.6410445 | K64: 0 | L64: 0.33023256 | M64: 0.007949126 | N64: 0.29381442 | O64: 0.6955455 | P64: 0.03375672 | Q64: 0.4681945
A65: 20.2.1 STRESS.ABIOTIC.HEAT | B65: 276 | C65: 0.2 | D65: 0.21 | E65: 0.23 | F65: 0.9359081 | G65: 1.088965 | H65: 1.0042819 | I65: 0 | J65: 0 | K65: 0 | L65: 0.63431954 | M65: 0.25997427 | N65: 0.46164772 | O65: 0.8351924 | P65: 0.49573585 | Q65: 0.6370333
A66: 20.2.2 STRESS.ABIOTIC.COLD | B66: 26 | C66: 0.42 | D66: 0.65 | E66: 0.25 | F66: 0.8582073 | G66: 1.6526372 | H66: 1.7346632 | I66: 0 | J66: 1.6526372 | K66: 1.7346632 | L66: 0.6896 | M66: 0.008503402 | N66: 0.005119454 | O66: 0.9098857 | P66: 0.030845523 | Q66: 0.016516844
A67: 20.2.3 STRESS.ABIOTIC.DROUGHT/SALT | B67: 97 | C67: 0.12 | D67: 0.13 | E67: -0.27 | F67: 0.7918473 | G67: 0.7086729 | H67: -1.0311007 | I67: 0 | J67: 0 | K67: 0 | L67: 0.843962 | M67: 0.9719764 | N67: 0.37096775 | O67: 0.9811999 | P67: 0.99603957 | Q67: 0.6111304
A68: 20.2.4 STRESS.ABIOTIC.TOUCH/WOUNDING | B68: 16 | C68: -0.25 | D68: 0.56 | E68: 0.56 | F68: -1.3391894 | G68: 1.9003338 | H68: 1.6725432 | I68: 0 | J68: 1.9003338 | K68: 1.6725432 | L68: 0.12590799 | M68: 0 | N68: 0.010544815 | O68: 0.22720452 | P68: 0.0039853677 | Q68: 0.028866729
A69: 20.2.5 STRESS.ABIOTIC.LIGHT | B69: 16 | C69: 0.5 | D69: -0.25 | E69: -0.25 | F69: 1.0286101 | G69: -1.1668798 | H69: -1.3698219 | I69: 0 | J69: 0 | K69: 0 | L69: 0.4406504 | M69: 0.24705882 | N69: 0.11479029 | O69: 0.80862796 | P69: 0.41256288 | Q69: 0.20216888
A70: 20.2.99 STRESS.ABIOTIC.UNSPECIFIED | B70: 52 | C70: 0.4 | D70: 0.31 | E70: 0.25 | F70: 1.2250364 | G70: 1.1985489 | H70: 1.1277876 | I70: 0 | J70: 0 | K70: 0 | L70: 0.1506647 | M70: 0.19193548 | N70: 0.26003212 | O70: 0.50859416 | P70: 0.3618651 | Q70: 0.45951608
A71: 21.1 REDOX.THIOREDOXIN | B71: 83 | C71: 0.11 | D71: -0.45 | E71: -0.38 | F71: 1.0057106 | G71: -0.84026265 | H71: -0.9648604 | I71: 0 | J71: 0 | K71: 0 | L71: 0.429972 | M71: 0.8006042 | N71: 0.5013477 | O71: 0.7990352 | P71: 0.9706997 | Q71: 0.762728
A72: 21.1.1 REDOX.THIOREDOXIN.PDIL | B72: 20 | C72: -0.55 | D72: 0.65 | E72: 0.12 | F72: -0.9997978 | G72: 1.2953393 | H72: 0.73596656 | I72: 0 | J72: 0 | K72: 0 | L72: 0.45618558 | M72: 0.15265866 | N72: 0.84132844 | O72: 0.617691 | P72: 0.24785498 | Q72: 0.96494985
A73: 21.2 REDOX.ASCORBATE AND GLUTATHIONE | B73: 50 | C73: 0.22 | D73: 0.56 | E73: 0.38 | F73: 1.1859787 | G73: 1.4020013 | H73: 1.340287 | I73: 0 | J73: 0 | K73: 0 | L73: 0.20833333 | M73: 0.04 | N73: 0.08250825 | O73: 0.5754495 | P73: 0.14876106 | Q73: 0.20993009
A74: 21.2.1 REDOX.ASCORBATE AND GLUTATHIONE.ASCORBATE | B74: 27 | C74: -0.41 | D74: -0.11 | E74: -0.11 | F74: -0.9843917 | G74: -0.77762216 | H74: -0.9519531 | I74: 0 | J74: 0 | K74: 0 | L74: 0.45478722 | M74: 0.8010336 | N74: 0.53674835 | O74: 0.6080333 | P74: 1 | Q74: 0.72974956
A75: 21.2.2 REDOX.ASCORBATE AND GLUTATHIONE.GLUTATHIONE | B75: 23 | C75: 0.26 | D75: -0.43 | E75: 0.39 | F75: 1.0374261 | G75: -1.0533172 | H75: 1.0533491 | I75: 0 | J75: 0 | K75: 0 | L75: 0.41666666 | M75: 0.37100738 | N75: 0.378119 | O75: 0.8023178 | P75: 0.59147704 | Q75: 0.57235605
A76: 21.4 REDOX.GLUTAREDOXINS | B76: 29 | C76: 0.41 | D76: -0.31 | E76: 0.35 | F76: 0.9358727 | G76: -1.338528 | H76: 0.88451236 | I76: 0 | J76: 0 | K76: 0 | L76: 0.5575658 | M76: 0.08040201 | N76: 0.6268116 | O76: 0.8276724 | P76: 0.20327757 | Q76: 0.8092133
A77: 21.6 REDOX.DISMUTASES AND CATALASES | B77: 19 | C77: 0.16 | D77: 0.11 | E77: -0.45 | F77: 0.98634356 | G77: 0.777642 | H77: -0.90438825 | I77: 0 | J77: 0 | K77: 0 | L77: 0.47666666 | M77: 0.78061223 | N77: 0.58690745 | O77: 0.8260712 | P77: 0.9374553 | Q77: 0.81583554
A78: 23.2 NUCLEOTIDE METABOLISM.DEGRADATION | B78: 37 | C78: 0.19 | D78: 0.16 | E78: 0.15 | F78: 0.7981253 | G78: 1.0589076 | H78: 0.9275112 | I78: 0 | J78: 0 | K78: 0 | L78: 0.79242426 | M78: 0.3836276 | N78: 0.55932206 | O78: 0.97705466 | P78: 0.52702695 | Q78: 0.7446529
A79: 23.3.3 NUCLEOTIDE METABOLISM.SALVAGE.NUDIX HYDROLASES | B79: 24 | C79: 0.42 | D79: 0.46 | E79: 0.36 | F79: 1.6083646 | G79: 1.1032939 | H79: 1.2963519 | I79: 0 | J79: 0 | K79: 0 | L79: 0.023333333 | M79: 0.319933 | N79: 0.12943262 | O79: 0.09991737 | P79: 0.48135132 | Q79: 0.2431307
A80: 23.4.99 NUCLEOTIDE METABOLISM.PHOSPHOTRANSFER AND PYROPHOSPHATASES.MISC | B80: 15 | C80: -0.53 | D80: 0.47 | F80: -0.71527445 | G80: 0.86309505 | I80: 0 | J80: 0 | L80: 0.8517647 | M80: 0.64171124 | O80: 0.9730614 | P80: 0.8456821
A81: 24 BIODEGRADATION OF XENOBIOTICS | B81: 18 | C81: -0.11 | D81: 0.5 | F81: -1.2232956 | G81: 1.8502047 | I81: 0 | J81: 1.8502047 | L81: 0.22959183 | M81: 0.0016051364 | O81: 0.32688004 | P81: 0.0070195952
A82: 25.1 C1-METABOLISM.GLYCINE HYDROXYMETHYLTRANSFERASE | B82: 15 | C82: -0.6 | D82: -0.13 | F82: -1.3852779 | G82: -0.6925088 | I82: 0 | J82: 0 | L82: 0.089655176 | M82: 0.8920705 | O82: 0.2031589 | P82: 1
A83: 26.1 MISC.MISC2 | B83: 44 | C83: 0.43 | D83: 0.34 | E83: 0.46 | F83: 1.3935016 | G83: 1.1869211 | H83: 1.0888458 | I83: 0 | J83: 0 | K83: 0 | L83: 0.07378336 | M83: 0.20607029 | N83: 0.340388 | O83: 0.32530797 | P83: 0.37382743 | Q83: 0.5112691
A84: 26.2 MISC.UDP GLUCOSYL AND GLUCORONYL TRANSFERASES | B84: 193 | C84: 0.22 | D84: 0.24 | E84: 0.23 | F84: 0.8881044 | G84: 1.4343337 | H84: 1.1721234 | I84: 0 | J84: 0 | K84: 0 | L84: 0.71321696 | M84: 0.006684492 | N84: 0.16998468 | O84: 0.88020813 | P84: 0.1298232 | Q84: 0.39113203
A85: 26.3 MISC.GLUCO-, GALACTO- AND MANNOSIDASES | B85: 46 | C85: 0.2 | D85: 0.2 | E85: 0.14 | F85: 1.0861284 | G85: 0.92487144 | H85: 0.8989255 | I85: 0 | J85: 0 | K85: 0 | L85: 0.33038348 | M85: 0.5874587 | N85: 0.6137566 | O85: 0.7175004 | P85: 0.73949564 | Q85: 0.8006728
A86: 26.3.2 MISC.GLUCO-, GALACTO- AND MANNOSIDASES.BETA-GALACTOSIDASE | B86: 21 | C86: 0.57 | D86: -0.52 | E86: 0.53 | F86: 1.6853178 | G86: -1.6574149 | H86: 0.59046483 | I86: 0 | J86: -1.6574149 | K86: 0 | L86: 0.009803922 | M86: 0.004608295 | N86: 0.93808633 | O86: 0.07242633 | P86: 0.033553172 | Q86: 1
A87: 26.4 MISC.BETA 1,3 GLUCAN HYDROLASES | B87: 20 | C87: -0.5 | D87: 0.5 | E87: 0.39 | F87: -1.2257668 | G87: 0.8914719 | H87: 1.271936 | I87: 0 | J87: 0 | K87: 0 | L87: 0.18639798 | M87: 0.6156406 | N87: 0.15828678 | O87: 0.33803862 | P87: 0.7994946 | Q87: 0.2702007
A88: 26.4.1 MISC.BETA 1,3 GLUCAN HYDROLASES.GLUCAN ENDO-1,3-BETA-GLUCOSIDASE | B88: 40 | C88: -0.45 | D88: 0.25 | E88: -0.3 | F88: -1.7658294 | G88: 1.2736796 | H88: -0.8717071 | I88: -1.7658294 | J88: 0 | K88: 0 | L88: 0 | M88: 0.14536741 | N88: 0.6830467 | O88: 0.031219007 | P88: 0.27219144 | Q88: 0.8709009
A89: 26.5 MISC.ACYL TRANSFERASES | B89: 18 | C89: 0.33 | D89: -0.28 | F89: 0.78033745 | G89: -0.76698875 | I89: 0 | J89: 0 | L89: 0.7596639 | M89: 0.82045454 | O89: 0.9935399 | P89: 0.9959362
A90: 26.6 MISC.O-METHYL TRANSFERASES | B90: 22 | C90: -0.36 | D90: -0.41 | E90: -0.47 | F90: -0.806249 | G90: -1.1626151 | H90: -1.0373923 | I90: 0 | J90: 0 | K90: 0 | L90: 0.7897436 | M90: 0.25060242 | N90: 0.41136363 | O90: 0.9207225 | P90: 0.41382748 | Q90: 0.6055738
A91: 26.7 MISC.OXIDASES - COPPER, FLAVONE ETC | B91: 104 | C91: 0.17 | D91: 0.38 | E91: 0.36 | F91: 0.9628587 | G91: 1.5538157 | H91: 1.3221668 | I91: 0 | J91: 0 | K91: 0 | L91: 0.5344828 | M91: 0.0029239766 | N91: 0.06584992 | O91: 0.8376481 | P91: 0.06505935 | Q91: 0.23053499
A92: 26.8 MISC.NITRILASES, *NITRILE LYASES, BERBERINE BRIDGE ENZYMES, RETICULINE OXIDASES, TROPONINE REDUCTASES | B92: 43 | C92: 0.35 | D92: 0.26 | E92: -0.14 | F92: 1.1185639 | G92: 1.1616127 | H92: -0.85832494 | I92: 0 | J92: 0 | K92: 0 | L92: 0.28661418 | M92: 0.24574961 | N92: 0.70454544 | O92: 0.6914114 | P92: 0.388979 | Q92: 0.8762407
A93: 26.9 MISC.GLUTATHIONE S TRANSFERASES | B93: 36 | C93: 0.5 | D93: 0.5 | E93: 0.47 | F93: 1.6878773 | G93: 2.2536116 | H93: 1.9930892 | I93: 0 | J93: 2.2536116 | K93: 1.9930892 | L93: 0.0031746032 | M93: 0 | N93: 0 | O93: 0.07695161 | P93: 0 | Q93: 0.000985924
A94: 26.10 MISC.CYTOCHROME P450 | B94: 102 | C94: 0.51 | D94: 0.44 | E94: 0.38 | F94: 2.0621443 | G94: 2.1146362 | H94: 1.9281881 | I94: 2.0621443 | J94: 2.1146362 | K94: 1.9281881 | L94: 0 | M94: 0 | N94: 0 | O94: 0.0019128252 | P94: 0.00022155688 | Q94: 0.0025096629
A95: 26.12 MISC.PEROXIDASES | B95: 29 | C95: 0.34 | D95: 0.45 | E95: 0.4 | F95: 1.6090333 | G95: 1.3510675 | H95: 1.8991888 | I95: 0 | J95: 0 | K95: 1.8991888 | L95: 0.007987221 | M95: 0.09283388 | N95: 0 | O95: 0.10497538 | P95: 0.20055906 | Q95: 0.003322534
A96: 26.13 MISC.ACID AND OTHER PHOSPHATASES | B96: 81 | C96: 0.43 | D96: 0.4 | E96: 0.4 | F96: 1.2421838 | G96: 1.5870563 | H96: 1.5830393 | I96: 0 | J96: 0 | K96: 0 | L96: 0.1308017 | M96: 0.004464286 | N96: 0.017361112 | O96: 0.5325891 | P96: 0.052368123 | Q96: 0.060346805
A97: 26.16 MISC.MYROSINASES-LECTIN-JACALIN | B97: 18 | C97: 0.28 | D97: -0.22 | E97: 0.4 | F97: 0.62759477 | G97: -1.1428254 | H97: 1.1607888 | I97: 0 | J97: 0 | K97: 0 | L97: 0.94590163 | M97: 0.25714287 | N97: 0.27915195 | O97: 1 | P97: 0.43006957 | Q97: 0.40080255
A98: 26.19 MISC.PLASTOCYANIN-LIKE | B98: 22 | C98: -0.27 | D98: 0.41 | E98: 0.5 | F98: -1.0974647 | G98: 1.5253214 | H98: 1.725434 | I98: 0 | J98: 0 | K98: 1.725434 | L98: 0.34063262 | M98: 0.032312926 | N98: 0.005328597 | O98: 0.4857704 | P98: 0.07929029 | Q98: 0.017801441
A99: 26.21 MISC.PROTEASE INHIBITOR/SEED STORAGE/LIPID TRANSFER PROTEIN (LTP) FAMILY PROTEIN | B99: 44 | C99: -0.27 | D99: -0.45 | E99: -0.37 | F99: -0.9364026 | G99: -1.9183649 | H99: -1.8527651 | I99: 0 | J99: -1.9183649 | K99: -1.8527651 | L99: 0.57522124 | M99: 0 | N99: 0 | O99: 0.7032725 | P99: 0.0044327173 | Q99: 0.008041033
A100: 26.22 MISC.SHORT CHAIN DEHYDROGENASE/REDUCTASE (SDR) | B100: 34 | C100: 0.35 | D100: 0.38 | E100: 0.28 | F100: 1.2540001 | G100: 1.481659 | H100: 1.411173 | I100: 0 | J100: 0 | K100: 0 | L100: 0.16616766 | M100: 0.03076923 | N100: 0.053511705 | O100: 0.52168274 | P100: 0.10407539 | Q100: 0.15825494
A101: 26.24 MISC.GCN5-RELATED N-ACETYLTRANSFERASE | B101: 31 | C101: 0.26 | D101: -0.29 | E101: 0.18 | F101: 1.1057737 | G101: -0.9164091 | H101: 1.072645 | I101: 0 | J101: 0 | K101: 0 | L101: 0.30745342 | M101: 0.6180556 | N101: 0.35740072 | O101: 0.6882167 | P101: 0.9058635 | Q101: 0.5411259
A102: 26.28 MISC.GDSL-MOTIF LIPASE | B102: 51 | C102: 0.29 | D102: -0.43 | E102: -0.34 | F102: 0.98057854 | G102: -1.7767106 | H102: -1.7774082 | I102: 0 | J102: -1.7767106 | K102: -1.7774082 | L102: 0.48908296 | M102: 0 | N102: 0 | O102: 0.8242224 | P102: 0.012771928 | Q102: 0.013369684
A103: 27.1 RNA.PROCESSING | B103: 185 | C103: -0.35 | D103: -0.48 | E103: -0.43 | F103: -1.2921345 | G103: -1.4956318 | H103: -1.4897662 | I103: 0 | J103: 0 | K103: 0 | L103: 0.035897437 | M103: 0 | N103: 0 | O103: 0.2570711 | P103: 0.09148622 | Q103: 0.11449372
A104: 27.1.1 RNA.PROCESSING.SPLICING | B104: 119 | C104: 0.21 | D104: 0.98 | E104: 1 | F104: 0.6609093 | G104: 0.43493807 | H104: 0.39800954 | I104: 0 | J104: 0 | K104: 0 | L104: 0.99472296 | M104: 1 | N104: 1 | O104: 1 | P104: 0.9986555 | Q104: 0.999548
A105: 27.1.2 RNA.PROCESSING.RNA HELICASE | B105: 70 | C105: -0.43 | D105: -0.56 | E105: -0.61 | F105: -0.6477987 | G105: -1.6274478 | H105: -1.4801162 | I105: 0 | J105: -1.6274478 | K105: 0 | L105: 0.9870968 | M105: 0.006024096 | N105: 0.034912717 | O105: 0.98998225 | P105: 0.040681813 | Q105: 0.11838784
A106: 27.1.19 RNA.PROCESSING.RIBONUCLEASES | B106: 69 | C106: 0.14 | D106: 0.3 | E106: -0.45 | F106: 0.8256764 | G106: 0.8866418 | H106: -0.74061406 | I106: 0 | J106: 0 | K106: 0 | L106: 0.771137 | M106: 0.6728682 | N106: 0.9250646 | O106: 0.93291014 | P106: 0.80337465 | Q106: 0.97147644
A107: 27.2 RNA.TRANSCRIPTION | B107: 136 | C107: 0.29 | D107: -0.24 | E107: 0.29 | F107: 0.6246656 | G107: -0.5046605 | H107: 0.5481313 | I107: 0 | J107: 0 | K107: 0 | L107: 0.99872446 | M107: 1 | N107: 1 | O107: 1 | P107: 1 | Q107: 1
A108: 27.3 RNA.REGULATION OF TRANSCRIPTION | B108: 26 | C108: -0.38 | D108: -0.42 | E108: -0.42 | F108: -1.1243076 | G108: -1.2659137 | H108: -0.48508444 | I108: 0 | J108: 0 | K108: 0 | L108: 0.30882353 | M108: 0.15011548 | N108: 0.99769056 | O108: 0.44623157 | P108: 0.28376228 | Q108: 1
A109: 27.3.3 RNA.REGULATION OF TRANSCRIPTION.AP2/EREBP, APETALA2/ETHYLENE-RESPONSIVE ELEMENT BINDING PROTEIN FAMILY | B109: 55 | C109: 0.27 | D109: 0.49 | E109: 0.49 | F109: 1.4591818 | G109: 1.4800229 | H109: 1.7488068 | I109: 0 | J109: 0 | K109: 1.7488068 | L109: 0.028231798 | M109: 0.02431611 | N109: 0 | O109: 0.22864029 | P109: 0.1032077 | Q109: 0.014755963
A110: 27.3.4 RNA.REGULATION OF TRANSCRIPTION.ARF, AUXIN RESPONSE FACTOR FAMILY | B110: 37 | C110: -0.35 | D110: -0.57 | E110: -0.57 | F110: -1.0944118 | G110: -1.6918719 | H110: -1.6255245 | I110: 0 | J110: -1.6918719 | K110: -1.6255245 | L110: 0.3178082 | M110: 0.005063291 | N110: 0.01703163 | O110: 0.4839478 | P110: 0.027234327 | Q110: 0.048572373
A111: 27.3.5 RNA.REGULATION OF TRANSCRIPTION.ARR | B111: 17 | C111: -0.18 | D111: -0.29 | F111: -1.0726467 | G111: -0.8784094 | I111: 0 | J111: 0 | L111: 0.35911602 | M111: 0.6287703 | O111: 0.5063885 | P111: 0.94200325
A112: 27.3.6 RNA.REGULATION OF TRANSCRIPTION.BHLH,BASIC HELIX-LOOP-HELIX FAMILY | B112: 120 | C112: 0.25 | D112: 0.19 | E112: 0.28 | F112: 1.0214505 | G112: 0.9496563 | H112: 1.2244567 | I112: 0 | J112: 0 | K112: 0 | L112: 0.4038961 | M112: 0.5550661 | N112: 0.13085622 | O112: 0.79974073 | P112: 0.7149772 | Q112: 0.31868023
A113: 27.3.7 RNA.REGULATION OF TRANSCRIPTION.C2C2(ZN) CO-LIKE, CONSTANS-LIKE ZINC FINGER FAMILY | B113: 31 | C113: 0.39 | D113: 0.1 | E113: -0.17 | F113: 1.5177464 | G113: 0.9590503 | H113: -1.1962519 | I113: 0 | J113: 0 | K113: 0 | L113: 0.05345912 | M113: 0.51741296 | N113: 0.18944845 | O113: 0.1852539 | P113: 0.69960266 | Q113: 0.3588598
A114: 27.3.8 RNA.REGULATION OF TRANSCRIPTION.C2C2(ZN) DOF ZINC FINGER FAMILY | B114: 26 | C114: 0.5 | D114: 0.46 | E114: 0.61 | F114: 1.0535644 | G114: 1.4086404 | H114: 2.132952 | I114: 0 | J114: 0 | K114: 2.132952 | L114: 0.38172922 | M114: 0.08361775 | N114: 0 | O114: 0.7650636 | P114: 0.14684325 | Q114: 0.00032603406
A115: 27.3.9 RNA.REGULATION OF TRANSCRIPTION.C2C2(ZN) GATA TRANSCRIPTION FACTOR FAMILY | B115: 37 | C115: 0.38 | D115: 0.32 | E115: -0.28 | F115: 1.0321482 | G115: 0.8621991 | H115: -0.8202266 | I115: 0 | J115: 0 | K115: 0 | L115: 0.4554295 | M115: 0.68688524 | N115: 0.74300253 | O115: 0.80848515 | P115: 0.8337895 | Q115: 0.91860616
A116: 27.3.11 RNA.REGULATION OF TRANSCRIPTION.C2H2 ZINC FINGER FAMILY | B116: 80 | C116: 0.29 | D116: -0.28 | E116: -0.38 | F116: 0.71282804 | G116: -0.71734524 | H116: -1.1734262 | I116: 0 | J116: 0 | K116: 0 | L116: 0.9332386 | M116: 0.97846156 | N116: 0.18276763 | O116: 1 | P116: 1 | Q116: 0.39279896
A117: 27.3.12 RNA.REGULATION OF TRANSCRIPTION.C3H ZINC FINGER FAMILY | B117: 34 | C117: 0.24 | D117: 0.35 | E117: 0.3 | F117: 1.1673794 | G117: 1.45335 | H117: 1.1801608 | I117: 0 | J117: 0 | K117: 0 | L117: 0.2439394 | M117: 0.056692913 | N117: 0.22857143 | O117: 0.607295 | P117: 0.1165338 | Q117: 0.38083905
A118: 27.3.20 RNA.REGULATION OF TRANSCRIPTION.G2-LIKE TRANSCRIPTION FACTOR FAMILY, GARP | B118: 42 | C118: 0.17 | D118: 0.45 | E118: 0.36 | F118: 0.9734229 | G118: 1.1751629 | H118: 1.3803496 | I118: 0 | J118: 0 | K118: 0 | L118: 0.50075185 | M118: 0.22532895 | N118: 0.08067227 | O118: 0.8269366 | P118: 0.3824071 | Q118: 0.18256204
A119: 27.3.22 RNA.REGULATION OF TRANSCRIPTION.HB,HOMEOBOX TRANSCRIPTION FACTOR FAMILY | B119: 88 | C119: 0.3 | D119: 0.33 | E119: 0.37 | F119: 1.6602445 | G119: 2.1126926 | H119: 2.0057077 | I119: 0 | J119: 2.1126926 | K119: 2.0057077 | L119: 0.001396648 | M119: 0 | N119: 0 | O119: 0.08701286 | P119: 0.00017724551 | Q119: 0.0011502447
A120: 27.3.23 RNA.REGULATION OF TRANSCRIPTION.HSF,HEAT-SHOCK TRANSCRIPTION FACTOR FAMILY | B120: 26 | C120: 0.38 | D120: 0.12 | E120: 0.13 | F120: 1.4941313 | G120: 1.4021938 | H120: 1.3038479 | I120: 0 | J120: 0 | K120: 0 | L120: 0.053225808 | M120: 0.07325383 | N120: 0.1559633 | O120: 0.20394789 | P120: 0.15105954 | Q120: 0.24434061
A121: 27.3.24 RNA.REGULATION OF TRANSCRIPTION.MADS BOX TRANSCRIPTION FACTOR FAMILY | B121: 18 | C121: 0.33 | D121: 0.39 | F121: 1.8603693 | G121: 1.5662919 | I121: 1.8603693 | J121: 0 | L121: 0 | M121: 0.033333335 | O121: 0.015910972 | P121: 0.0613462
A122: 27.3.25 RNA.REGULATION OF TRANSCRIPTION.MYB DOMAIN TRANSCRIPTION FACTOR FAMILY | B122: 86 | C122: 0.28 | D122: 0.26 | E122: 0.4 | F122: 1.0175382 | G122: 0.8387701 | H122: 1.2605499 | I122: 0 | J122: 0 | K122: 0 | L122: 0.4181818 | M122: 0.77172315 | N122: 0.10987261 | O122: 0.8019399 | P122: 0.8670766 | Q122: 0.2791938
A123: 27.3.26 RNA.REGULATION OF TRANSCRIPTION.MYB-RELATED TRANSCRIPTION FACTOR FAMILY | B123: 62 | C123: 0.29 | D123: -0.15 | E123: 0.17 | F123: 0.98430306 | G123: -1.8283106 | H123: 0.9893896 | I123: 0 | J123: -1.8283106 | K123: 0 | L123: 0.47713414 | M123: 0 | N123: 0.4862543 | O123: 0.8227576 | P123: 0.008352273 | Q123: 0.6576356
A124: 27.3.29 RNA.REGULATION OF TRANSCRIPTION.TCP TRANSCRIPTION FACTOR FAMILY | B124: 28 | C124: -0.25 | D124: -0.43 | E124: -0.56 | F124: -0.9046545 | G124: -1.2613312 | H124: -1.3470287 | I124: 0 | J124: 0 | K124: 0 | L124: 0.58115184 | M124: 0.14496315 | N124: 0.095 | O124: 0.75521886 | P124: 0.28471422 | Q124: 0.21250789
A125: 27.3.30 RNA.REGULATION OF TRANSCRIPTION.TRIHELIX, TRIPLE-HELIX TRANSCRIPTION FACTOR FAMILY | B125: 42 | C125: 0.31 | D125: 0.02 | E125: 0.32 | F125: 0.37190816 | G125: 0.51923 | H125: 0.7633349 | I125: 0 | J125: 0 | K125: 0 | L125: 0.99848485 | M125: 0.9919485 | N125: 0.839527 | O125: 0.99976707 | P125: 1 | Q125: 0.9378344
A126: 27.3.32 RNA.REGULATION OF TRANSCRIPTION.WRKY DOMAIN TRANSCRIPTION FACTOR FAMILY | B126: 56 | C126: 0.29 | D126: 0.61 | E126: 0.5 | F126: 1.0940294 | G126: 2.409604 | H126: 2.212452 | I126: 0 | J126: 2.409604 | K126: 2.212452 | L126: 0.30769232 | M126: 0 | N126: 0 | O126: 0.70312613 | P126: 0 | Q126: 0
A127: 27.3.34 RNA.REGULATION OF TRANSCRIPTION.ORPHAN FAMILY | B127: 19 | C127: 0.47 | D127: -0.79 | E127: -1 | F127: 1.0275179 | G127: -1.8156065 | H127: -1.8383969 | I127: 0 | J127: -1.8156065 | K127: -1.8383969 | L127: 0.4242902 | M127: 0 | N127: 0.0022883294 | O127: 0.8019061 | P127: 0.008970616 | Q127: 0.008514153
A128: 27.3.35 RNA.REGULATION OF TRANSCRIPTION.BZIP TRANSCRIPTION FACTOR FAMILY | B128: 100 | C128: 0.21 | D128: 0.5 | E128: 0.45 | F128: 1.2748628 | G128: 1.5523617 | H128: 1.8303448 | I128: 0 | J128: 0 | K128: 1.8303448 | L128: 0.09479306 | M128: 0.0057061343 | N128: 0 | O128: 0.49688473 | P128: 0.06400953 | Q128: 0.0063247094
A129: 27.3.40 RNA.REGULATION OF TRANSCRIPTION.AUX/IAA FAMILY | B129: 28 | C129: 0.71 | D129: 0.25 | E129: -0.35 | F129: 2.0237858 | G129: 0.97562635 | H129: -1.4289343 | I129: 2.0237858 | J129: 0 | K129: 0 | L129: 0 | M129: 0.5092749 | N129: 0.079822615 | O129: 0.0019056749 | P129: 0.66770333 | Q129: 0.15681522
A130: 27.3.44 RNA.REGULATION OF TRANSCRIPTION.CHROMATIN REMODELING FACTORS | B130: 70 | C130: 0.34 | D130: -0.31 | E130: 0.21 | F130: 1.1553743 | G130: -0.8788353 | H130: 0.6507006 | I130: 0 | J130: 0 | K130: 0 | L130: 0.24643874 | M130: 0.6909091 | N130: 0.97077924 | O130: 0.62197256 | P130: 0.9542567 | Q130: 1
A131: 27.3.50 RNA.REGULATION OF TRANSCRIPTION.GENERAL TRANSCRIPTION | B131: 33 | C131: -0.42 | D131: -0.52 | E131: -0.66 | F131: -0.8788402 | G131: -0.7941635 | H131: -1.4126225 | I131: 0 | J131: 0 | K131: 0 | L131: 0.6936416 | M131: 0.7949309 | N131: 0.050458714 | O131: 0.8027338 | P131: 1 | Q131: 0.16874418
A132: 27.3.52 RNA.REGULATION OF TRANSCRIPTION.GLOBAL TRANSCRIPTION FACTOR GROUP | B132: 34 | C132: 0.47 | D132: 0.06 | E132: 0.28 | F132: 0.95678276 | G132: 0.5051624 | H132: 0.44122902 | I132: 0 | J132: 0 | K132: 0 | L132: 0.5220126 | M132: 0.9900826 | N132: 0.9981818 | O132: 0.82927334 | P132: 1 | Q132: 1
A133: 27.3.54 RNA.REGULATION OF TRANSCRIPTION.HISTONE ACETYLTRANSFERASES | B133: 22 | C133: 0.41 | D133: -0.32 | E133: -0.45 | F133: 0.9413279 | G133: -0.48542118 | H133: -0.8119198 | I133: 0 | J133: 0 | K133: 0 | L133: 0.5351438 | M133: 0.99763596 | N133: 0.75586855 | O133: 0.8294933 | P133: 1 | Q133: 0.9222574
A134: 27.3.55 RNA.REGULATION OF TRANSCRIPTION.HDA | B134: 26 | C134: -0.38 | D134: 0.27 | E134: 1 | F134: -0.7007405 | G134: 0.8390251 | H134: 0.45522368 | I134: 0 | J134: 0 | K134: 0 | L134: 0.92286503 | M134: 0.7135506 | N134: 0.99822694 | O134: 0.97543377 | P134: 0.87343925 | Q134: 1
A135: 27.3.57 RNA.REGULATION OF TRANSCRIPTION.JUMONJI FAMILY | B135: 17 | C135: 0.18 | D135: -0.24 | F135: 0.8257687 | G135: -0.6026678 | I135: 0 | J135: 0 | L135: 0.6956522 | M135: 0.94736844 | O135: 0.9400964 | P135: 1
A136: 27.3.59 RNA.REGULATION OF TRANSCRIPTION.METHYL BINDING DOMAIN PROTEINS | B136: 20 | C136: 0.25 | D136: 0.1 | E136: 0.28 | F136: 1.2277963 | G136: 0.92053944 | H136: 0.8471833 | I136: 0 | J136: 0 | K136: 0 | L136: 0.1936027 | M136: 0.55972695 | N136: 0.6992754 | O136: 0.5202527 | P136: 0.7428744 | Q136: 0.85500664
A137: 27.3.63 RNA.REGULATION OF TRANSCRIPTION.PHD FINGER TRANSCRIPTION FACTOR | B137: 30 | C137: 0.2 | D137: -0.37 | E137: -0.24 | F137: 0.555247 | G137: -1.2350448 | H137: -0.7465685 | I137: 0 | J137: 0 | K137: 0 | L137: 0.98587126 | M137: 0.16492146 | N137: 0.8679245 | O137: 1 | P137: 0.3146758 | Q137: 0.9756539
A138: 27.3.67 RNA.REGULATION OF TRANSCRIPTION.PUTATIVE TRANSCRIPTION REGULATOR | B138: 271 | C138: 0.18 | D138: 0.08 | E138: 0.08 | F138: 0.9032175 | G138: 0.7461196 | H138: 0.80227023 | I138: 0 | J138: 0 | K138: 0 | L138: 0.71274036 | M138: 0.9885787 | N138: 0.9423347 | O138: 0.8679032 | P138: 0.9751874 | Q138: 0.90072477
A139: 27.3.68 RNA.REGULATION OF TRANSCRIPTION.PWWP DOMAIN PROTEIN | B139: 19 | C139: 0.26 | D139: 1 | F139: 0.89717895 | G139: 0.44955817 | I139: 0 | J139: 0 | L139: 0.6231156 | M139: 0.9930915 | O139: 0.866342 | P139: 1
A140: 27.3.69 RNA.REGULATION OF TRANSCRIPTION.SET-DOMAIN TRANSCRIPTIONAL REGULATOR FAMILY | B140: 48 | C140: 0.38 | D140: -0.48 | E140: -0.32 | F140: 0.48462793 | G140: -1.7134569 | H140: -1.3571135 | I140: 0 | J140: -1.7134569 | K140: 0 | L140: 0.9984756 | M140: 0.0026525198 | N140: 0.10880829 | O140: 1 | P140: 0.023161536 | Q140: 0.20576215
A141: 27.3.71 RNA.REGULATION OF TRANSCRIPTION.SNF7 | B141: 20 | C141: 0.15 | D141: 0.8 | E141: 0.79 | F141: 0.9535709 | G141: 1.7228131 | H141: 1.7758546 | I141: 0 | J141: 1.7228131 | K141: 1.7758546 | L141: 0.5143339 | M141: 0.01010101 | N141: 0 | O141: 0.8300582 | P141: 0.018420631 | Q141: 0.011289852
A142: 27.3.73 RNA.REGULATION OF TRANSCRIPTION.ZN-FINGER(CCHC) | B142: 20 | C142: 0.2 | D142: -1 | F142: 0.38798383 | G142: -1.1515548 | I142: 0 | J142: 0 | L142: 0.998374 | M142: 0.2590909 | O142: 1 | P142: 0.4278432
A143: 27.3.85 RNA.REGULATION OF TRANSCRIPTION.SIGMA LIKE PLANT | B143: 15 | E143: -0.8 | H143: -1.5458823 | K143: 0 | N143: 0.035634745 | Q143: 0.07873856
A144: 27.3.99 RNA.REGULATION OF TRANSCRIPTION.UNCLASSIFIED | B144: 482 | C144: 0.19 | D144: 0.27 | E144: -0.15 | F144: 0.7650424 | G144: 0.71657765 | H144: -0.90658003 | I144: 0 | J144: 0 | K144: 0 | L144: 0.98913044 | M144: 1 | N144: 0.8305785 | O144: 0.9882523 | P144: 0.99534625 | Q144: 0.8221146
A145: 27.4 RNA.RNA BINDING | B145: 357 | C145: -0.27 | D145: -0.25 | E145: -0.15 | F145: -0.6067073 | G145: -0.89733464 | H145: -0.8350513 | I145: 0 | J145: 0 | K145: 0 | L145: 1 | M145: 0.875 | N145: 0.97407407 | O145: 0.9963389 | P145: 0.9321026 | Q145: 0.9131563
A146: 28.1 DNA.SYNTHESIS/CHROMATIN STRUCTURE | B146: 326 | C146: 0.19 | D146: -0.47 | E146: -0.39 | F146: 0.7800145 | G146: -1.8295889 | H146: -1.278997 | I146: 0 | J146: -1.8295889 | K146: 0 | L146: 0.9613197 | M146: 0 | N146: 0.01 | O146: 0.98657626 | P146: 0.008559026 | Q146: 0.26721898
A147: 28.1.3.2.1 DNA.SYNTHESIS/CHROMATIN STRUCTURE.HISTONE.CORE.H2A | B147: 37 | C147: -0.68 | D147: -0.65 | E147: -0.47 | F147: -2.1773944 | G147: -1.8388014 | H147: -1.6740687 | I147: -2.1773944 | J147: -1.8388014 | K147: -1.6740687 | L147: 0 | M147: 0.0026385225 | N147: 0.010025063 | O147: 0 | P147: 0.00834007 | Q147: 0.035111096
A148: 28.1.3.2.2 DNA.SYNTHESIS/CHROMATIN STRUCTURE.HISTONE.CORE.H2B | B148: 16 | C148: -0.81 | D148: -0.69 | E148: -0.53 | F148: -2.0319912 | G148: -1.7370316 | H148: -1.4786012 | I148: -2.0319912 | J148: -1.7370316 | K148: 0 | L148: 0.002617801 | M148: 0.011655011 | N148: 0.056818184 | O148: 0.002081859 | P148: 0.018748047 | Q148: 0.115595914
A149: 28.1.3.2.3 DNA.SYNTHESIS/CHROMATIN STRUCTURE.HISTONE.CORE.H3 | B149: 17 | C149: -0.82 | D149: -0.59 | E149: -0.5 | F149: -2.2654805 | G149: -1.866934 | H149: -1.5760661 | I149: -2.2654805 | J149: -1.866934 | K149: 0 | L149: 0 | M149: 0 | N149: 0.039911307 | O149: 0 | P149: 0.006554415 | Q149: 0.065211445
A150: 28.1.3.2.4 DNA.SYNTHESIS/CHROMATIN STRUCTURE.HISTONE.CORE.H4 | B150: 22 | C150: -0.86 | D150: -0.86 | E150: -0.85 | F150: -2.3924305 | G150: -2.1392972 | H150: -1.7586148 | I150: -2.3924305 | J150: -2.1392972 | K150: -1.7586148 | L150: 0 | M150: 0 | N150: 0.002444988 | O150: 0 | P150: 0.00016233767 | Q150: 0.016089449
A151: 28.2 DNA.REPAIR | B151: 100 | C151: 0.42 | D151: -0.42 | E151: -0.36 | F151: 1.3167549 | G151: -1.3350074 | H151: -1.1629004 | I151: 0 | J151: 0 | K151: 0 | L151: 0.07062147 | M151: 0.048484847 | N151: 0.1764706 | O151: 0.4429731 | P151: 0.20276818 | Q151: 0.40439895
A152: 28.99 DNA.UNSPECIFIED | B152: 207 | C152: 0.21 | D152: 0.19 | E152: -0.3 | F152: 1.0010865 | G152: 0.631335 | H152: -0.9629305 | I152: 0 | J152: 0 | K152: 0 | L152: 0.47361964 | M152: 0.9986996 | N152: 0.56832296 | O152: 0.8024341 | P152: 1 | Q152: 0.7560556
A153: 29.1 PROTEIN.AA ACTIVATION | B153: 15 | C153: 0.2 | D153: -0.4 | F153: 0.8816197 | G153: -0.76399934 | I153: 0 | J153: 0 | L153: 0.6270627 | M153: 0.78624076 | O153: 0.88024265 | P153: 0.9884413
A154: 29.1.30 PROTEIN.AA ACTIVATION.PSEUDOURIDYLATE SYNTHASE | B154: 21 | C154: -0.52 | D154: -0.48 | E154: -0.4 | F154: -1.4647243 | G154: -1.3933051 | H154: -1.3615164 | I154: 0 | J154: 0 | K154: 0 | L154: 0.064432986 | M154: 0.07637232 | N154: 0.09544469 | O154: 0.15503882 | P154: 0.16519725 | Q154: 0.20640789
A155: 29.2.2 PROTEIN.SYNTHESIS.RIBOSOME BIOGENESIS | B155: 18 | C155: 0.11 | D155: 0.06 | E155: 0.19 | F155: 0.5971412 | G155: 0.6939438 | H155: 1.0357503 | I155: 0 | J155: 0 | K155: 0 | L155: 0.9451115 | M155: 0.8735244 | N155: 0.42857143 | O155: 1 | P155: 0.99511474 | Q155: 0.5861149
A156: 29.2.2.1 PROTEIN.SYNTHESIS.RIBOSOME BIOGENESIS.EXPORT FROM NUCLEUS | B156: 18 | C156: 0.28 | D156: 0.28 | E156: 0.18 | F156: 1.2788924 | G156: 1.1824923 | H156: 1.2693888 | I156: 0 | J156: 0 | K156: 0 | L156: 0.1738437 | M156: 0.25925925 | N156: 0.18545455 | O156: 0.51008266 | P156: 0.37770113 | Q156: 0.2697639
A157: 29.2.2.3.1 PROTEIN.SYNTHESIS.RIBOSOME BIOGENESIS.PRE-RRNA PROCESSING AND MODIFICATIONS.SNORNPS | B157: 28 | C157: -0.54 | D157: -0.64 | E157: -0.81 | F157: -1.9614593 | G157: -1.8455456 | H157: -1.7948176 | I157: -1.9614593 | J157: -1.8455456 | K157: -1.7948176 | L157: 0.002631579 | M157: 0 | N157: 0.0022123894 | O157: 0.003867423 | P157: 0.008266337 | Q157: 0.011989241
A158: 29.2.2.3.3 PROTEIN.SYNTHESIS.RIBOSOME BIOGENESIS.PRE-RRNA PROCESSING AND MODIFICATIONS.METHYLOTRANSFERASES | B158: 23 | C158: -0.7 | D158: -0.43 | E158: -0.53 | F158: -1.3145268 | G158: -1.6501136 | H158: -1.3315028 | I158: 0 | J158: -1.6501136 | K158: 0 | L158: 0.125 | M158: 0.006849315 | N158: 0.1477516 | O158: 0.23449437 | P158: 0.034322843 | Q158: 0.22724238
A159: 29.2.2.3.5 PROTEIN.SYNTHESIS.RIBOSOME BIOGENESIS.PRE-RRNA PROCESSING AND MODIFICATIONS.DEXD-BOX HELICASES | B159: 26 | C159: 0.35 | D159: -0.42 | E159: -0.58 | F159: 0.4431764 | G159: -1.0835199 | H159: -1.3782253 | I159: 0 | J159: 0 | K159: 0 | L159: 0.9968701 | M159: 0.31552163 | N159: 0.08528785 | O159: 1 | P159: 0.52808285 | Q159: 0.19798134
A160: 29.2.3 PROTEIN.SYNTHESIS.INITIATION | B160: 155 | C160: -0.37 | D160: -0.05 | E160: -0.35 | F160: -0.80462354 | G160: -0.48745742 | H160: -0.65434706 | I160: 0 | J160: 0 | K160: 0 | L160: 0.95238096 | M160: 1 | N160: 1 | O160: 0.91160303 | P160: 1 | Q160: 1
A161: 29.2.4 PROTEIN.SYNTHESIS.ELONGATION | B161: 73 | C161: -0.63 | D161: -0.26 | E161: -0.23 | F161: -1.4802872 | G161: -1.8971437 | H161: -1.8526374 | I161: 0 | J161: -1.8971437 | K161: -1.8526374 | L161: 0.02027027 | M161: 0 | N161: 0 | O161: 0.14594938 | P161: 0.0052271467 | Q161: 0.007422492
A162: 29.2.5 PROTEIN.SYNTHESIS.RELEASE | B162: 19 | C162: -0.37 | D162: -0.37 | E162: -0.56 | F162: -1.162379 | G162: -1.6218861 | H162: -1.3008593 | I162: 0 | J162: -1.6218861 | K162: 0 | L162: 0.24096386 | M162: 0.011441648 | N162: 0.16008772 | O162: 0.39672568 | P162: 0.041110896 | Q162: 0.2542198
A163: 29.3.1 PROTEIN.TARGETING.NUCLEUS | B163: 81 | C163: 0.12 | D163: -0.26 | E163: -1 | F163: 0.8574362 | G163: -0.5451185 | H163: -0.4229005 | I163: 0 | J163: 0 | K163: 0 | L163: 0.73756903 | M163: 1 | N163: 1 | O163: 0.90409774 | P163: 1 | Q163: 0.99920815
A164: 29.3.2 PROTEIN.TARGETING.MITOCHONDRIA | B164: 43 | C164: -0.44 | D164: -1 | E164: -0.43 | F164: -1.2238452 | G164: -0.42303252 | H164: -0.71297044 | I164: 0 | J164: 0 | K164: 0 | L164: 0.16969697 | M164: 1 | N164: 0.9316038 | O164: 0.33343393 | P164: 0.99932253 | Q164: 0.97941536
A165: 29.3.3 PROTEIN.TARGETING.CHLOROPLAST | B165: 64 | C165: -0.63 | D165: -0.69 | E165: -0.68 | F165: -0.9980403 | G165: -2.1318588 | H165: -2.0775955 | I165: 0 | J165: -2.1318588 | K165: -2.0775955 | L165: 0.44012946 | M165: 0 | N165: 0 | O165: 0.6038548 | P165: 0.00014204546 | Q165: 0.0005179105
A166: 29.3.4.1 PROTEIN.TARGETING.SECRETORY PATHWAY.ER | B166: 34 | C166: 0.21 | D166: 0.65 | E166: 0.64 | F166: 0.74517787 | G166: 1.5659217 | H166: 1.363238 | I166: 0 | J166: 0 | K166: 0 | L166: 0.83410853 | M166: 0.027210884 | N166: 0.09878683 | O166: 1 | P166: 0.060065284 | Q166: 0.18931009
A167: 29.3.4.2 PROTEIN.TARGETING.SECRETORY PATHWAY.GOLGI | B167: 24 | C167: 0.46 | D167: 0.63 | E167: 0.48 | F167: 0.84066886 | G167: 1.1690055 | H167: 0.76626986 | I167: 0 | J167: 0 | K167: 0 | L167: 0.7063621 | M167: 0.2542662 | N167: 0.7818182 | O167: 0.92471826 | P167: 0.38414672 | Q167: 0.941737
A168: 29.3.4.3 PROTEIN.TARGETING.SECRETORY PATHWAY.VACUOLE | B168: 53 | C168: 0.4 | D168: 0.57 | E168: 0.33 | F168: 1.062303 | G168: 1.8061992 | H168: 1.9007926 | I168: 0 | J168: 1.8061992 | K168: 1.9007926 | L168: 0.35789475 | M168: 0.0045941807 | N168: 0 | O168: 0.7682714 | P168: 0.008633963 | Q168: 0.0036245827
A169: 29.3.4.99 PROTEIN.TARGETING.SECRETORY PATHWAY.UNSPECIFIED | B169: 145 | C169: 0.15 | D169: 0.5 | E169: 0.41 | F169: 0.9184476 | G169: 1.8398017 | H169: 1.504088 | I169: 0 | J169: 1.8398017 | K169: 0 | L169: 0.6413882 | M169: 0 | N169: 0.01217656 | O169: 0.8549176 | P169: 0.0072917207 | Q169: 0.09749343
A170: 29.3.5 PROTEIN.TARGETING.PEROXISOMES | B170: 23 | C170: 0.17 | D170: 0.04 | E170: -0.53 | F170: 0.7121527 | G170: 0.47379896 | H170: -0.6032943 | I170: 0 | J170: 0 | K170: 0 | L170: 0.86698717 | M170: 0.9950331 | N170: 0.94813275 | O170: 1 | P170: 1 | Q170: 1
A171: 29.4.1 PROTEIN.POSTRANSLATIONAL MODIFICATION.KINASE | B171: 60 | C171: 0.47 | D171: 0.37 | E171: 0.28 | F171: 1.4513258 | G171: 1.7149376 | H171: 1.2877419 | I171: 0 | J171: 1.7149376 | K171: 0 | L171: 0.038179148 | M171: 0.0015243902 | N171: 0.119281046 | O171: 0.23408222 | P171: 0.019052342 | Q171: 0.25170425
A172: 29.4.1.57 PROTEIN.POSTRANSLATIONAL MODIFICATION.KINASE.RECEPTOR LIKE CYTOPLASMATIC KINASE VII | B172: 58 | C172: 0.14 | D172: 0.36 | E172: 0.36 | F172: 0.91766006 | G172: 1.8263915 | H172: 1.1131656 | I172: 0 | J172: 1.8263915 | K172: 0 | L172: 0.5822604 | M172: 0 | N172: 0.28978226 | O172: 0.84914124 | P172: 0.0071738916 | Q172: 0.47177893
A173: 29.5 PROTEIN.DEGRADATION | B173: 225 | C173: 0.29 | D173: -0.18 | E173: -0.29 | F173: 1.1323116 | G173: -0.8962883 | H173: -0.95849967 | I173: 0 | J173: 0 | K173: 0 | L173: 0.19386503 | M173: 0.802521 | N173: 0.58965516 | O173: 0.66988283 | P173: 0.9218637 | Q173: 0.7454536
A174: 29.5.1 PROTEIN.DEGRADATION.SUBTILASES | B174: 40 | C174: 0.2 | D174: -0.35 | E174: -0.34 | F174: 0.6209827 | G174: -0.90387064 | H174: -1.2919706 | I174: 0 | J174: 0 | K174: 0 | L174: 0.9779874 | M174: 0.6388889 | N174: 0.09669811 | O174: 1 | P174: 0.9277498 | Q174: 0.26020005
A175: 29.5.2 PROTEIN.DEGRADATION.AUTOPHAGY | B175: 26 | C175: 0.42 | D175: 0.65 | E175: 0.83 | F175: 1.4899315 | G175: 1.7256074 | H175: 1.8232836 | I175: 0 | J175: 1.7256074 | K175: 1.8232836 | L175: 0.039538715 | M175: 0.005042017 | N175: 0 | O175: 0.20292161 | P175: 0.018532582 | Q175: 0.0066181067
A176: 29.5.3 PROTEIN.DEGRADATION.CYSTEINE PROTEASE | B176: 68 | C176: 0.37 | D176: 0.56 | E176: 0.37 | F176: 1.8622098 | G176: 1.680345 | H176: 1.3122417 | I176: 1.8622098 | J176: 1.680345 | K176: 0 | L176: 0 | M176: 0.0015197569 | N176: 0.08976378 | O176: 0.017735794 | P176: 0.024761083 | Q176: 0.23646684
A177: 29.5.4 PROTEIN.DEGRADATION.ASPARTATE PROTEASE | B177: 55 | C177: 0.36 | D177: -0.24 | E177: 0.2 | F177: 1.2280906 | G177: -1.3924439 | H177: 1.2567666 | I177: 0 | J177: 0 | K177: 0 | L177: 0.14479639 | M177: 0.05540897 | N177: 0.14214876 | O177: 0.5293838 | P177: 0.16182184 | Q177: 0.27652028
A178: 29.5.5 PROTEIN.DEGRADATION.SERINE PROTEASE | B178: 108 | C178: 0.15 | D178: 0.25 | E178: 0.16 | F178: 0.9621788 | G178: 1.081466 | H178: 0.7674657 | I178: 0 | J178: 0 | K178: 0 | L178: 0.547043 | M178: 0.31334332 | N178: 0.91087615 | O178: 0.82282 | P178: 0.5011146 | Q178: 0.94785696
A179: 29.5.7 PROTEIN.DEGRADATION.METALLOPROTEASE | B179: 59 | C179: 0.34 | D179: -0.54 | E179: -0.33 | F179: 0.5178999 | G179: -1.3854623 | H179: -1.1242994 | I179: 0 | J179: 0 | K179: 0 | L179: 0.99701047 | M179: 0.033707865 | N179: 0.25181597 | O179: 1 | P179: 0.1645652 | Q179: 0.44052568
A180: 29.5.9 PROTEIN.DEGRADATION.AAA TYPE | B180: 48 | C180: 0.23 | D180: 0.23 | E180: 0.43 | F180: 1.0167836 | G180: 1.339616 | H180: 1.0435052 | I180: 0 | J180: 0 | K180: 0 | L180: 0.42705166 | M180: 0.10172144 | N180: 0.41319445 | O180: 0.7947653 | P180: 0.20825598 | Q180: 0.58176184
A181: 29.5.11 PROTEIN.DEGRADATION.UBIQUITIN | B181: 126 | C181: 0.21 | D181: 0.22 | E181: 0.42 | F181: 0.58134484 | G181: 1.2125139 | H181: 1.4270086 | I181: 0 | J181: 0 | K181: 0 | L181: 1 | M181: 0.12983425 | N181: 0.014128729 | O181: 1 | P181: 0.35397655 | Q181: 0.148303
A182: 29.5.11.1 PROTEIN.DEGRADATION.UBIQUITIN.UBIQUITIN | B182: 46 | C182: 0.5 | D182: 0.41 | E182: 0.51 | F182: 0.6282569 | G182: 1.7962455 | H182: 1.6604366 | I182: 0 | J182: 1.7962455 | K182: 1.6604366 | L182: 0.9568 | M182: 0.003215434 | N182: 0.008741259 | O182: 1 | P182: 0.009172797 | Q182: 0.030683087
A183: 29.5.11.3 PROTEIN.DEGRADATION.UBIQUITIN.E2 | B183: 73 | C183: 0.51 | D183: 0.56 | E183: 0.61 | F183: 1.3722937 | G183: 2.061539 | H183: 2.1349325 | I183: 0 | J183: 2.061539 | K183: 2.1349325 | L183: 0.05323741 | M183: 0 | N183: 0 | O183: 0.35268947 | P183: 0.00079669117 | Q183: 0.0004890511
A184: 29.5.11.4.1 PROTEIN.DEGRADATION.UBIQUITIN.E3.HECT | B184: 22 | C184: 0.32 | D184: 0.36 | E184: 0.26 | F184: 0.69799596 | G184: 0.5894475 | H184: 1.2374034 | I184: 0 | J184: 0 | K184: 0 | L184: 0.85784316 | M184: 0.9661017 | N184: 0.2155477 | O184: 1 | P184: 1 | Q184: 0.30177504
A185: 29.5.11.4.2 PROTEIN.DEGRADATION.UBIQUITIN.E3.RING | B185: 426 | E185: 0.31 | H185: 1.6156749 | K185: 1.6156749 | N185: 0 | Q185: 0.045482974
A186: 29.5.11.4.3.1 PROTEIN.DEGRADATION.UBIQUITIN.E3.SCF.SKP | B186: 23 | C186: -0.17 | D186: 0.61 | E186: 0.76 | F186: -1.2333604 | G186: 1.5950828 | H186: 1.5620285 | I186: 0 | J186: 1.5950828 | K186: 0 | L186: 0.20050125 | M186: 0.017574692 | N186: 0.023423424 | O186: 0.33251727 | P186: 0.049702525 | Q186: 0.07093363
A187: 29.5.11.4.3.2 PROTEIN.DEGRADATION.UBIQUITIN.E3.SCF.FBOX | B187: 252 | C187: 0.22 | D187: 0.3 | E187: 0.39 | F187: 0.994669 | G187: 1.1382322 | H187: 1.6251658 | I187: 0 | J187: 0 | K187: 1.6251658 | L187: 0.47387174 | M187: 0.14819427 | N187: 0 | O187: 0.8120102 | P187: 0.4208307 | Q187: 0.04298493
A188: 29.5.11.4.5.2 PROTEIN.DEGRADATION.UBIQUITIN.E3.BTB/POZ CULLIN3.BTB/POZ | B188: 20 | C188: 0.4 | D188: 0.25 | E188: 0.22 | F188: 1.3931993 | G188: 1.4748899 | H188: 1.2586591 | I188: 0 | J188: 0 | K188: 0 | L188: 0.0882353 | M188: 0.049382716 | N188: 0.18491921 | O188: 0.31629378 | P188: 0.10522377 | Q188: 0.2778259
A189: 29.5.11.5 PROTEIN.DEGRADATION.UBIQUITIN.UBIQUITIN PROTEASE | B189: 51 | C189: 0.2 | D189: 0.55 | E189: 0.44 | F189: 1.1057119 | G189: 1.0373645 | H189: 0.9551528 | I189: 0 | J189: 0 | K189: 0 | L189: 0.28781205 | M189: 0.3882545 | N189: 0.525394 | O189: 0.6788878 | P189: 0.55352974 | Q189: 0.7164055
A190: 29.5.11.20 PROTEIN.DEGRADATION.UBIQUITIN.PROTEASOM | B190: 132 | C190: 0.31 | D190: 0.7 | E190: 0.69 | F190: 1.0577909 | G190: 2.0206797 | H190: 1.4840328 | I190: 0 | J190: 2.0206797 | K190: 0 | L190: 0.34324324 | M190: 0 | N190: 0.010385756 | O190: 0.7716989 | P190: 0.000817546 | Q190: 0.10872638
A191: 29.6 PROTEIN.FOLDING | B191: 135 | C191: -0.47 | D191: -0.35 | E191: -0.3 | F191: -1.5304716 | G191: -1.8820784 | H191: -1.7265149 | I191: 0 | J191: -1.8820784 | K191: -1.7265149 | L191: 0 | M191: 0 | N191: 0 | O191: 0.12362784 | P191: 0.0056508356 | Q191: 0.021872591
A192: 29.7 PROTEIN.GLYCOSYLATION | B192: 56 | C192: -0.27 | D192: 0.52 | E192: 0.2 | F192: -1.3398213 | G192: 0.99648386 | H192: 0.81657654 | I192: 0 | J192: 0 | K192: 0 | L192: 0.06501548 | M192: 0.4431818 | N192: 0.7698962 | O192: 0.23328233 | P192: 0.626879 | Q192: 0.8993431
A193: 29.8 PROTEIN.ASSEMBLY AND COFACTOR LIGATION | B193: 40 | C193: 0.28 | D193: -0.45 | E193: -0.36 | F193: 0.4490113 | G193: -1.9078412 | H193: -1.8042482 | I193: 0 | J193: -1.9078412 | K193: -1.8042482 | L193: 0.9984051 | M193: 0.0025445293 | N193: 0.0024096386 | O193: 1 | P193: 0.005066991 | Q193: 0.011391057
A194: 30.1 SIGNALLING.IN SUGAR AND NUTRIENT PHYSIOLOGY | B194: 53 | C194: -0.25 | D194: 0.28 | E194: 0.31 | F194: -1.1654816 | G194: 1.7488029 | H194: 1.2129124 | I194: 0 | J194: 1.7488029 | K194: 0 | L194: 0.21367522 | M194: 0 | N194: 0.1785124 | O194: 0.3993177 | P194: 0.014646194 | Q194: 0.33346885
A195: 30.2.2 SIGNALLING.RECEPTOR KINASES.LEUCINE RICH REPEAT II | B195: 22 | C195: 0.55 | D195: -0.14 | E195: -0.11 | F195: 1.2055522 | G195: -0.7729019 | H195: -0.804694 | I195: 0 | J195: 0 | K195: 0 | L195: 0.21237458 | M195: 0.80093676 | N195: 0.73730683 | O195: 0.5399344 | P195: 0.9985595 | Q195: 0.9235061
A196: 30.2.3 SIGNALLING.RECEPTOR KINASES.LEUCINE RICH REPEAT III | B196: 55 | C196: -0.49 | D196: -0.56 | E196: -0.74 | F196: -1.3925787 | G196: -2.4678848 | H196: -2.1773834 | I196: 0 | J196: -2.4678848 | K196: -2.1773834 | L196: 0.039215688 | M196: 0 | N196: 0 | O196: 0.20136246 | P196: 0 | Q196: 0.00014285716
A197: 30.2.6 SIGNALLING.RECEPTOR KINASES.LEUCINE RICH REPEAT VI | B197: 21 | C197: -0.19 | D197: -0.38 | E197: -0.31 | F197: -0.6740523 | G197: -1.1350424 | H197: -1.2050003 | I197: 0 | J197: 0 | K197: 0 | L197: 0.92201835 | M197: 0.27845037 | N197: 0.2454955 | O197: 0.98509914 | P197: 0.43885782 | Q197: 0.35838315
A198: 30.2.8.2 SIGNALLING.RECEPTOR KINASES.LEUCINE RICH REPEAT VIII.VIII-2 | B198: 17 | C198: -0.24 | D198: 0.29 | F198: -1.4892657 | G198: 1.2569132 | I198: 0 | J198: 0 | L198: 0.04488778 | M198: 0.17495711 | O198: 0.1430952 | P198: 0.29441184
A199: 30.2.9 SIGNALLING.RECEPTOR KINASES.LEUCINE RICH REPEAT IX | B199: 16 | C199: 0.25 | D199: -0.56 | F199: 0.73300135 | G199: -1.3297093 | I199: 0 | J199: 0 | L199: 0.82608694 | M199: 0.1298077 | O199: 1 | P199: 0.20371526
A200: 30.2.10 SIGNALLING.RECEPTOR KINASES.LEUCINE RICH REPEAT X | B200: 21 | C200: -0.19 | D200: 0.52 | E200: 0.53 | F200: -0.999755 | G200: 1.0601351 | H200: 1.1215502 | I200: 0 | J200: 0 | K200: 0 | L200: 0.45244217 | M200: 0.37372014 | N200: 0.3298791 | O200: 0.6084806 | P200: 0.5296068 | Q200: 0.4662635
... 56 more rows

Sheet Sheet3
A1: BIN | B1: v10_low | C1: v10_high | D1: v12_high | E1: Column1 | F1: Column2
A2: 26.10 MISC.CYTOCHROME P450 | B2: 2.0621443 | C2: 2.1146362 | D2: 1.9281881 | E2: =SUM(Table3[[#This Row],[v10_low]:[v12_high]]) -> 6.1049686 | F2: =AVERAGE(Table3[[#This Row],[v10_low]:[v12_high]]) -> 2.034989533
A3: 17.1.2 HORMONE METABOLISM.ABSCISIC ACID.SIGNAL TRANSDUCTION | B3: 1.8800068 | C3: 2.1878896 | D3: 1.9336845 | E3: =SUM(Table3[[#This Row],[v10_low]:[v12_high]]) -> 6.0015809 | F3: =AVERAGE(Table3[[#This Row],[v10_low]:[v12_high]]) -> 2.000526967
A4: 17.1.3 HORMONE METABOLISM.ABSCISIC ACID.INDUCED-REGULATED-RESPONSIVE-ACTIVATED | B4: 1.8437324 | C4: 1.9730338 | D4: 2.0659008 | E4: =SUM(Table3[[#This Row],[v10_low]:[v12_high]]) -> 5.882667 | F4: =AVERAGE(Table3[[#This Row],[v10_low]:[v12_high]]) -> 1.960889
A5: 27.3.32 RNA.REGULATION OF TRANSCRIPTION.WRKY DOMAIN TRANSCRIPTION FACTOR FAMILY | B5: 0 | C5: 2.409604 | D5: 2.212452 | E5: =SUM(Table3[[#This Row],[v10_low]:[v12_high]]) -> 4.622056 | F5: =AVERAGE(Table3[[#This Row],[v10_low]:[v12_high]]) -> 1.540685333
A6: 1.2.6 PS.PHOTORESPIRATION.HYDROXYPYRUVATE REDUCTASE | B6: 0 | C6: 0 | D6: 0 | E6: =SUM(Table3[[#This Row],[v10_low]:[v12_high]]) -> 0 | F6: =AVERAGE(Table3[[#This Row],[v10_low]:[v12_high]]) -> 0
A7: 26.9 MISC.GLUTATHIONE S TRANSFERASES | B7: 0 | C7: 2.2536116 | D7: 1.9930892 | E7: =SUM(Table3[[#This Row],[v10_low]:[v12_high]]) -> 4.2467008 | F7: =AVERAGE(Table3[[#This Row],[v10_low]:[v12_high]]) -> 1.415566933
A8: 29.5.11.3 PROTEIN.DEGRADATION.UBIQUITIN.E2 | B8: 0 | C8: 2.061539 | D8: 2.1349325 | E8: =SUM(Table3[[#This Row],[v10_low]:[v12_high]]) -> 4.1964715 | F8: =AVERAGE(Table3[[#This Row],[v10_low]:[v12_high]]) -> 1.398823833
A9: 2.1.2.2 MAJOR CHO METABOLISM.SYNTHESIS.STARCH.STARCH SYNTHASE | B9: 0 | C9: 0 | D9: 0 | E9: =SUM(Table3[[#This Row],[v10_low]:[v12_high]]) -> 0 | F9: =AVERAGE(Table3[[#This Row],[v10_low]:[v12_high]]) -> 0
A10: 27.3.22 RNA.REGULATION OF TRANSCRIPTION.HB,HOMEOBOX TRANSCRIPTION FACTOR FAMILY | B10: 0 | C10: 2.1126926 | D10: 2.0057077 | E10: =SUM(Table3[[#This Row],[v10_low]:[v12_high]]) -> 4.1184003 | F10: =AVERAGE(Table3[[#This Row],[v10_low]:[v12_high]]) -> 1.3728001
A11: 3.2.3 MINOR CHO METABOLISM.TREHALOSE.POTENTIAL TPS/TPP | B11: 0 | C11: 0 | D11: 0 | E11: =SUM(Table3[[#This Row],[v10_low]:[v12_high]]) -> 0 | F11: =AVERAGE(Table3[[#This Row],[v10_low]:[v12_high]]) -> 0
A12: 3.5 MINOR CHO METABOLISM.OTHERS | B12: 0 | C12: 0 | D12: 0 | E12: =SUM(Table3[[#This Row],[v10_low]:[v12_high]]) -> 0 | F12: =AVERAGE(Table3[[#This Row],[v10_low]:[v12_high]]) -> 0
A13: 3.6 MINOR CHO METABOLISM.CALLOSE | B13: 0 | C13: 0 | D13: 0 | E13: =SUM(Table3[[#This Row],[v10_low]:[v12_high]]) -> 0 | F13: =AVERAGE(Table3[[#This Row],[v10_low]:[v12_high]]) -> 0
A14: 4.1.16 GLYCOLYSIS.CYTOSOLIC BRANCH.PHOSPHO-ENOL-PYRUVATE CARBOXYLASE KINASE (PPCK) | B14: 0 | C14: 0 | D14: 0 | E14: =SUM(Table3[[#This Row],[v10_low]:[v12_high]]) -> 0 | F14: =AVERAGE(Table3[[#This Row],[v10_low]:[v12_high]]) -> 0
A15: 8.1.1.1 TCA / ORG TRANSFORMATION.TCA.PYRUVATE DH.E1 | B15: 0 | C15: 0 | D15: 0 | E15: =SUM(Table3[[#This Row],[v10_low]:[v12_high]]) -> 0 | F15: =AVERAGE(Table3[[#This Row],[v10_low]:[v12_high]]) -> 0
A16: 9.1.2 MITOCHONDRIAL ELECTRON TRANSPORT / ATP SYNTHESIS.NADH-DH.LOCALISATION NOT CLEAR | B16: 0 | C16: 0 | D16: 0 | E16: =SUM(Table3[[#This Row],[v10_low]:[v12_high]]) -> 0 | F16: =AVERAGE(Table3[[#This Row],[v10_low]:[v12_high]]) -> 0
A17: 9.6 MITOCHONDRIAL ELECTRON TRANSPORT / ATP SYNTHESIS.CYTOCHROME C | B17: 0 | C17: 0 | D17: 0 | E17: =SUM(Table3[[#This Row],[v10_low]:[v12_high]]) -> 0 | F17: =AVERAGE(Table3[[#This Row],[v10_low]:[v12_high]]) -> 0
A18: 9.7 MITOCHONDRIAL ELECTRON TRANSPORT / ATP SYNTHESIS.CYTOCHROME C OXIDASE | B18: 0 | C18: 0 | D18: 0 | E18: =SUM(Table3[[#This Row],[v10_low]:[v12_high]]) -> 0 | F18: =AVERAGE(Table3[[#This Row],[v10_low]:[v12_high]]) -> 0
A19: 9.9 MITOCHONDRIAL ELECTRON TRANSPORT / ATP SYNTHESIS.F1-ATPASE | B19: 0 | C19: 0 | D19: 0 | E19: =SUM(Table3[[#This Row],[v10_low]:[v12_high]]) -> 0 | F19: =AVERAGE(Table3[[#This Row],[v10_low]:[v12_high]]) -> 0
A20: 10.1.6 CELL WALL.PRECURSOR SYNTHESIS.GAE | B20: 0 | C20: 0 | D20: 0 | E20: =SUM(Table3[[#This Row],[v10_low]:[v12_high]]) -> 0 | F20: =AVERAGE(Table3[[#This Row],[v10_low]:[v12_high]]) -> 0
A21: 20.1 STRESS.BIOTIC | B21: 0 | C21: 1.979799 | D21: 2.0292907 | E21: =SUM(Table3[[#This Row],[v10_low]:[v12_high]]) -> 4.0090897 | F21: =AVERAGE(Table3[[#This Row],[v10_low]:[v12_high]]) -> 1.336363233
A22: 10.2.1 CELL WALL.CELLULOSE SYNTHESIS.CELLULOSE SYNTHASE | B22: 0 | C22: 0 | D22: 0 | E22: =SUM(Table3[[#This Row],[v10_low]:[v12_high]]) -> 0 | F22: =AVERAGE(Table3[[#This Row],[v10_low]:[v12_high]]) -> 0
A23: 34.13 TRANSPORT.PEPTIDES AND OLIGOPEPTIDES | B23: 0 | C23: 1.9570346 | D23: 1.9544774 | E23: =SUM(Table3[[#This Row],[v10_low]:[v12_high]]) -> 3.911512 | F23: =AVERAGE(Table3[[#This Row],[v10_low]:[v12_high]]) -> 1.303837333
A24: 10.6.1 CELL WALL.DEGRADATION.CELLULASES AND BETA -1,4-GLUCANASES | B24: 0 | C24: 0 | D24: 0 | E24: =SUM(Table3[[#This Row],[v10_low]:[v12_high]]) -> 0 | F24: =AVERAGE(Table3[[#This Row],[v10_low]:[v12_high]]) -> 0
A25: 34.4 TRANSPORT.NITRATE | B25: 2.0067422 | C25: 1.7937611 | D25: 0 | E25: =SUM(Table3[[#This Row],[v10_low]:[v12_high]]) -> 3.8005033 | F25: =AVERAGE(Table3[[#This Row],[v10_low]:[v12_high]]) -> 1.266834433
A26: 29.3.4.3 PROTEIN.TARGETING.SECRETORY PATHWAY.VACUOLE | B26: 0 | C26: 1.8061992 | D26: 1.9007926 | E26: =SUM(Table3[[#This Row],[v10_low]:[v12_high]]) -> 3.7069918 | F26: =AVERAGE(Table3[[#This Row],[v10_low]:[v12_high]]) -> 1.235663933
A27: 10.7 CELL WALL.MODIFICATION | B27: 0 | C27: 0 | D27: 0 | E27: =SUM(Table3[[#This Row],[v10_low]:[v12_high]]) -> 0 | F27: =AVERAGE(Table3[[#This Row],[v10_low]:[v12_high]]) -> 0
A28: 11.9.3.2 LIPID METABOLISM.LIPID DEGRADATION.LYSOPHOSPHOLIPASES.CARBOXYLESTERASE | B28: 0 | C28: 1.9607472 | D28: 1.7419404 | E28: =SUM(Table3[[#This Row],[v10_low]:[v12_high]]) -> 3.7026876 | F28: =AVERAGE(Table3[[#This Row],[v10_low]:[v12_high]]) -> 1.2342292
A29: 34.3 TRANSPORT.AMINO ACIDS | B29: 0 | C29: 1.7945993 | D29: 1.8843045 | E29: =SUM(Table3[[#This Row],[v10_low]:[v12_high]]) -> 3.6789038 | F29: =AVERAGE(Table3[[#This Row],[v10_low]:[v12_high]]) -> 1.226301267
A30: 30.2.20 SIGNALLING.RECEPTOR KINASES.WHEAT LRK10 LIKE | B30: 0 | C30: 1.8332494 | D30: 1.830707 | E30: =SUM(Table3[[#This Row],[v10_low]:[v12_high]]) -> 3.6639564 | F30: =AVERAGE(Table3[[#This Row],[v10_low]:[v12_high]]) -> 1.2213188
A31: 11.6 LIPID METABOLISM.LIPID TRANSFER PROTEINS ETC | B31: 0 | C31: 0 | D31: 0 | E31: =SUM(Table3[[#This Row],[v10_low]:[v12_high]]) -> 0 | F31: =AVERAGE(Table3[[#This Row],[v10_low]:[v12_high]]) -> 0
A32: 11.8 LIPID METABOLISM.EXOTICS(STEROIDS, SQUALENE ETC) | B32: 0 | C32: 0 | D32: 0 | E32: =SUM(Table3[[#This Row],[v10_low]:[v12_high]]) -> 0 | F32: =AVERAGE(Table3[[#This Row],[v10_low]:[v12_high]]) -> 0
A33: 11.8.1 LIPID METABOLISM.EXOTICS (STEROIDS, SQUALENE ETC).SPHINGOLIPIDS | B33: 0 | C33: 0 | D33: 0 | E33: =SUM(Table3[[#This Row],[v10_low]:[v12_high]]) -> 0 | F33: =AVERAGE(Table3[[#This Row],[v10_low]:[v12_high]]) -> 0
A34: 11.9.2 LIPID METABOLISM.LIPID DEGRADATION.LIPASES | B34: 0 | C34: 0 | D34: 0 | E34: =SUM(Table3[[#This Row],[v10_low]:[v12_high]]) -> 0 | F34: =AVERAGE(Table3[[#This Row],[v10_low]:[v12_high]]) -> 0
A35: 20.2.4 STRESS.ABIOTIC.TOUCH/WOUNDING | B35: 0 | C35: 1.9003338 | D35: 1.6725432 | E35: =SUM(Table3[[#This Row],[v10_low]:[v12_high]]) -> 3.572877 | F35: =AVERAGE(Table3[[#This Row],[v10_low]:[v12_high]]) -> 1.190959
A36: 11.9.3 LIPID METABOLISM.LIPID DEGRADATION.LYSOPHOSPHOLIPASES | B36: 0 | C36: 0 | D36: 0 | E36: =SUM(Table3[[#This Row],[v10_low]:[v12_high]]) -> 0 | F36: =AVERAGE(Table3[[#This Row],[v10_low]:[v12_high]]) -> 0
A37: 11.9.2.1 LIPID METABOLISM.LIPID DEGRADATION.LIPASES.TRIACYLGLYCEROL LIPASE | B37: 0 | C37: 1.9041566 | D37: 1.6619874 | E37: =SUM(Table3[[#This Row],[v10_low]:[v12_high]]) -> 3.566144 | F37: =AVERAGE(Table3[[#This Row],[v10_low]:[v12_high]]) -> 1.188714667
A38: 29.5.2 PROTEIN.DEGRADATION.AUTOPHAGY | B38: 0 | C38: 1.7256074 | D38: 1.8232836 | E38: =SUM(Table3[[#This Row],[v10_low]:[v12_high]]) -> 3.548891 | F38: =AVERAGE(Table3[[#This Row],[v10_low]:[v12_high]]) -> 1.182963667
A39: 11.9.4.3 LIPID METABOLISM.LIPID DEGRADATION.BETA-OXIDATION.ENOYL COA HYDRATASE | B39: 0 | C39: 0 | D39: 0 | E39: =SUM(Table3[[#This Row],[v10_low]:[v12_high]]) -> 0 | F39: =AVERAGE(Table3[[#This Row],[v10_low]:[v12_high]]) -> 0
A40: 29.5.3 PROTEIN.DEGRADATION.CYSTEINE PROTEASE | B40: 1.8622098 | C40: 1.680345 | D40: 0 | E40: =SUM(Table3[[#This Row],[v10_low]:[v12_high]]) -> 3.5425548 | F40: =AVERAGE(Table3[[#This Row],[v10_low]:[v12_high]]) -> 1.1808516
A41: 34.7 TRANSPORT.PHOSPHATE | B41: 0 | C41: 1.8090614 | D41: 1.6956209 | E41: =SUM(Table3[[#This Row],[v10_low]:[v12_high]]) -> 3.5046823 | F41: =AVERAGE(Table3[[#This Row],[v10_low]:[v12_high]]) -> 1.168227433
A42: 13.2.6.3 AMINO ACID METABOLISM.DEGRADATION.AROMATIC AA.TRYPTOPHAN | B42: 0 | C42: 0 | D42: 0 | E42: =SUM(Table3[[#This Row],[v10_low]:[v12_high]]) -> 0 | F42: =AVERAGE(Table3[[#This Row],[v10_low]:[v12_high]]) -> 0
A43: 15.2 METAL HANDLING.BINDING, CHELATION AND STORAGE | B43: 0 | C43: 0 | D43: 0 | E43: =SUM(Table3[[#This Row],[v10_low]:[v12_high]]) -> 0 | F43: =AVERAGE(Table3[[#This Row],[v10_low]:[v12_high]]) -> 0
A44: 27.3.71 RNA.REGULATION OF TRANSCRIPTION.SNF7 | B44: 0 | C44: 1.7228131 | D44: 1.7758546 | E44: =SUM(Table3[[#This Row],[v10_low]:[v12_high]]) -> 3.4986677 | F44: =AVERAGE(Table3[[#This Row],[v10_low]:[v12_high]]) -> 1.166222567
A45: 16.7 SECONDARY METABOLISM.WAX | B45: 0 | C45: 0 | D45: 0 | E45: =SUM(Table3[[#This Row],[v10_low]:[v12_high]]) -> 0 | F45: =AVERAGE(Table3[[#This Row],[v10_low]:[v12_high]]) -> 0
A46: 30.2.19 SIGNALLING.RECEPTOR KINASES.LEGUME-LECTIN | B46: 0 | C46: 1.6061851 | D46: 1.8650775 | E46: =SUM(Table3[[#This Row],[v10_low]:[v12_high]]) -> 3.4712626 | F46: =AVERAGE(Table3[[#This Row],[v10_low]:[v12_high]]) -> 1.157087533
A47: 29.5.11.1 PROTEIN.DEGRADATION.UBIQUITIN.UBIQUITIN | B47: 0 | C47: 1.7962455 | D47: 1.6604366 | E47: =SUM(Table3[[#This Row],[v10_low]:[v12_high]]) -> 3.4566821 | F47: =AVERAGE(Table3[[#This Row],[v10_low]:[v12_high]]) -> 1.152227367
A48: 20.2.2 STRESS.ABIOTIC.COLD | B48: 0 | C48: 1.6526372 | D48: 1.7346632 | E48: =SUM(Table3[[#This Row],[v10_low]:[v12_high]]) -> 3.3873004 | F48: =AVERAGE(Table3[[#This Row],[v10_low]:[v12_high]]) -> 1.129100133
A49: 27.3.8 RNA.REGULATION OF TRANSCRIPTION.C2C2(ZN) DOF ZINC FINGER FAMILY | B49: 0 | C49: 0 | D49: 2.132952 | E49: =SUM(Table3[[#This Row],[v10_low]:[v12_high]]) -> 2.132952 | F49: =AVERAGE(Table3[[#This Row],[v10_low]:[v12_high]]) -> 0.710984
A50: 27.3.40 RNA.REGULATION OF TRANSCRIPTION.AUX/IAA FAMILY | B50: 2.0237858 | C50: 0 | D50: 0 | E50: =SUM(Table3[[#This Row],[v10_low]:[v12_high]]) -> 2.0237858 | F50: =AVERAGE(Table3[[#This Row],[v10_low]:[v12_high]]) -> 0.6745952667
A51: 17.2.2 HORMONE METABOLISM.AUXIN.SIGNAL TRANSDUCTION | B51: 0 | C51: 0 | D51: 0 | E51: =SUM(Table3[[#This Row],[v10_low]:[v12_high]]) -> 0 | F51: =AVERAGE(Table3[[#This Row],[v10_low]:[v12_high]]) -> 0
A52: 17.2.3 HORMONE METABOLISM.AUXIN.INDUCED-REGULATED-RESPONSIVE-ACTIVATED | B52: 0 | C52: 0 | D52: 0 | E52: =SUM(Table3[[#This Row],[v10_low]:[v12_high]]) -> 0 | F52: =AVERAGE(Table3[[#This Row],[v10_low]:[v12_high]]) -> 0
A53: 17.3.2.99 HORMONE METABOLISM.BRASSINOSTEROID.SIGNAL TRANSDUCTION.OTHER | B53: 0 | C53: 0 | D53: 0 | E53: =SUM(Table3[[#This Row],[v10_low]:[v12_high]]) -> 0 | F53: =AVERAGE(Table3[[#This Row],[v10_low]:[v12_high]]) -> 0
A54: 17.4.1 HORMONE METABOLISM.CYTOKININ.SYNTHESIS-DEGRADATION | B54: 0 | C54: 0 | D54: 0 | E54: =SUM(Table3[[#This Row],[v10_low]:[v12_high]]) -> 0 | F54: =AVERAGE(Table3[[#This Row],[v10_low]:[v12_high]]) -> 0
A55: 17.5.1 HORMONE METABOLISM.ETHYLENE.SYNTHESIS-DEGRADATION | B55: 0 | C55: 0 | D55: 0 | E55: =SUM(Table3[[#This Row],[v10_low]:[v12_high]]) -> 0 | F55: =AVERAGE(Table3[[#This Row],[v10_low]:[v12_high]]) -> 0
A56: 29.5.11.20 PROTEIN.DEGRADATION.UBIQUITIN.PROTEASOM | B56: 0 | C56: 2.0206797 | D56: 0 | E56: =SUM(Table3[[#This Row],[v10_low]:[v12_high]]) -> 2.0206797 | F56: =AVERAGE(Table3[[#This Row],[v10_low]:[v12_high]]) -> 0.6735599
A57: 17.5.3 HORMONE METABOLISM.ETHYLENE.INDUCED-REGULATED-RESPONSIVE-ACTIVATED | B57: 0 | C57: 0 | D57: 0 | E57: =SUM(Table3[[#This Row],[v10_low]:[v12_high]]) -> 0 | F57: =AVERAGE(Table3[[#This Row],[v10_low]:[v12_high]]) -> 0
A58: 17.8.1 HORMONE METABOLISM.SALICYLIC ACID.SYNTHESIS-DEGRADATION | B58: 0 | C58: 0 | D58: 0 | E58: =SUM(Table3[[#This Row],[v10_low]:[v12_high]]) -> 0 | F58: =AVERAGE(Table3[[#This Row],[v10_low]:[v12_high]]) -> 0
A59: 18 CO-FACTOR AND VITAMINE METABOLISM | B59: 0 | C59: 0 | D59: 0 | E59: =SUM(Table3[[#This Row],[v10_low]:[v12_high]]) -> 0 | F59: =AVERAGE(Table3[[#This Row],[v10_low]:[v12_high]]) -> 0
A60: 18.7 CO-FACTOR AND VITAMINE METABOLISM.IRON-SULPHUR CLUSTERS | B60: 0 | C60: 0 | D60: 0 | E60: =SUM(Table3[[#This Row],[v10_low]:[v12_high]]) -> 0 | F60: =AVERAGE(Table3[[#This Row],[v10_low]:[v12_high]]) -> 0
A61: 2.2.2.1.2 MAJOR CHO METABOLISM.DEGRADATION.STARCH.STARCH CLEAVAGE.BETA AMYLASE | B61: 1.9691802 | C61: 0 | D61: 0 | E61: =SUM(Table3[[#This Row],[v10_low]:[v12_high]]) -> 1.9691802 | F61: =AVERAGE(Table3[[#This Row],[v10_low]:[v12_high]]) -> 0.6563934
A62: 20.1.7 STRESS.BIOTIC.PR-PROTEINS | B62: 0 | C62: 0 | D62: 0 | E62: =SUM(Table3[[#This Row],[v10_low]:[v12_high]]) -> 0 | F62: =AVERAGE(Table3[[#This Row],[v10_low]:[v12_high]]) -> 0
A63: 26.12 MISC.PEROXIDASES | B63: 0 | C63: 0 | D63: 1.8991888 | E63: =SUM(Table3[[#This Row],[v10_low]:[v12_high]]) -> 1.8991888 | F63: =AVERAGE(Table3[[#This Row],[v10_low]:[v12_high]]) -> 0.6330629333
A64: 20.2.1 STRESS.ABIOTIC.HEAT | B64: 0 | C64: 0 | D64: 0 | E64: =SUM(Table3[[#This Row],[v10_low]:[v12_high]]) -> 0 | F64: =AVERAGE(Table3[[#This Row],[v10_low]:[v12_high]]) -> 0
A65: 35.1.3 NOT ASSIGNED.NO ONTOLOGY.ARMADILLO/BETA-CATENIN REPEAT FAMILY PROTEIN | B65: 0 | C65: 1.8937547 | D65: 0 | E65: =SUM(Table3[[#This Row],[v10_low]:[v12_high]]) -> 1.8937547 | F65: =AVERAGE(Table3[[#This Row],[v10_low]:[v12_high]]) -> 0.6312515667
A66: 20.2.3 STRESS.ABIOTIC.DROUGHT/SALT | B66: 0 | C66: 0 | D66: 0 | E66: =SUM(Table3[[#This Row],[v10_low]:[v12_high]]) -> 0 | F66: =AVERAGE(Table3[[#This Row],[v10_low]:[v12_high]]) -> 0
A67: 27.3.24 RNA.REGULATION OF TRANSCRIPTION.MADS BOX TRANSCRIPTION FACTOR FAMILY | B67: 1.8603693 | C67: 0 | D67: 0 | E67: =SUM(Table3[[#This Row],[v10_low]:[v12_high]]) -> 1.8603693 | F67: =AVERAGE(Table3[[#This Row],[v10_low]:[v12_high]]) -> 0.6201231
A68: 20.2.5 STRESS.ABIOTIC.LIGHT | B68: 0 | C68: 0 | D68: 0 | E68: =SUM(Table3[[#This Row],[v10_low]:[v12_high]]) -> 0 | F68: =AVERAGE(Table3[[#This Row],[v10_low]:[v12_high]]) -> 0
A69: 20.2.99 STRESS.ABIOTIC.UNSPECIFIED | B69: 0 | C69: 0 | D69: 0 | E69: =SUM(Table3[[#This Row],[v10_low]:[v12_high]]) -> 0 | F69: =AVERAGE(Table3[[#This Row],[v10_low]:[v12_high]]) -> 0
A70: 21.1 REDOX.THIOREDOXIN | B70: 0 | C70: 0 | D70: 0 | E70: =SUM(Table3[[#This Row],[v10_low]:[v12_high]]) -> 0 | F70: =AVERAGE(Table3[[#This Row],[v10_low]:[v12_high]]) -> 0
A71: 21.1.1 REDOX.THIOREDOXIN.PDIL | B71: 0 | C71: 0 | D71: 0 | E71: =SUM(Table3[[#This Row],[v10_low]:[v12_high]]) -> 0 | F71: =AVERAGE(Table3[[#This Row],[v10_low]:[v12_high]]) -> 0
A72: 21.2 REDOX.ASCORBATE AND GLUTATHIONE | B72: 0 | C72: 0 | D72: 0 | E72: =SUM(Table3[[#This Row],[v10_low]:[v12_high]]) -> 0 | F72: =AVERAGE(Table3[[#This Row],[v10_low]:[v12_high]]) -> 0
A73: 21.2.1 REDOX.ASCORBATE AND GLUTATHIONE.ASCORBATE | B73: 0 | C73: 0 | D73: 0 | E73: =SUM(Table3[[#This Row],[v10_low]:[v12_high]]) -> 0 | F73: =AVERAGE(Table3[[#This Row],[v10_low]:[v12_high]]) -> 0
A74: 21.2.2 REDOX.ASCORBATE AND GLUTATHIONE.GLUTATHIONE | B74: 0 | C74: 0 | D74: 0 | E74: =SUM(Table3[[#This Row],[v10_low]:[v12_high]]) -> 0 | F74: =AVERAGE(Table3[[#This Row],[v10_low]:[v12_high]]) -> 0
A75: 21.4 REDOX.GLUTAREDOXINS | B75: 0 | C75: 0 | D75: 0 | E75: =SUM(Table3[[#This Row],[v10_low]:[v12_high]]) -> 0 | F75: =AVERAGE(Table3[[#This Row],[v10_low]:[v12_high]]) -> 0
A76: 21.6 REDOX.DISMUTASES AND CATALASES | B76: 0 | C76: 0 | D76: 0 | E76: =SUM(Table3[[#This Row],[v10_low]:[v12_high]]) -> 0 | F76: =AVERAGE(Table3[[#This Row],[v10_low]:[v12_high]]) -> 0
A77: 23.2 NUCLEOTIDE METABOLISM.DEGRADATION | B77: 0 | C77: 0 | D77: 0 | E77: =SUM(Table3[[#This Row],[v10_low]:[v12_high]]) -> 0 | F77: =AVERAGE(Table3[[#This Row],[v10_low]:[v12_high]]) -> 0
A78: 23.3.3 NUCLEOTIDE METABOLISM.SALVAGE.NUDIX HYDROLASES | B78: 0 | C78: 0 | D78: 0 | E78: =SUM(Table3[[#This Row],[v10_low]:[v12_high]]) -> 0 | F78: =AVERAGE(Table3[[#This Row],[v10_low]:[v12_high]]) -> 0
A79: 23.4.99 NUCLEOTIDE METABOLISM.PHOSPHOTRANSFER AND PYROPHOSPHATASES.MISC | B79: 0 | C79: 0 | D79: 0 | E79: =SUM(Table3[[#This Row],[v10_low]:[v12_high]]) -> 0 | F79: =AVERAGE(Table3[[#This Row],[v10_low]:[v12_high]]) -> 0
A80: 17.5.2 HORMONE METABOLISM.ETHYLENE.SIGNAL TRANSDUCTION | B80: 0 | C80: 0 | D80: 1.8551253 | E80: =SUM(Table3[[#This Row],[v10_low]:[v12_high]]) -> 1.8551253 | F80: =AVERAGE(Table3[[#This Row],[v10_low]:[v12_high]]) -> 0.6183751
A81: 25.1 C1-METABOLISM.GLYCINE HYDROXYMETHYLTRANSFERASE | B81: 0 | C81: 0 | D81: 0 | E81: =SUM(Table3[[#This Row],[v10_low]:[v12_high]]) -> 0 | F81: =AVERAGE(Table3[[#This Row],[v10_low]:[v12_high]]) -> 0
A82: 26.1 MISC.MISC2 | B82: 0 | C82: 0 | D82: 0 | E82: =SUM(Table3[[#This Row],[v10_low]:[v12_high]]) -> 0 | F82: =AVERAGE(Table3[[#This Row],[v10_low]:[v12_high]]) -> 0
A83: 26.2 MISC.UDP GLUCOSYL AND GLUCORONYL TRANSFERASES | B83: 0 | C83: 0 | D83: 0 | E83: =SUM(Table3[[#This Row],[v10_low]:[v12_high]]) -> 0 | F83: =AVERAGE(Table3[[#This Row],[v10_low]:[v12_high]]) -> 0
A84: 26.3 MISC.GLUCO-, GALACTO- AND MANNOSIDASES | B84: 0 | C84: 0 | D84: 0 | E84: =SUM(Table3[[#This Row],[v10_low]:[v12_high]]) -> 0 | F84: =AVERAGE(Table3[[#This Row],[v10_low]:[v12_high]]) -> 0
A85: 24 BIODEGRADATION OF XENOBIOTICS | B85: 0 | C85: 1.8502047 | D85: 0 | E85: =SUM(Table3[[#This Row],[v10_low]:[v12_high]]) -> 1.8502047 | F85: =AVERAGE(Table3[[#This Row],[v10_low]:[v12_high]]) -> 0.6167349
A86: 26.4 MISC.BETA 1,3 GLUCAN HYDROLASES | B86: 0 | C86: 0 | D86: 0 | E86: =SUM(Table3[[#This Row],[v10_low]:[v12_high]]) -> 0 | F86: =AVERAGE(Table3[[#This Row],[v10_low]:[v12_high]]) -> 0
A87: 29.3.4.99 PROTEIN.TARGETING.SECRETORY PATHWAY.UNSPECIFIED | B87: 0 | C87: 1.8398017 | D87: 0 | E87: =SUM(Table3[[#This Row],[v10_low]:[v12_high]]) -> 1.8398017 | F87: =AVERAGE(Table3[[#This Row],[v10_low]:[v12_high]]) -> 0.6132672333
A88: 26.5 MISC.ACYL TRANSFERASES | B88: 0 | C88: 0 | D88: 0 | E88: =SUM(Table3[[#This Row],[v10_low]:[v12_high]]) -> 0 | F88: =AVERAGE(Table3[[#This Row],[v10_low]:[v12_high]]) -> 0
A89: 26.6 MISC.O-METHYL TRANSFERASES | B89: 0 | C89: 0 | D89: 0 | E89: =SUM(Table3[[#This Row],[v10_low]:[v12_high]]) -> 0 | F89: =AVERAGE(Table3[[#This Row],[v10_low]:[v12_high]]) -> 0
A90: 26.7 MISC.OXIDASES - COPPER, FLAVONE ETC | B90: 0 | C90: 0 | D90: 0 | E90: =SUM(Table3[[#This Row],[v10_low]:[v12_high]]) -> 0 | F90: =AVERAGE(Table3[[#This Row],[v10_low]:[v12_high]]) -> 0
A91: 26.8 MISC.NITRILASES, *NITRILE LYASES, BERBERINE BRIDGE ENZYMES, RETICULINE OXIDASES, TROPONINE REDUCTASES | B91: 0 | C91: 0 | D91: 0 | E91: =SUM(Table3[[#This Row],[v10_low]:[v12_high]]) -> 0 | F91: =AVERAGE(Table3[[#This Row],[v10_low]:[v12_high]]) -> 0
A92: 16.8.3.3 SECONDARY METABOLISM.FLAVONOIDS.DIHYDROFLAVONOLS.FLAVONOID 3-MONOOXYGENASE | B92: 0 | C92: 0 | D92: 1.8350034 | E92: =SUM(Table3[[#This Row],[v10_low]:[v12_high]]) -> 1.8350034 | F92: =AVERAGE(Table3[[#This Row],[v10_low]:[v12_high]]) -> 0.6116678
A93: 34.19.1 TRANSPORT.MAJOR INTRINSIC PROTEINS.PIP | B93: 1.8324564 | C93: 0 | D93: 0 | E93: =SUM(Table3[[#This Row],[v10_low]:[v12_high]]) -> 1.8324564 | F93: =AVERAGE(Table3[[#This Row],[v10_low]:[v12_high]]) -> 0.6108188
A94: 27.3.35 RNA.REGULATION OF TRANSCRIPTION.BZIP TRANSCRIPTION FACTOR FAMILY | B94: 0 | C94: 0 | D94: 1.8303448 | E94: =SUM(Table3[[#This Row],[v10_low]:[v12_high]]) -> 1.8303448 | F94: =AVERAGE(Table3[[#This Row],[v10_low]:[v12_high]]) -> 0.6101149333
A95: 26.13 MISC.ACID AND OTHER PHOSPHATASES | B95: 0 | C95: 0 | D95: 0 | E95: =SUM(Table3[[#This Row],[v10_low]:[v12_high]]) -> 0 | F95: =AVERAGE(Table3[[#This Row],[v10_low]:[v12_high]]) -> 0
A96: 26.16 MISC.MYROSINASES-LECTIN-JACALIN | B96: 0 | C96: 0 | D96: 0 | E96: =SUM(Table3[[#This Row],[v10_low]:[v12_high]]) -> 0 | F96: =AVERAGE(Table3[[#This Row],[v10_low]:[v12_high]]) -> 0
A97: 29.4.1.57 PROTEIN.POSTRANSLATIONAL MODIFICATION.KINASE.RECEPTOR LIKE CYTOPLASMATIC KINASE VII | B97: 0 | C97: 1.8263915 | D97: 0 | E97: =SUM(Table3[[#This Row],[v10_low]:[v12_high]]) -> 1.8263915 | F97: =AVERAGE(Table3[[#This Row],[v10_low]:[v12_high]]) -> 0.6087971667
A98: 30.11 SIGNALLING.LIGHT | B98: 1.8233774 | C98: 0 | D98: 0 | E98: =SUM(Table3[[#This Row],[v10_low]:[v12_high]]) -> 1.8233774 | F98: =AVERAGE(Table3[[#This Row],[v10_low]:[v12_high]]) -> 0.6077924667
A99: 26.22 MISC.SHORT CHAIN DEHYDROGENASE/REDUCTASE (SDR) | B99: 0 | C99: 0 | D99: 0 | E99: =SUM(Table3[[#This Row],[v10_low]:[v12_high]]) -> 0 | F99: =AVERAGE(Table3[[#This Row],[v10_low]:[v12_high]]) -> 0
A100: 26.24 MISC.GCN5-RELATED N-ACETYLTRANSFERASE | B100: 0 | C100: 0 | D100: 0 | E100: =SUM(Table3[[#This Row],[v10_low]:[v12_high]]) -> 0 | F100: =AVERAGE(Table3[[#This Row],[v10_low]:[v12_high]]) -> 0
A101: 11.9.4.5 LIPID METABOLISM.LIPID DEGRADATION.BETA-OXIDATION.ACYL-COA THIOESTERASE | B101: 0 | C101: 1.7926122 | D101: 0 | E101: =SUM(Table3[[#This Row],[v10_low]:[v12_high]]) -> 1.7926122 | F101: =AVERAGE(Table3[[#This Row],[v10_low]:[v12_high]]) -> 0.5975374
A102: 27.1 RNA.PROCESSING | B102: 0 | C102: 0 | D102: 0 | E102: =SUM(Table3[[#This Row],[v10_low]:[v12_high]]) -> 0 | F102: =AVERAGE(Table3[[#This Row],[v10_low]:[v12_high]]) -> 0
A103: 27.1.1 RNA.PROCESSING.SPLICING | B103: 0 | C103: 0 | D103: 0 | E103: =SUM(Table3[[#This Row],[v10_low]:[v12_high]]) -> 0 | F103: =AVERAGE(Table3[[#This Row],[v10_low]:[v12_high]]) -> 0
A104: 10.6.2 CELL WALL.DEGRADATION.MANNAN-XYLOSE-ARABINOSE-FUCOSE | B104: 0 | C104: 0 | D104: 1.7798741 | E104: =SUM(Table3[[#This Row],[v10_low]:[v12_high]]) -> 1.7798741 | F104: =AVERAGE(Table3[[#This Row],[v10_low]:[v12_high]]) -> 0.5932913667
A105: 27.1.19 RNA.PROCESSING.RIBONUCLEASES | B105: 0 | C105: 0 | D105: 0 | E105: =SUM(Table3[[#This Row],[v10_low]:[v12_high]]) -> 0 | F105: =AVERAGE(Table3[[#This Row],[v10_low]:[v12_high]]) -> 0
A106: 27.2 RNA.TRANSCRIPTION | B106: 0 | C106: 0 | D106: 0 | E106: =SUM(Table3[[#This Row],[v10_low]:[v12_high]]) -> 0 | F106: =AVERAGE(Table3[[#This Row],[v10_low]:[v12_high]]) -> 0
A107: 27.3 RNA.REGULATION OF TRANSCRIPTION | B107: 0 | C107: 0 | D107: 0 | E107: =SUM(Table3[[#This Row],[v10_low]:[v12_high]]) -> 0 | F107: =AVERAGE(Table3[[#This Row],[v10_low]:[v12_high]]) -> 0
A108: 30.2.17 SIGNALLING.RECEPTOR KINASES.DUF 26 | B108: 0 | C108: 0 | D108: 1.7603866 | E108: =SUM(Table3[[#This Row],[v10_low]:[v12_high]]) -> 1.7603866 | F108: =AVERAGE(Table3[[#This Row],[v10_low]:[v12_high]]) -> 0.5867955333
A109: 27.3.3 RNA.REGULATION OF TRANSCRIPTION.AP2/EREBP, APETALA2/ETHYLENE-RESPONSIVE ELEMENT BINDING PROTEIN FAMILY | B109: 0 | C109: 0 | D109: 1.7488068 | E109: =SUM(Table3[[#This Row],[v10_low]:[v12_high]]) -> 1.7488068 | F109: =AVERAGE(Table3[[#This Row],[v10_low]:[v12_high]]) -> 0.5829356
A110: 27.3.5 RNA.REGULATION OF TRANSCRIPTION.ARR | B110: 0 | C110: 0 | D110: 0 | E110: =SUM(Table3[[#This Row],[v10_low]:[v12_high]]) -> 0 | F110: =AVERAGE(Table3[[#This Row],[v10_low]:[v12_high]]) -> 0
A111: 27.3.6 RNA.REGULATION OF TRANSCRIPTION.BHLH,BASIC HELIX-LOOP-HELIX FAMILY | B111: 0 | C111: 0 | D111: 0 | E111: =SUM(Table3[[#This Row],[v10_low]:[v12_high]]) -> 0 | F111: =AVERAGE(Table3[[#This Row],[v10_low]:[v12_high]]) -> 0
A112: 27.3.7 RNA.REGULATION OF TRANSCRIPTION.C2C2(ZN) CO-LIKE, CONSTANS-LIKE ZINC FINGER FAMILY | B112: 0 | C112: 0 | D112: 0 | E112: =SUM(Table3[[#This Row],[v10_low]:[v12_high]]) -> 0 | F112: =AVERAGE(Table3[[#This Row],[v10_low]:[v12_high]]) -> 0
A113: 30.1 SIGNALLING.IN SUGAR AND NUTRIENT PHYSIOLOGY | B113: 0 | C113: 1.7488029 | D113: 0 | E113: =SUM(Table3[[#This Row],[v10_low]:[v12_high]]) -> 1.7488029 | F113: =AVERAGE(Table3[[#This Row],[v10_low]:[v12_high]]) -> 0.5829343
A114: 27.3.9 RNA.REGULATION OF TRANSCRIPTION.C2C2(ZN) GATA TRANSCRIPTION FACTOR FAMILY | B114: 0 | C114: 0 | D114: 0 | E114: =SUM(Table3[[#This Row],[v10_low]:[v12_high]]) -> 0 | F114: =AVERAGE(Table3[[#This Row],[v10_low]:[v12_high]]) -> 0
A115: 27.3.11 RNA.REGULATION OF TRANSCRIPTION.C2H2 ZINC FINGER FAMILY | B115: 0 | C115: 0 | D115: 0 | E115: =SUM(Table3[[#This Row],[v10_low]:[v12_high]]) -> 0 | F115: =AVERAGE(Table3[[#This Row],[v10_low]:[v12_high]]) -> 0
A116: 27.3.12 RNA.REGULATION OF TRANSCRIPTION.C3H ZINC FINGER FAMILY | B116: 0 | C116: 0 | D116: 0 | E116: =SUM(Table3[[#This Row],[v10_low]:[v12_high]]) -> 0 | F116: =AVERAGE(Table3[[#This Row],[v10_low]:[v12_high]]) -> 0
A117: 27.3.20 RNA.REGULATION OF TRANSCRIPTION.G2-LIKE TRANSCRIPTION FACTOR FAMILY, GARP | B117: 0 | C117: 0 | D117: 0 | E117: =SUM(Table3[[#This Row],[v10_low]:[v12_high]]) -> 0 | F117: =AVERAGE(Table3[[#This Row],[v10_low]:[v12_high]]) -> 0
A118: 26.19 MISC.PLASTOCYANIN-LIKE | B118: 0 | C118: 0 | D118: 1.725434 | E118: =SUM(Table3[[#This Row],[v10_low]:[v12_high]]) -> 1.725434 | F118: =AVERAGE(Table3[[#This Row],[v10_low]:[v12_high]]) -> 0.5751446667
A119: 27.3.23 RNA.REGULATION OF TRANSCRIPTION.HSF,HEAT-SHOCK TRANSCRIPTION FACTOR FAMILY | B119: 0 | C119: 0 | D119: 0 | E119: =SUM(Table3[[#This Row],[v10_low]:[v12_high]]) -> 0 | F119: =AVERAGE(Table3[[#This Row],[v10_low]:[v12_high]]) -> 0
A120: 29.4.1 PROTEIN.POSTRANSLATIONAL MODIFICATION.KINASE | B120: 0 | C120: 1.7149376 | D120: 0 | E120: =SUM(Table3[[#This Row],[v10_low]:[v12_high]]) -> 1.7149376 | F120: =AVERAGE(Table3[[#This Row],[v10_low]:[v12_high]]) -> 0.5716458667
A121: 27.3.25 RNA.REGULATION OF TRANSCRIPTION.MYB DOMAIN TRANSCRIPTION FACTOR FAMILY | B121: 0 | C121: 0 | D121: 0 | E121: =SUM(Table3[[#This Row],[v10_low]:[v12_high]]) -> 0 | F121: =AVERAGE(Table3[[#This Row],[v10_low]:[v12_high]]) -> 0
A122: 16.2 SECONDARY METABOLISM.PHENYLPROPANOIDS | B122: 0 | C122: 0 | D122: 1.7110898 | E122: =SUM(Table3[[#This Row],[v10_low]:[v12_high]]) -> 1.7110898 | F122: =AVERAGE(Table3[[#This Row],[v10_low]:[v12_high]]) -> 0.5703632667
A123: 27.3.29 RNA.REGULATION OF TRANSCRIPTION.TCP TRANSCRIPTION FACTOR FAMILY | B123: 0 | C123: 0 | D123: 0 | E123: =SUM(Table3[[#This Row],[v10_low]:[v12_high]]) -> 0 | F123: =AVERAGE(Table3[[#This Row],[v10_low]:[v12_high]]) -> 0
A124: 27.3.30 RNA.REGULATION OF TRANSCRIPTION.TRIHELIX, TRIPLE-HELIX TRANSCRIPTION FACTOR FAMILY | B124: 0 | C124: 0 | D124: 0 | E124: =SUM(Table3[[#This Row],[v10_low]:[v12_high]]) -> 0 | F124: =AVERAGE(Table3[[#This Row],[v10_low]:[v12_high]]) -> 0
A125: 16.8.4 SECONDARY METABOLISM.FLAVONOIDS.FLAVONOLS | B125: 0 | C125: 1.7016641 | D125: 0 | E125: =SUM(Table3[[#This Row],[v10_low]:[v12_high]]) -> 1.7016641 | F125: =AVERAGE(Table3[[#This Row],[v10_low]:[v12_high]]) -> 0.5672213667
A126: 16.8.3 SECONDARY METABOLISM.FLAVONOIDS.DIHYDROFLAVONOLS | B126: 0 | C126: 1.6921691 | D126: 0 | E126: =SUM(Table3[[#This Row],[v10_low]:[v12_high]]) -> 1.6921691 | F126: =AVERAGE(Table3[[#This Row],[v10_low]:[v12_high]]) -> 0.5640563667
A127: 34.2 TRANSPORT.SUGARS | B127: 0 | C127: 1.6856345 | D127: 0 | E127: =SUM(Table3[[#This Row],[v10_low]:[v12_high]]) -> 1.6856345 | F127: =AVERAGE(Table3[[#This Row],[v10_low]:[v12_high]]) -> 0.5618781667
A128: 11.1.8 LIPID METABOLISM.FA SYNTHESIS AND FA ELONGATION.ACYL COA LIGASE | B128: 0 | C128: 1.6577212 | D128: 0 | E128: =SUM(Table3[[#This Row],[v10_low]:[v12_high]]) -> 1.6577212 | F128: =AVERAGE(Table3[[#This Row],[v10_low]:[v12_high]]) -> 0.5525737333
A129: 27.3.44 RNA.REGULATION OF TRANSCRIPTION.CHROMATIN REMODELING FACTORS | B129: 0 | C129: 0 | D129: 0 | E129: =SUM(Table3[[#This Row],[v10_low]:[v12_high]]) -> 0 | F129: =AVERAGE(Table3[[#This Row],[v10_low]:[v12_high]]) -> 0
A130: 27.3.50 RNA.REGULATION OF TRANSCRIPTION.GENERAL TRANSCRIPTION | B130: 0 | C130: 0 | D130: 0 | E130: =SUM(Table3[[#This Row],[v10_low]:[v12_high]]) -> 0 | F130: =AVERAGE(Table3[[#This Row],[v10_low]:[v12_high]]) -> 0
A131: 27.3.52 RNA.REGULATION OF TRANSCRIPTION.GLOBAL TRANSCRIPTION FACTOR GROUP | B131: 0 | C131: 0 | D131: 0 | E131: =SUM(Table3[[#This Row],[v10_low]:[v12_high]]) -> 0 | F131: =AVERAGE(Table3[[#This Row],[v10_low]:[v12_high]]) -> 0
A132: 27.3.54 RNA.REGULATION OF TRANSCRIPTION.HISTONE ACETYLTRANSFERASES | B132: 0 | C132: 0 | D132: 0 | E132: =SUM(Table3[[#This Row],[v10_low]:[v12_high]]) -> 0 | F132: =AVERAGE(Table3[[#This Row],[v10_low]:[v12_high]]) -> 0
A133: 27.3.55 RNA.REGULATION OF TRANSCRIPTION.HDA | B133: 0 | C133: 0 | D133: 0 | E133: =SUM(Table3[[#This Row],[v10_low]:[v12_high]]) -> 0 | F133: =AVERAGE(Table3[[#This Row],[v10_low]:[v12_high]]) -> 0
A134: 27.3.57 RNA.REGULATION OF TRANSCRIPTION.JUMONJI FAMILY | B134: 0 | C134: 0 | D134: 0 | E134: =SUM(Table3[[#This Row],[v10_low]:[v12_high]]) -> 0 | F134: =AVERAGE(Table3[[#This Row],[v10_low]:[v12_high]]) -> 0
A135: 27.3.59 RNA.REGULATION OF TRANSCRIPTION.METHYL BINDING DOMAIN PROTEINS | B135: 0 | C135: 0 | D135: 0 | E135: =SUM(Table3[[#This Row],[v10_low]:[v12_high]]) -> 0 | F135: =AVERAGE(Table3[[#This Row],[v10_low]:[v12_high]]) -> 0
A136: 27.3.63 RNA.REGULATION OF TRANSCRIPTION.PHD FINGER TRANSCRIPTION FACTOR | B136: 0 | C136: 0 | D136: 0 | E136: =SUM(Table3[[#This Row],[v10_low]:[v12_high]]) -> 0 | F136: =AVERAGE(Table3[[#This Row],[v10_low]:[v12_high]]) -> 0
A137: 27.3.67 RNA.REGULATION OF TRANSCRIPTION.PUTATIVE TRANSCRIPTION REGULATOR | B137: 0 | C137: 0 | D137: 0 | E137: =SUM(Table3[[#This Row],[v10_low]:[v12_high]]) -> 0 | F137: =AVERAGE(Table3[[#This Row],[v10_low]:[v12_high]]) -> 0
A138: 27.3.68 RNA.REGULATION OF TRANSCRIPTION.PWWP DOMAIN PROTEIN | B138: 0 | C138: 0 | D138: 0 | E138: =SUM(Table3[[#This Row],[v10_low]:[v12_high]]) -> 0 | F138: =AVERAGE(Table3[[#This Row],[v10_low]:[v12_high]]) -> 0
A139: 20.2 STRESS.ABIOTIC | B139: 0 | C139: 1.6410445 | D139: 0 | E139: =SUM(Table3[[#This Row],[v10_low]:[v12_high]]) -> 1.6410445 | F139: =AVERAGE(Table3[[#This Row],[v10_low]:[v12_high]]) -> 0.5470148333
A140: 29.5.11.4.3.2 PROTEIN.DEGRADATION.UBIQUITIN.E3.SCF.FBOX | B140: 0 | C140: 0 | D140: 1.6251658 | E140: =SUM(Table3[[#This Row],[v10_low]:[v12_high]]) -> 1.6251658 | F140: =AVERAGE(Table3[[#This Row],[v10_low]:[v12_high]]) -> 0.5417219333
A141: 27.3.73 RNA.REGULATION OF TRANSCRIPTION.ZN-FINGER(CCHC) | B141: 0 | C141: 0 | D141: 0 | E141: =SUM(Table3[[#This Row],[v10_low]:[v12_high]]) -> 0 | F141: =AVERAGE(Table3[[#This Row],[v10_low]:[v12_high]]) -> 0
A142: 27.3.85 RNA.REGULATION OF TRANSCRIPTION.SIGMA LIKE PLANT | B142: 0 | C142: 0 | D142: 0 | E142: =SUM(Table3[[#This Row],[v10_low]:[v12_high]]) -> 0 | F142: =AVERAGE(Table3[[#This Row],[v10_low]:[v12_high]]) -> 0
A143: 27.3.99 RNA.REGULATION OF TRANSCRIPTION.UNCLASSIFIED | B143: 0 | C143: 0 | D143: 0 | E143: =SUM(Table3[[#This Row],[v10_low]:[v12_high]]) -> 0 | F143: =AVERAGE(Table3[[#This Row],[v10_low]:[v12_high]]) -> 0
A144: 27.4 RNA.RNA BINDING | B144: 0 | C144: 0 | D144: 0 | E144: =SUM(Table3[[#This Row],[v10_low]:[v12_high]]) -> 0 | F144: =AVERAGE(Table3[[#This Row],[v10_low]:[v12_high]]) -> 0
A145: 29.5.11.4.2 PROTEIN.DEGRADATION.UBIQUITIN.E3.RING | B145: 0 | C145: 0 | D145: 1.6156749 | E145: =SUM(Table3[[#This Row],[v10_low]:[v12_high]]) -> 1.6156749 | F145: =AVERAGE(Table3[[#This Row],[v10_low]:[v12_high]]) -> 0.5385583
A146: 34.22 TRANSPORT.CYCLIC NUCLEOTIDE OR CALCIUM REGULATED CHANNELS | B146: 0 | C146: 1.6070596 | D146: 0 | E146: =SUM(Table3[[#This Row],[v10_low]:[v12_high]]) -> 1.6070596 | F146: =AVERAGE(Table3[[#This Row],[v10_low]:[v12_high]]) -> 0.5356865333
A147: 29.5.11.4.3.1 PROTEIN.DEGRADATION.UBIQUITIN.E3.SCF.SKP | B147: 0 | C147: 1.5950828 | D147: 0 | E147: =SUM(Table3[[#This Row],[v10_low]:[v12_high]]) -> 1.5950828 | F147: =AVERAGE(Table3[[#This Row],[v10_low]:[v12_high]]) -> 0.5316942667
A148: 29.2.5 PROTEIN.SYNTHESIS.RELEASE | B148: 0 | C148: -1.6218861 | D148: 0 | E148: =SUM(Table3[[#This Row],[v10_low]:[v12_high]]) -> -1.6218861 | F148: =AVERAGE(Table3[[#This Row],[v10_low]:[v12_high]]) -> -0.5406287
A149: 1.3.6 PS.CALVIN CYCLE.ALDOLASE | B149: 0 | C149: 0 | D149: -1.6244227 | E149: =SUM(Table3[[#This Row],[v10_low]:[v12_high]]) -> -1.6244227 | F149: =AVERAGE(Table3[[#This Row],[v10_low]:[v12_high]]) -> -0.5414742333
A150: 28.2 DNA.REPAIR | B150: 0 | C150: 0 | D150: 0 | E150: =SUM(Table3[[#This Row],[v10_low]:[v12_high]]) -> 0 | F150: =AVERAGE(Table3[[#This Row],[v10_low]:[v12_high]]) -> 0
A151: 28.99 DNA.UNSPECIFIED | B151: 0 | C151: 0 | D151: 0 | E151: =SUM(Table3[[#This Row],[v10_low]:[v12_high]]) -> 0 | F151: =AVERAGE(Table3[[#This Row],[v10_low]:[v12_high]]) -> 0
A152: 29.1 PROTEIN.AA ACTIVATION | B152: 0 | C152: 0 | D152: 0 | E152: =SUM(Table3[[#This Row],[v10_low]:[v12_high]]) -> 0 | F152: =AVERAGE(Table3[[#This Row],[v10_low]:[v12_high]]) -> 0
A153: 29.1.30 PROTEIN.AA ACTIVATION.PSEUDOURIDYLATE SYNTHASE | B153: 0 | C153: 0 | D153: 0 | E153: =SUM(Table3[[#This Row],[v10_low]:[v12_high]]) -> 0 | F153: =AVERAGE(Table3[[#This Row],[v10_low]:[v12_high]]) -> 0
A154: 29.2.2 PROTEIN.SYNTHESIS.RIBOSOME BIOGENESIS | B154: 0 | C154: 0 | D154: 0 | E154: =SUM(Table3[[#This Row],[v10_low]:[v12_high]]) -> 0 | F154: =AVERAGE(Table3[[#This Row],[v10_low]:[v12_high]]) -> 0
A155: 29.2.2.1 PROTEIN.SYNTHESIS.RIBOSOME BIOGENESIS.EXPORT FROM NUCLEUS | B155: 0 | C155: 0 | D155: 0 | E155: =SUM(Table3[[#This Row],[v10_low]:[v12_high]]) -> 0 | F155: =AVERAGE(Table3[[#This Row],[v10_low]:[v12_high]]) -> 0
A156: 27.1.2 RNA.PROCESSING.RNA HELICASE | B156: 0 | C156: -1.6274478 | D156: 0 | E156: =SUM(Table3[[#This Row],[v10_low]:[v12_high]]) -> -1.6274478 | F156: =AVERAGE(Table3[[#This Row],[v10_low]:[v12_high]]) -> -0.5424826
A157: 29.2.2.3.3 PROTEIN.SYNTHESIS.RIBOSOME BIOGENESIS.PRE-RRNA PROCESSING AND MODIFICATIONS.METHYLOTRANSFERASES | B157: 0 | C157: -1.6501136 | D157: 0 | E157: =SUM(Table3[[#This Row],[v10_low]:[v12_high]]) -> -1.6501136 | F157: =AVERAGE(Table3[[#This Row],[v10_low]:[v12_high]]) -> -0.5500378667
A158: 29.2.2.3.5 PROTEIN.SYNTHESIS.RIBOSOME BIOGENESIS.PRE-RRNA PROCESSING AND MODIFICATIONS.DEXD-BOX HELICASES | B158: 0 | C158: 0 | D158: 0 | E158: =SUM(Table3[[#This Row],[v10_low]:[v12_high]]) -> 0 | F158: =AVERAGE(Table3[[#This Row],[v10_low]:[v12_high]]) -> 0
A159: 29.2.3 PROTEIN.SYNTHESIS.INITIATION | B159: 0 | C159: 0 | D159: 0 | E159: =SUM(Table3[[#This Row],[v10_low]:[v12_high]]) -> 0 | F159: =AVERAGE(Table3[[#This Row],[v10_low]:[v12_high]]) -> 0
A160: 26.3.2 MISC.GLUCO-, GALACTO- AND MANNOSIDASES.BETA-GALACTOSIDASE | B160: 0 | C160: -1.6574149 | D160: 0 | E160: =SUM(Table3[[#This Row],[v10_low]:[v12_high]]) -> -1.6574149 | F160: =AVERAGE(Table3[[#This Row],[v10_low]:[v12_high]]) -> -0.5524716333
A161: 31.3 CELL.CYCLE | B161: 0 | C161: -1.6888845 | D161: 0 | E161: =SUM(Table3[[#This Row],[v10_low]:[v12_high]]) -> -1.6888845 | F161: =AVERAGE(Table3[[#This Row],[v10_low]:[v12_high]]) -> -0.5629615
A162: 29.3.1 PROTEIN.TARGETING.NUCLEUS | B162: 0 | C162: 0 | D162: 0 | E162: =SUM(Table3[[#This Row],[v10_low]:[v12_high]]) -> 0 | F162: =AVERAGE(Table3[[#This Row],[v10_low]:[v12_high]]) -> 0
A163: 29.3.2 PROTEIN.TARGETING.MITOCHONDRIA | B163: 0 | C163: 0 | D163: 0 | E163: =SUM(Table3[[#This Row],[v10_low]:[v12_high]]) -> 0 | F163: =AVERAGE(Table3[[#This Row],[v10_low]:[v12_high]]) -> 0
A164: 27.3.69 RNA.REGULATION OF TRANSCRIPTION.SET-DOMAIN TRANSCRIPTIONAL REGULATOR FAMILY | B164: 0 | C164: -1.7134569 | D164: 0 | E164: =SUM(Table3[[#This Row],[v10_low]:[v12_high]]) -> -1.7134569 | F164: =AVERAGE(Table3[[#This Row],[v10_low]:[v12_high]]) -> -0.5711523
A165: 29.3.4.1 PROTEIN.TARGETING.SECRETORY PATHWAY.ER | B165: 0 | C165: 0 | D165: 0 | E165: =SUM(Table3[[#This Row],[v10_low]:[v12_high]]) -> 0 | F165: =AVERAGE(Table3[[#This Row],[v10_low]:[v12_high]]) -> 0
A166: 29.3.4.2 PROTEIN.TARGETING.SECRETORY PATHWAY.GOLGI | B166: 0 | C166: 0 | D166: 0 | E166: =SUM(Table3[[#This Row],[v10_low]:[v12_high]]) -> 0 | F166: =AVERAGE(Table3[[#This Row],[v10_low]:[v12_high]]) -> 0
A167: 26.4.1 MISC.BETA 1,3 GLUCAN HYDROLASES.GLUCAN ENDO-1,3-BETA-GLUCOSIDASE | B167: -1.7658294 | C167: 0 | D167: 0 | E167: =SUM(Table3[[#This Row],[v10_low]:[v12_high]]) -> -1.7658294 | F167: =AVERAGE(Table3[[#This Row],[v10_low]:[v12_high]]) -> -0.5886098
A168: 10.6.3 CELL WALL.DEGRADATION.PECTATE LYASES AND POLYGALACTURONASES | B168: 0 | C168: 0 | D168: -1.8121061 | E168: =SUM(Table3[[#This Row],[v10_low]:[v12_high]]) -> -1.8121061 | F168: =AVERAGE(Table3[[#This Row],[v10_low]:[v12_high]]) -> -0.6040353667
A169: 29.3.5 PROTEIN.TARGETING.PEROXISOMES | B169: 0 | C169: 0 | D169: 0 | E169: =SUM(Table3[[#This Row],[v10_low]:[v12_high]]) -> 0 | F169: =AVERAGE(Table3[[#This Row],[v10_low]:[v12_high]]) -> 0
A170: 13.1.3.4 AMINO ACID METABOLISM.SYNTHESIS.ASPARTATE FAMILY.METHIONINE | B170: 0 | C170: 0 | D170: -1.8254398 | E170: =SUM(Table3[[#This Row],[v10_low]:[v12_high]]) -> -1.8254398 | F170: =AVERAGE(Table3[[#This Row],[v10_low]:[v12_high]]) -> -0.6084799333
A171: 27.3.26 RNA.REGULATION OF TRANSCRIPTION.MYB-RELATED TRANSCRIPTION FACTOR FAMILY | B171: 0 | C171: -1.8283106 | D171: 0 | E171: =SUM(Table3[[#This Row],[v10_low]:[v12_high]]) -> -1.8283106 | F171: =AVERAGE(Table3[[#This Row],[v10_low]:[v12_high]]) -> -0.6094368667
A172: 29.5 PROTEIN.DEGRADATION | B172: 0 | C172: 0 | D172: 0 | E172: =SUM(Table3[[#This Row],[v10_low]:[v12_high]]) -> 0 | F172: =AVERAGE(Table3[[#This Row],[v10_low]:[v12_high]]) -> 0
A173: 29.5.1 PROTEIN.DEGRADATION.SUBTILASES | B173: 0 | C173: 0 | D173: 0 | E173: =SUM(Table3[[#This Row],[v10_low]:[v12_high]]) -> 0 | F173: =AVERAGE(Table3[[#This Row],[v10_low]:[v12_high]]) -> 0
A174: 28.1 DNA.SYNTHESIS/CHROMATIN STRUCTURE | B174: 0 | C174: -1.8295889 | D174: 0 | E174: =SUM(Table3[[#This Row],[v10_low]:[v12_high]]) -> -1.8295889 | F174: =AVERAGE(Table3[[#This Row],[v10_low]:[v12_high]]) -> -0.6098629667
A175: 11.9.3.1 LIPID METABOLISM.LIPID DEGRADATION.LYSOPHOSPHOLIPASES.PHOSPHOLIPASE D | B175: 0 | C175: -1.8335947 | D175: 0 | E175: =SUM(Table3[[#This Row],[v10_low]:[v12_high]]) -> -1.8335947 | F175: =AVERAGE(Table3[[#This Row],[v10_low]:[v12_high]]) -> -0.6111982333
A176: 29.5.4 PROTEIN.DEGRADATION.ASPARTATE PROTEASE | B176: 0 | C176: 0 | D176: 0 | E176: =SUM(Table3[[#This Row],[v10_low]:[v12_high]]) -> 0 | F176: =AVERAGE(Table3[[#This Row],[v10_low]:[v12_high]]) -> 0
A177: 29.5.5 PROTEIN.DEGRADATION.SERINE PROTEASE | B177: 0 | C177: 0 | D177: 0 | E177: =SUM(Table3[[#This Row],[v10_low]:[v12_high]]) -> 0 | F177: =AVERAGE(Table3[[#This Row],[v10_low]:[v12_high]]) -> 0
A178: 29.5.7 PROTEIN.DEGRADATION.METALLOPROTEASE | B178: 0 | C178: 0 | D178: 0 | E178: =SUM(Table3[[#This Row],[v10_low]:[v12_high]]) -> 0 | F178: =AVERAGE(Table3[[#This Row],[v10_low]:[v12_high]]) -> 0
A179: 29.5.9 PROTEIN.DEGRADATION.AAA TYPE | B179: 0 | C179: 0 | D179: 0 | E179: =SUM(Table3[[#This Row],[v10_low]:[v12_high]]) -> 0 | F179: =AVERAGE(Table3[[#This Row],[v10_low]:[v12_high]]) -> 0
A180: 29.5.11 PROTEIN.DEGRADATION.UBIQUITIN | B180: 0 | C180: 0 | D180: 0 | E180: =SUM(Table3[[#This Row],[v10_low]:[v12_high]]) -> 0 | F180: =AVERAGE(Table3[[#This Row],[v10_low]:[v12_high]]) -> 0
A181: 30.2.22 SIGNALLING.RECEPTOR KINASES.PROLINE EXTENSIN LIKE | B181: -1.9127483 | C181: 0 | D181: 0 | E181: =SUM(Table3[[#This Row],[v10_low]:[v12_high]]) -> -1.9127483 | F181: =AVERAGE(Table3[[#This Row],[v10_low]:[v12_high]]) -> -0.6375827667
A182: 11.3 LIPID METABOLISM.PHOSPHOLIPID SYNTHESIS | B182: 0 | C182: 0 | D182: -1.93939 | E182: =SUM(Table3[[#This Row],[v10_low]:[v12_high]]) -> -1.93939 | F182: =AVERAGE(Table3[[#This Row],[v10_low]:[v12_high]]) -> -0.6464633333
A183: 29.5.11.4.1 PROTEIN.DEGRADATION.UBIQUITIN.E3.HECT | B183: 0 | C183: 0 | D183: 0 | E183: =SUM(Table3[[#This Row],[v10_low]:[v12_high]]) -> 0 | F183: =AVERAGE(Table3[[#This Row],[v10_low]:[v12_high]]) -> 0
A184: 34.21 TRANSPORT.CALCIUM | B184: -1.9638817 | C184: 0 | D184: 0 | E184: =SUM(Table3[[#This Row],[v10_low]:[v12_high]]) -> -1.9638817 | F184: =AVERAGE(Table3[[#This Row],[v10_low]:[v12_high]]) -> -0.6546272333
A185: 34.19.2 TRANSPORT.MAJOR INTRINSIC PROTEINS.TIP | B185: 0 | C185: -1.9814844 | D185: 0 | E185: =SUM(Table3[[#This Row],[v10_low]:[v12_high]]) -> -1.9814844 | F185: =AVERAGE(Table3[[#This Row],[v10_low]:[v12_high]]) -> -0.6604948
A186: 10.2 CELL WALL.CELLULOSE SYNTHESIS | B186: 0 | C186: 0 | D186: -2.1408293 | E186: =SUM(Table3[[#This Row],[v10_low]:[v12_high]]) -> -2.1408293 | F186: =AVERAGE(Table3[[#This Row],[v10_low]:[v12_high]]) -> -0.7136097667
A187: 29.5.11.4.5.2 PROTEIN.DEGRADATION.UBIQUITIN.E3.BTB/POZ CULLIN3.BTB/POZ | B187: 0 | C187: 0 | D187: 0 | E187: =SUM(Table3[[#This Row],[v10_low]:[v12_high]]) -> 0 | F187: =AVERAGE(Table3[[#This Row],[v10_low]:[v12_high]]) -> 0
A188: 29.5.11.5 PROTEIN.DEGRADATION.UBIQUITIN.UBIQUITIN PROTEASE | B188: 0 | C188: 0 | D188: 0 | E188: =SUM(Table3[[#This Row],[v10_low]:[v12_high]]) -> 0 | F188: =AVERAGE(Table3[[#This Row],[v10_low]:[v12_high]]) -> 0
A189: 27.3.4 RNA.REGULATION OF TRANSCRIPTION.ARF, AUXIN RESPONSE FACTOR FAMILY | B189: 0 | C189: -1.6918719 | D189: -1.6255245 | E189: =SUM(Table3[[#This Row],[v10_low]:[v12_high]]) -> -3.3173964 | F189: =AVERAGE(Table3[[#This Row],[v10_low]:[v12_high]]) -> -1.1057988
A190: 10.8.1 CELL WALL.PECTIN*ESTERASES.PME | B190: -1.7483578 | C190: 0 | D190: -1.6538737 | E190: =SUM(Table3[[#This Row],[v10_low]:[v12_high]]) -> -3.4022315 | F190: =AVERAGE(Table3[[#This Row],[v10_low]:[v12_high]]) -> -1.134077167
A191: 29.7 PROTEIN.GLYCOSYLATION | B191: 0 | C191: 0 | D191: 0 | E191: =SUM(Table3[[#This Row],[v10_low]:[v12_high]]) -> 0 | F191: =AVERAGE(Table3[[#This Row],[v10_low]:[v12_high]]) -> 0
A192: 26.28 MISC.GDSL-MOTIF LIPASE | B192: 0 | C192: -1.7767106 | D192: -1.7774082 | E192: =SUM(Table3[[#This Row],[v10_low]:[v12_high]]) -> -3.5541188 | F192: =AVERAGE(Table3[[#This Row],[v10_low]:[v12_high]]) -> -1.184706267
A193: 29.6 PROTEIN.FOLDING | B193: 0 | C193: -1.8820784 | D193: -1.7265149 | E193: =SUM(Table3[[#This Row],[v10_low]:[v12_high]]) -> -3.6085933 | F193: =AVERAGE(Table3[[#This Row],[v10_low]:[v12_high]]) -> -1.202864433
A194: 30.2.2 SIGNALLING.RECEPTOR KINASES.LEUCINE RICH REPEAT II | B194: 0 | C194: 0 | D194: 0 | E194: =SUM(Table3[[#This Row],[v10_low]:[v12_high]]) -> 0 | F194: =AVERAGE(Table3[[#This Row],[v10_low]:[v12_high]]) -> 0
A195: 27.3.34 RNA.REGULATION OF TRANSCRIPTION.ORPHAN FAMILY | B195: 0 | C195: -1.8156065 | D195: -1.8383969 | E195: =SUM(Table3[[#This Row],[v10_low]:[v12_high]]) -> -3.6540034 | F195: =AVERAGE(Table3[[#This Row],[v10_low]:[v12_high]]) -> -1.218001133
A196: 30.2.6 SIGNALLING.RECEPTOR KINASES.LEUCINE RICH REPEAT VI | B196: 0 | C196: 0 | D196: 0 | E196: =SUM(Table3[[#This Row],[v10_low]:[v12_high]]) -> 0 | F196: =AVERAGE(Table3[[#This Row],[v10_low]:[v12_high]]) -> 0
A197: 30.2.8.2 SIGNALLING.RECEPTOR KINASES.LEUCINE RICH REPEAT VIII.VIII-2 | B197: 0 | C197: 0 | D197: 0 | E197: =SUM(Table3[[#This Row],[v10_low]:[v12_high]]) -> 0 | F197: =AVERAGE(Table3[[#This Row],[v10_low]:[v12_high]]) -> 0
A198: 30.2.9 SIGNALLING.RECEPTOR KINASES.LEUCINE RICH REPEAT IX | B198: 0 | C198: 0 | D198: 0 | E198: =SUM(Table3[[#This Row],[v10_low]:[v12_high]]) -> 0 | F198: =AVERAGE(Table3[[#This Row],[v10_low]:[v12_high]]) -> 0
A199: 30.2.10 SIGNALLING.RECEPTOR KINASES.LEUCINE RICH REPEAT X | B199: 0 | C199: 0 | D199: 0 | E199: =SUM(Table3[[#This Row],[v10_low]:[v12_high]]) -> 0 | F199: =AVERAGE(Table3[[#This Row],[v10_low]:[v12_high]]) -> 0
A200: 30.2.11 SIGNALLING.RECEPTOR KINASES.LEUCINE RICH REPEAT XI | B200: 0 | C200: 0 | D200: 0 | E200: =SUM(Table3[[#This Row],[v10_low]:[v12_high]]) -> 0 | F200: =AVERAGE(Table3[[#This Row],[v10_low]:[v12_high]]) -> 0
... 55 more rows

Sheet Sheet3 (2)
A1: BIN | B1: v10_low | C1: v10_high | D1: v12_high | E1: Column1 | F1: Column2
A2: 1.1.1.1 PS.LIGHTREACTION.PHOTOSYSTEM II.LHC-II | B2: 0 | C2: -2.8507993 | D2: -2.8361762 | E2: =SUM(Table35[[#This Row],[v10_low]:[v12_high]]) -> -5.6869755 | F2: =AVERAGE(Table35[[#This Row],[v10_low]:[v12_high]]) -> -1.8956585
A3: 1.1.1.2 PS.LIGHTREACTION.PHOTOSYSTEM II.PSII POLYPEPTIDE SUBUNITS | B3: 0 | C3: -3.0182064 | D3: -3.0314417 | E3: =SUM(Table35[[#This Row],[v10_low]:[v12_high]]) -> -6.0496481 | F3: =AVERAGE(Table35[[#This Row],[v10_low]:[v12_high]]) -> -2.016549367
A4: 1.1.2.1 PS.LIGHTREACTION.PHOTOSYSTEM I.LHC-I | B4: 0 | C4: -2.6286025 | D4: -2.781654 | E4: =SUM(Table35[[#This Row],[v10_low]:[v12_high]]) -> -5.4102565 | F4: =AVERAGE(Table35[[#This Row],[v10_low]:[v12_high]]) -> -1.803418833
A5: 1.1.2.2 PS.LIGHTREACTION.PHOTOSYSTEM I.PSI POLYPEPTIDE SUBUNITS | B5: 0 | C5: -2.887299 | D5: -2.9446847 | E5: =SUM(Table35[[#This Row],[v10_low]:[v12_high]]) -> -5.8319837 | F5: =AVERAGE(Table35[[#This Row],[v10_low]:[v12_high]]) -> -1.943994567
A6: 1.2.6 PS.PHOTORESPIRATION.HYDROXYPYRUVATE REDUCTASE | B6: 0 | C6: 0 | D6: 0 | E6: =SUM(Table35[[#This Row],[v10_low]:[v12_high]]) -> 0 | F6: =AVERAGE(Table35[[#This Row],[v10_low]:[v12_high]]) -> 0
A7: 1.3.13 PS.CALVIN CYCLE.RUBISCO INTERACTING | B7: 0 | C7: -2.107853 | D7: -2.141852 | E7: =SUM(Table35[[#This Row],[v10_low]:[v12_high]]) -> -4.249705 | F7: =AVERAGE(Table35[[#This Row],[v10_low]:[v12_high]]) -> -1.416568333
A8: 2.1.2.2 MAJOR CHO METABOLISM.SYNTHESIS.STARCH.STARCH SYNTHASE | B8: 0 | C8: 0 | D8: 0 | E8: =SUM(Table35[[#This Row],[v10_low]:[v12_high]]) -> 0 | F8: =AVERAGE(Table35[[#This Row],[v10_low]:[v12_high]]) -> 0
A9: 3.2.3 MINOR CHO METABOLISM.TREHALOSE.POTENTIAL TPS/TPP | B9: 0 | C9: 0 | D9: 0 | E9: =SUM(Table35[[#This Row],[v10_low]:[v12_high]]) -> 0 | F9: =AVERAGE(Table35[[#This Row],[v10_low]:[v12_high]]) -> 0
A10: 3.5 MINOR CHO METABOLISM.OTHERS | B10: 0 | C10: 0 | D10: 0 | E10: =SUM(Table35[[#This Row],[v10_low]:[v12_high]]) -> 0 | F10: =AVERAGE(Table35[[#This Row],[v10_low]:[v12_high]]) -> 0
A11: 3.6 MINOR CHO METABOLISM.CALLOSE | B11: 0 | C11: 0 | D11: 0 | E11: =SUM(Table35[[#This Row],[v10_low]:[v12_high]]) -> 0 | F11: =AVERAGE(Table35[[#This Row],[v10_low]:[v12_high]]) -> 0
A12: 4.1.16 GLYCOLYSIS.CYTOSOLIC BRANCH.PHOSPHO-ENOL-PYRUVATE CARBOXYLASE KINASE (PPCK) | B12: 0 | C12: 0 | D12: 0 | E12: =SUM(Table35[[#This Row],[v10_low]:[v12_high]]) -> 0 | F12: =AVERAGE(Table35[[#This Row],[v10_low]:[v12_high]]) -> 0
A13: 8.1.1.1 TCA / ORG TRANSFORMATION.TCA.PYRUVATE DH.E1 | B13: 0 | C13: 0 | D13: 0 | E13: =SUM(Table35[[#This Row],[v10_low]:[v12_high]]) -> 0 | F13: =AVERAGE(Table35[[#This Row],[v10_low]:[v12_high]]) -> 0
A14: 9.1.2 MITOCHONDRIAL ELECTRON TRANSPORT / ATP SYNTHESIS.NADH-DH.LOCALISATION NOT CLEAR | B14: 0 | C14: 0 | D14: 0 | E14: =SUM(Table35[[#This Row],[v10_low]:[v12_high]]) -> 0 | F14: =AVERAGE(Table35[[#This Row],[v10_low]:[v12_high]]) -> 0
A15: 9.6 MITOCHONDRIAL ELECTRON TRANSPORT / ATP SYNTHESIS.CYTOCHROME C | B15: 0 | C15: 0 | D15: 0 | E15: =SUM(Table35[[#This Row],[v10_low]:[v12_high]]) -> 0 | F15: =AVERAGE(Table35[[#This Row],[v10_low]:[v12_high]]) -> 0
A16: 9.7 MITOCHONDRIAL ELECTRON TRANSPORT / ATP SYNTHESIS.CYTOCHROME C OXIDASE | B16: 0 | C16: 0 | D16: 0 | E16: =SUM(Table35[[#This Row],[v10_low]:[v12_high]]) -> 0 | F16: =AVERAGE(Table35[[#This Row],[v10_low]:[v12_high]]) -> 0
A17: 9.9 MITOCHONDRIAL ELECTRON TRANSPORT / ATP SYNTHESIS.F1-ATPASE | B17: 0 | C17: 0 | D17: 0 | E17: =SUM(Table35[[#This Row],[v10_low]:[v12_high]]) -> 0 | F17: =AVERAGE(Table35[[#This Row],[v10_low]:[v12_high]]) -> 0
A18: 10.1.6 CELL WALL.PRECURSOR SYNTHESIS.GAE | B18: 0 | C18: 0 | D18: 0 | E18: =SUM(Table35[[#This Row],[v10_low]:[v12_high]]) -> 0 | F18: =AVERAGE(Table35[[#This Row],[v10_low]:[v12_high]]) -> 0
A19: 10.5.1.1 CELL WALL.CELL WALL PROTEINS.AGPS.AGP | B19: -1.7685975 | C19: -2.1091502 | D19: -2.427318 | E19: =SUM(Table35[[#This Row],[v10_low]:[v12_high]]) -> -6.3050657 | F19: =AVERAGE(Table35[[#This Row],[v10_low]:[v12_high]]) -> -2.101688567
A20: 10.2.1 CELL WALL.CELLULOSE SYNTHESIS.CELLULOSE SYNTHASE | B20: 0 | C20: 0 | D20: 0 | E20: =SUM(Table35[[#This Row],[v10_low]:[v12_high]]) -> 0 | F20: =AVERAGE(Table35[[#This Row],[v10_low]:[v12_high]]) -> 0
A21: 10.6.1 CELL WALL.DEGRADATION.CELLULASES AND BETA -1,4-GLUCANASES | B21: 0 | C21: 0 | D21: 0 | E21: =SUM(Table35[[#This Row],[v10_low]:[v12_high]]) -> 0 | F21: =AVERAGE(Table35[[#This Row],[v10_low]:[v12_high]]) -> 0
A22: 10.8.1 CELL WALL.PECTIN*ESTERASES.PME | B22: -1.7483578 | C22: 0 | D22: -1.6538737 | E22: =SUM(Table35[[#This Row],[v10_low]:[v12_high]]) -> -3.4022315 | F22: =AVERAGE(Table35[[#This Row],[v10_low]:[v12_high]]) -> -1.134077167
A23: 10.7 CELL WALL.MODIFICATION | B23: 0 | C23: 0 | D23: 0 | E23: =SUM(Table35[[#This Row],[v10_low]:[v12_high]]) -> 0 | F23: =AVERAGE(Table35[[#This Row],[v10_low]:[v12_high]]) -> 0
A24: 11.1.8 LIPID METABOLISM.FA SYNTHESIS AND FA ELONGATION.ACYL COA LIGASE | B24: 0 | C24: 1.6577212 | D24: 0 | E24: =SUM(Table35[[#This Row],[v10_low]:[v12_high]]) -> 1.6577212 | F24: =AVERAGE(Table35[[#This Row],[v10_low]:[v12_high]]) -> 0.5525737333
A25: 11.3 LIPID METABOLISM.PHOSPHOLIPID SYNTHESIS | B25: 0 | C25: 0 | D25: -1.93939 | E25: =SUM(Table35[[#This Row],[v10_low]:[v12_high]]) -> -1.93939 | F25: =AVERAGE(Table35[[#This Row],[v10_low]:[v12_high]]) -> -0.6464633333
A26: 11.9.2.1 LIPID METABOLISM.LIPID DEGRADATION.LIPASES.TRIACYLGLYCEROL LIPASE | B26: 0 | C26: 1.9041566 | D26: 1.6619874 | E26: =SUM(Table35[[#This Row],[v10_low]:[v12_high]]) -> 3.566144 | F26: =AVERAGE(Table35[[#This Row],[v10_low]:[v12_high]]) -> 1.188714667
A27: 11.6 LIPID METABOLISM.LIPID TRANSFER PROTEINS ETC | B27: 0 | C27: 0 | D27: 0 | E27: =SUM(Table35[[#This Row],[v10_low]:[v12_high]]) -> 0 | F27: =AVERAGE(Table35[[#This Row],[v10_low]:[v12_high]]) -> 0
A28: 11.8 LIPID METABOLISM.EXOTICS(STEROIDS, SQUALENE ETC) | B28: 0 | C28: 0 | D28: 0 | E28: =SUM(Table35[[#This Row],[v10_low]:[v12_high]]) -> 0 | F28: =AVERAGE(Table35[[#This Row],[v10_low]:[v12_high]]) -> 0
A29: 11.8.1 LIPID METABOLISM.EXOTICS (STEROIDS, SQUALENE ETC).SPHINGOLIPIDS | B29: 0 | C29: 0 | D29: 0 | E29: =SUM(Table35[[#This Row],[v10_low]:[v12_high]]) -> 0 | F29: =AVERAGE(Table35[[#This Row],[v10_low]:[v12_high]]) -> 0
A30: 11.9.2 LIPID METABOLISM.LIPID DEGRADATION.LIPASES | B30: 0 | C30: 0 | D30: 0 | E30: =SUM(Table35[[#This Row],[v10_low]:[v12_high]]) -> 0 | F30: =AVERAGE(Table35[[#This Row],[v10_low]:[v12_high]]) -> 0
A31: 11.9.3.1 LIPID METABOLISM.LIPID DEGRADATION.LYSOPHOSPHOLIPASES.PHOSPHOLIPASE D | B31: 0 | C31: -1.8335947 | D31: 0 | E31: =SUM(Table35[[#This Row],[v10_low]:[v12_high]]) -> -1.8335947 | F31: =AVERAGE(Table35[[#This Row],[v10_low]:[v12_high]]) -> -0.6111982333
A32: 11.9.3 LIPID METABOLISM.LIPID DEGRADATION.LYSOPHOSPHOLIPASES | B32: 0 | C32: 0 | D32: 0 | E32: =SUM(Table35[[#This Row],[v10_low]:[v12_high]]) -> 0 | F32: =AVERAGE(Table35[[#This Row],[v10_low]:[v12_high]]) -> 0
A33: 11.9.3.2 LIPID METABOLISM.LIPID DEGRADATION.LYSOPHOSPHOLIPASES.CARBOXYLESTERASE | B33: 0 | C33: 1.9607472 | D33: 1.7419404 | E33: =SUM(Table35[[#This Row],[v10_low]:[v12_high]]) -> 3.7026876 | F33: =AVERAGE(Table35[[#This Row],[v10_low]:[v12_high]]) -> 1.2342292
A34: 11.9.4.5 LIPID METABOLISM.LIPID DEGRADATION.BETA-OXIDATION.ACYL-COA THIOESTERASE | B34: 0 | C34: 1.7926122 | D34: 0 | E34: =SUM(Table35[[#This Row],[v10_low]:[v12_high]]) -> 1.7926122 | F34: =AVERAGE(Table35[[#This Row],[v10_low]:[v12_high]]) -> 0.5975374
A35: 11.9.4.3 LIPID METABOLISM.LIPID DEGRADATION.BETA-OXIDATION.ENOYL COA HYDRATASE | B35: 0 | C35: 0 | D35: 0 | E35: =SUM(Table35[[#This Row],[v10_low]:[v12_high]]) -> 0 | F35: =AVERAGE(Table35[[#This Row],[v10_low]:[v12_high]]) -> 0
A36: 13.1.3.4 AMINO ACID METABOLISM.SYNTHESIS.ASPARTATE FAMILY.METHIONINE | B36: 0 | C36: 0 | D36: -1.8254398 | E36: =SUM(Table35[[#This Row],[v10_low]:[v12_high]]) -> -1.8254398 | F36: =AVERAGE(Table35[[#This Row],[v10_low]:[v12_high]]) -> -0.6084799333
A37: 16.2 SECONDARY METABOLISM.PHENYLPROPANOIDS | B37: 0 | C37: 0 | D37: 1.7110898 | E37: =SUM(Table35[[#This Row],[v10_low]:[v12_high]]) -> 1.7110898 | F37: =AVERAGE(Table35[[#This Row],[v10_low]:[v12_high]]) -> 0.5703632667
A38: 13.2.6.3 AMINO ACID METABOLISM.DEGRADATION.AROMATIC AA.TRYPTOPHAN | B38: 0 | C38: 0 | D38: 0 | E38: =SUM(Table35[[#This Row],[v10_low]:[v12_high]]) -> 0 | F38: =AVERAGE(Table35[[#This Row],[v10_low]:[v12_high]]) -> 0
A39: 15.2 METAL HANDLING.BINDING, CHELATION AND STORAGE | B39: 0 | C39: 0 | D39: 0 | E39: =SUM(Table35[[#This Row],[v10_low]:[v12_high]]) -> 0 | F39: =AVERAGE(Table35[[#This Row],[v10_low]:[v12_high]]) -> 0
A40: 16.8.3 SECONDARY METABOLISM.FLAVONOIDS.DIHYDROFLAVONOLS | B40: 0 | C40: 1.6921691 | D40: 0 | E40: =SUM(Table35[[#This Row],[v10_low]:[v12_high]]) -> 1.6921691 | F40: =AVERAGE(Table35[[#This Row],[v10_low]:[v12_high]]) -> 0.5640563667
A41: 16.7 SECONDARY METABOLISM.WAX | B41: 0 | C41: 0 | D41: 0 | E41: =SUM(Table35[[#This Row],[v10_low]:[v12_high]]) -> 0 | F41: =AVERAGE(Table35[[#This Row],[v10_low]:[v12_high]]) -> 0
A42: 16.8.3.3 SECONDARY METABOLISM.FLAVONOIDS.DIHYDROFLAVONOLS.FLAVONOID 3-MONOOXYGENASE | B42: 0 | C42: 0 | D42: 1.8350034 | E42: =SUM(Table35[[#This Row],[v10_low]:[v12_high]]) -> 1.8350034 | F42: =AVERAGE(Table35[[#This Row],[v10_low]:[v12_high]]) -> 0.6116678
A43: 16.8.4 SECONDARY METABOLISM.FLAVONOIDS.FLAVONOLS | B43: 0 | C43: 1.7016641 | D43: 0 | E43: =SUM(Table35[[#This Row],[v10_low]:[v12_high]]) -> 1.7016641 | F43: =AVERAGE(Table35[[#This Row],[v10_low]:[v12_high]]) -> 0.5672213667
A44: 17.1.2 HORMONE METABOLISM.ABSCISIC ACID.SIGNAL TRANSDUCTION | B44: 1.8800068 | C44: 2.1878896 | D44: 1.9336845 | E44: =SUM(Table35[[#This Row],[v10_low]:[v12_high]]) -> 6.0015809 | F44: =AVERAGE(Table35[[#This Row],[v10_low]:[v12_high]]) -> 2.000526967
A45: 17.1.3 HORMONE METABOLISM.ABSCISIC ACID.INDUCED-REGULATED-RESPONSIVE-ACTIVATED | B45: 1.8437324 | C45: 1.9730338 | D45: 2.0659008 | E45: =SUM(Table35[[#This Row],[v10_low]:[v12_high]]) -> 5.882667 | F45: =AVERAGE(Table35[[#This Row],[v10_low]:[v12_high]]) -> 1.960889
A46: 17.5.2 HORMONE METABOLISM.ETHYLENE.SIGNAL TRANSDUCTION | B46: 0 | C46: 0 | D46: 1.8551253 | E46: =SUM(Table35[[#This Row],[v10_low]:[v12_high]]) -> 1.8551253 | F46: =AVERAGE(Table35[[#This Row],[v10_low]:[v12_high]]) -> 0.6183751
A47: 17.2.2 HORMONE METABOLISM.AUXIN.SIGNAL TRANSDUCTION | B47: 0 | C47: 0 | D47: 0 | E47: =SUM(Table35[[#This Row],[v10_low]:[v12_high]]) -> 0 | F47: =AVERAGE(Table35[[#This Row],[v10_low]:[v12_high]]) -> 0
A48: 17.2.3 HORMONE METABOLISM.AUXIN.INDUCED-REGULATED-RESPONSIVE-ACTIVATED | B48: 0 | C48: 0 | D48: 0 | E48: =SUM(Table35[[#This Row],[v10_low]:[v12_high]]) -> 0 | F48: =AVERAGE(Table35[[#This Row],[v10_low]:[v12_high]]) -> 0
A49: 17.3.2.99 HORMONE METABOLISM.BRASSINOSTEROID.SIGNAL TRANSDUCTION.OTHER | B49: 0 | C49: 0 | D49: 0 | E49: =SUM(Table35[[#This Row],[v10_low]:[v12_high]]) -> 0 | F49: =AVERAGE(Table35[[#This Row],[v10_low]:[v12_high]]) -> 0
A50: 17.4.1 HORMONE METABOLISM.CYTOKININ.SYNTHESIS-DEGRADATION | B50: 0 | C50: 0 | D50: 0 | E50: =SUM(Table35[[#This Row],[v10_low]:[v12_high]]) -> 0 | F50: =AVERAGE(Table35[[#This Row],[v10_low]:[v12_high]]) -> 0
A51: 17.5.1 HORMONE METABOLISM.ETHYLENE.SYNTHESIS-DEGRADATION | B51: 0 | C51: 0 | D51: 0 | E51: =SUM(Table35[[#This Row],[v10_low]:[v12_high]]) -> 0 | F51: =AVERAGE(Table35[[#This Row],[v10_low]:[v12_high]]) -> 0
A52: 2.2.2.1.2 MAJOR CHO METABOLISM.DEGRADATION.STARCH.STARCH CLEAVAGE.BETA AMYLASE | B52: 1.9691802 | C52: 0 | D52: 0 | E52: =SUM(Table35[[#This Row],[v10_low]:[v12_high]]) -> 1.9691802 | F52: =AVERAGE(Table35[[#This Row],[v10_low]:[v12_high]]) -> 0.6563934
A53: 17.5.3 HORMONE METABOLISM.ETHYLENE.INDUCED-REGULATED-RESPONSIVE-ACTIVATED | B53: 0 | C53: 0 | D53: 0 | E53: =SUM(Table35[[#This Row],[v10_low]:[v12_high]]) -> 0 | F53: =AVERAGE(Table35[[#This Row],[v10_low]:[v12_high]]) -> 0
A54: 17.8.1 HORMONE METABOLISM.SALICYLIC ACID.SYNTHESIS-DEGRADATION | B54: 0 | C54: 0 | D54: 0 | E54: =SUM(Table35[[#This Row],[v10_low]:[v12_high]]) -> 0 | F54: =AVERAGE(Table35[[#This Row],[v10_low]:[v12_high]]) -> 0
A55: 18 CO-FACTOR AND VITAMINE METABOLISM | B55: 0 | C55: 0 | D55: 0 | E55: =SUM(Table35[[#This Row],[v10_low]:[v12_high]]) -> 0 | F55: =AVERAGE(Table35[[#This Row],[v10_low]:[v12_high]]) -> 0
A56: 18.7 CO-FACTOR AND VITAMINE METABOLISM.IRON-SULPHUR CLUSTERS | B56: 0 | C56: 0 | D56: 0 | E56: =SUM(Table35[[#This Row],[v10_low]:[v12_high]]) -> 0 | F56: =AVERAGE(Table35[[#This Row],[v10_low]:[v12_high]]) -> 0
A57: 20.1 STRESS.BIOTIC | B57: 0 | C57: 1.979799 | D57: 2.0292907 | E57: =SUM(Table35[[#This Row],[v10_low]:[v12_high]]) -> 4.0090897 | F57: =AVERAGE(Table35[[#This Row],[v10_low]:[v12_high]]) -> 1.336363233
A58: 20.1.7 STRESS.BIOTIC.PR-PROTEINS | B58: 0 | C58: 0 | D58: 0 | E58: =SUM(Table35[[#This Row],[v10_low]:[v12_high]]) -> 0 | F58: =AVERAGE(Table35[[#This Row],[v10_low]:[v12_high]]) -> 0
A59: 20.2 STRESS.ABIOTIC | B59: 0 | C59: 1.6410445 | D59: 0 | E59: =SUM(Table35[[#This Row],[v10_low]:[v12_high]]) -> 1.6410445 | F59: =AVERAGE(Table35[[#This Row],[v10_low]:[v12_high]]) -> 0.5470148333
A60: 20.2.1 STRESS.ABIOTIC.HEAT | B60: 0 | C60: 0 | D60: 0 | E60: =SUM(Table35[[#This Row],[v10_low]:[v12_high]]) -> 0 | F60: =AVERAGE(Table35[[#This Row],[v10_low]:[v12_high]]) -> 0
A61: 20.2.2 STRESS.ABIOTIC.COLD | B61: 0 | C61: 1.6526372 | D61: 1.7346632 | E61: =SUM(Table35[[#This Row],[v10_low]:[v12_high]]) -> 3.3873004 | F61: =AVERAGE(Table35[[#This Row],[v10_low]:[v12_high]]) -> 1.129100133
A62: 20.2.3 STRESS.ABIOTIC.DROUGHT/SALT | B62: 0 | C62: 0 | D62: 0 | E62: =SUM(Table35[[#This Row],[v10_low]:[v12_high]]) -> 0 | F62: =AVERAGE(Table35[[#This Row],[v10_low]:[v12_high]]) -> 0
A63: 20.2.4 STRESS.ABIOTIC.TOUCH/WOUNDING | B63: 0 | C63: 1.9003338 | D63: 1.6725432 | E63: =SUM(Table35[[#This Row],[v10_low]:[v12_high]]) -> 3.572877 | F63: =AVERAGE(Table35[[#This Row],[v10_low]:[v12_high]]) -> 1.190959
A64: 20.2.5 STRESS.ABIOTIC.LIGHT | B64: 0 | C64: 0 | D64: 0 | E64: =SUM(Table35[[#This Row],[v10_low]:[v12_high]]) -> 0 | F64: =AVERAGE(Table35[[#This Row],[v10_low]:[v12_high]]) -> 0
A65: 20.2.99 STRESS.ABIOTIC.UNSPECIFIED | B65: 0 | C65: 0 | D65: 0 | E65: =SUM(Table35[[#This Row],[v10_low]:[v12_high]]) -> 0 | F65: =AVERAGE(Table35[[#This Row],[v10_low]:[v12_high]]) -> 0
A66: 21.1 REDOX.THIOREDOXIN | B66: 0 | C66: 0 | D66: 0 | E66: =SUM(Table35[[#This Row],[v10_low]:[v12_high]]) -> 0 | F66: =AVERAGE(Table35[[#This Row],[v10_low]:[v12_high]]) -> 0
A67: 21.1.1 REDOX.THIOREDOXIN.PDIL | B67: 0 | C67: 0 | D67: 0 | E67: =SUM(Table35[[#This Row],[v10_low]:[v12_high]]) -> 0 | F67: =AVERAGE(Table35[[#This Row],[v10_low]:[v12_high]]) -> 0
A68: 21.2 REDOX.ASCORBATE AND GLUTATHIONE | B68: 0 | C68: 0 | D68: 0 | E68: =SUM(Table35[[#This Row],[v10_low]:[v12_high]]) -> 0 | F68: =AVERAGE(Table35[[#This Row],[v10_low]:[v12_high]]) -> 0
A69: 21.2.1 REDOX.ASCORBATE AND GLUTATHIONE.ASCORBATE | B69: 0 | C69: 0 | D69: 0 | E69: =SUM(Table35[[#This Row],[v10_low]:[v12_high]]) -> 0 | F69: =AVERAGE(Table35[[#This Row],[v10_low]:[v12_high]]) -> 0
A70: 21.2.2 REDOX.ASCORBATE AND GLUTATHIONE.GLUTATHIONE | B70: 0 | C70: 0 | D70: 0 | E70: =SUM(Table35[[#This Row],[v10_low]:[v12_high]]) -> 0 | F70: =AVERAGE(Table35[[#This Row],[v10_low]:[v12_high]]) -> 0
A71: 21.4 REDOX.GLUTAREDOXINS | B71: 0 | C71: 0 | D71: 0 | E71: =SUM(Table35[[#This Row],[v10_low]:[v12_high]]) -> 0 | F71: =AVERAGE(Table35[[#This Row],[v10_low]:[v12_high]]) -> 0
A72: 21.6 REDOX.DISMUTASES AND CATALASES | B72: 0 | C72: 0 | D72: 0 | E72: =SUM(Table35[[#This Row],[v10_low]:[v12_high]]) -> 0 | F72: =AVERAGE(Table35[[#This Row],[v10_low]:[v12_high]]) -> 0
A73: 23.2 NUCLEOTIDE METABOLISM.DEGRADATION | B73: 0 | C73: 0 | D73: 0 | E73: =SUM(Table35[[#This Row],[v10_low]:[v12_high]]) -> 0 | F73: =AVERAGE(Table35[[#This Row],[v10_low]:[v12_high]]) -> 0
A74: 23.3.3 NUCLEOTIDE METABOLISM.SALVAGE.NUDIX HYDROLASES | B74: 0 | C74: 0 | D74: 0 | E74: =SUM(Table35[[#This Row],[v10_low]:[v12_high]]) -> 0 | F74: =AVERAGE(Table35[[#This Row],[v10_low]:[v12_high]]) -> 0
A75: 23.4.99 NUCLEOTIDE METABOLISM.PHOSPHOTRANSFER AND PYROPHOSPHATASES.MISC | B75: 0 | C75: 0 | D75: 0 | E75: =SUM(Table35[[#This Row],[v10_low]:[v12_high]]) -> 0 | F75: =AVERAGE(Table35[[#This Row],[v10_low]:[v12_high]]) -> 0
A76: 24 BIODEGRADATION OF XENOBIOTICS | B76: 0 | C76: 1.8502047 | D76: 0 | E76: =SUM(Table35[[#This Row],[v10_low]:[v12_high]]) -> 1.8502047 | F76: =AVERAGE(Table35[[#This Row],[v10_low]:[v12_high]]) -> 0.6167349
A77: 25.1 C1-METABOLISM.GLYCINE HYDROXYMETHYLTRANSFERASE | B77: 0 | C77: 0 | D77: 0 | E77: =SUM(Table35[[#This Row],[v10_low]:[v12_high]]) -> 0 | F77: =AVERAGE(Table35[[#This Row],[v10_low]:[v12_high]]) -> 0
A78: 26.1 MISC.MISC2 | B78: 0 | C78: 0 | D78: 0 | E78: =SUM(Table35[[#This Row],[v10_low]:[v12_high]]) -> 0 | F78: =AVERAGE(Table35[[#This Row],[v10_low]:[v12_high]]) -> 0
A79: 26.2 MISC.UDP GLUCOSYL AND GLUCORONYL TRANSFERASES | B79: 0 | C79: 0 | D79: 0 | E79: =SUM(Table35[[#This Row],[v10_low]:[v12_high]]) -> 0 | F79: =AVERAGE(Table35[[#This Row],[v10_low]:[v12_high]]) -> 0
A80: 26.3 MISC.GLUCO-, GALACTO- AND MANNOSIDASES | B80: 0 | C80: 0 | D80: 0 | E80: =SUM(Table35[[#This Row],[v10_low]:[v12_high]]) -> 0 | F80: =AVERAGE(Table35[[#This Row],[v10_low]:[v12_high]]) -> 0
A81: 26.10 MISC.CYTOCHROME P450 | B81: 2.0621443 | C81: 2.1146362 | D81: 1.9281881 | E81: =SUM(Table35[[#This Row],[v10_low]:[v12_high]]) -> 6.1049686 | F81: =AVERAGE(Table35[[#This Row],[v10_low]:[v12_high]]) -> 2.034989533
A82: 26.4 MISC.BETA 1,3 GLUCAN HYDROLASES | B82: 0 | C82: 0 | D82: 0 | E82: =SUM(Table35[[#This Row],[v10_low]:[v12_high]]) -> 0 | F82: =AVERAGE(Table35[[#This Row],[v10_low]:[v12_high]]) -> 0
A83: 26.12 MISC.PEROXIDASES | B83: 0 | C83: 0 | D83: 1.8991888 | E83: =SUM(Table35[[#This Row],[v10_low]:[v12_high]]) -> 1.8991888 | F83: =AVERAGE(Table35[[#This Row],[v10_low]:[v12_high]]) -> 0.6330629333
A84: 26.5 MISC.ACYL TRANSFERASES | B84: 0 | C84: 0 | D84: 0 | E84: =SUM(Table35[[#This Row],[v10_low]:[v12_high]]) -> 0 | F84: =AVERAGE(Table35[[#This Row],[v10_low]:[v12_high]]) -> 0
A85: 26.6 MISC.O-METHYL TRANSFERASES | B85: 0 | C85: 0 | D85: 0 | E85: =SUM(Table35[[#This Row],[v10_low]:[v12_high]]) -> 0 | F85: =AVERAGE(Table35[[#This Row],[v10_low]:[v12_high]]) -> 0
A86: 26.7 MISC.OXIDASES - COPPER, FLAVONE ETC | B86: 0 | C86: 0 | D86: 0 | E86: =SUM(Table35[[#This Row],[v10_low]:[v12_high]]) -> 0 | F86: =AVERAGE(Table35[[#This Row],[v10_low]:[v12_high]]) -> 0
A87: 26.8 MISC.NITRILASES, *NITRILE LYASES, BERBERINE BRIDGE ENZYMES, RETICULINE OXIDASES, TROPONINE REDUCTASES | B87: 0 | C87: 0 | D87: 0 | E87: =SUM(Table35[[#This Row],[v10_low]:[v12_high]]) -> 0 | F87: =AVERAGE(Table35[[#This Row],[v10_low]:[v12_high]]) -> 0
A88: 26.19 MISC.PLASTOCYANIN-LIKE | B88: 0 | C88: 0 | D88: 1.725434 | E88: =SUM(Table35[[#This Row],[v10_low]:[v12_high]]) -> 1.725434 | F88: =AVERAGE(Table35[[#This Row],[v10_low]:[v12_high]]) -> 0.5751446667
A89: 26.21 MISC.PROTEASE INHIBITOR/SEED STORAGE/LIPID TRANSFER PROTEIN (LTP) FAMILY PROTEIN | B89: 0 | C89: -1.9183649 | D89: -1.8527651 | E89: =SUM(Table35[[#This Row],[v10_low]:[v12_high]]) -> -3.77113 | F89: =AVERAGE(Table35[[#This Row],[v10_low]:[v12_high]]) -> -1.257043333
A90: 26.28 MISC.GDSL-MOTIF LIPASE | B90: 0 | C90: -1.7767106 | D90: -1.7774082 | E90: =SUM(Table35[[#This Row],[v10_low]:[v12_high]]) -> -3.5541188 | F90: =AVERAGE(Table35[[#This Row],[v10_low]:[v12_high]]) -> -1.184706267
A91: 26.13 MISC.ACID AND OTHER PHOSPHATASES | B91: 0 | C91: 0 | D91: 0 | E91: =SUM(Table35[[#This Row],[v10_low]:[v12_high]]) -> 0 | F91: =AVERAGE(Table35[[#This Row],[v10_low]:[v12_high]]) -> 0
A92: 26.16 MISC.MYROSINASES-LECTIN-JACALIN | B92: 0 | C92: 0 | D92: 0 | E92: =SUM(Table35[[#This Row],[v10_low]:[v12_high]]) -> 0 | F92: =AVERAGE(Table35[[#This Row],[v10_low]:[v12_high]]) -> 0
A93: 26.3.2 MISC.GLUCO-, GALACTO- AND MANNOSIDASES.BETA-GALACTOSIDASE | B93: 0 | C93: -1.6574149 | D93: 0 | E93: =SUM(Table35[[#This Row],[v10_low]:[v12_high]]) -> -1.6574149 | F93: =AVERAGE(Table35[[#This Row],[v10_low]:[v12_high]]) -> -0.5524716333
A94: 26.4.1 MISC.BETA 1,3 GLUCAN HYDROLASES.GLUCAN ENDO-1,3-BETA-GLUCOSIDASE | B94: -1.7658294 | C94: 0 | D94: 0 | E94: =SUM(Table35[[#This Row],[v10_low]:[v12_high]]) -> -1.7658294 | F94: =AVERAGE(Table35[[#This Row],[v10_low]:[v12_high]]) -> -0.5886098
A95: 26.22 MISC.SHORT CHAIN DEHYDROGENASE/REDUCTASE (SDR) | B95: 0 | C95: 0 | D95: 0 | E95: =SUM(Table35[[#This Row],[v10_low]:[v12_high]]) -> 0 | F95: =AVERAGE(Table35[[#This Row],[v10_low]:[v12_high]]) -> 0
A96: 26.24 MISC.GCN5-RELATED N-ACETYLTRANSFERASE | B96: 0 | C96: 0 | D96: 0 | E96: =SUM(Table35[[#This Row],[v10_low]:[v12_high]]) -> 0 | F96: =AVERAGE(Table35[[#This Row],[v10_low]:[v12_high]]) -> 0
A97: 26.9 MISC.GLUTATHIONE S TRANSFERASES | B97: 0 | C97: 2.2536116 | D97: 1.9930892 | E97: =SUM(Table35[[#This Row],[v10_low]:[v12_high]]) -> 4.2467008 | F97: =AVERAGE(Table35[[#This Row],[v10_low]:[v12_high]]) -> 1.415566933
A98: 27.1 RNA.PROCESSING | B98: 0 | C98: 0 | D98: 0 | E98: =SUM(Table35[[#This Row],[v10_low]:[v12_high]]) -> 0 | F98: =AVERAGE(Table35[[#This Row],[v10_low]:[v12_high]]) -> 0
A99: 27.1.1 RNA.PROCESSING.SPLICING | B99: 0 | C99: 0 | D99: 0 | E99: =SUM(Table35[[#This Row],[v10_low]:[v12_high]]) -> 0 | F99: =AVERAGE(Table35[[#This Row],[v10_low]:[v12_high]]) -> 0
A100: 27.1.2 RNA.PROCESSING.RNA HELICASE | B100: 0 | C100: -1.6274478 | D100: 0 | E100: =SUM(Table35[[#This Row],[v10_low]:[v12_high]]) -> -1.6274478 | F100: =AVERAGE(Table35[[#This Row],[v10_low]:[v12_high]]) -> -0.5424826
A101: 27.1.19 RNA.PROCESSING.RIBONUCLEASES | B101: 0 | C101: 0 | D101: 0 | E101: =SUM(Table35[[#This Row],[v10_low]:[v12_high]]) -> 0 | F101: =AVERAGE(Table35[[#This Row],[v10_low]:[v12_high]]) -> 0
A102: 27.2 RNA.TRANSCRIPTION | B102: 0 | C102: 0 | D102: 0 | E102: =SUM(Table35[[#This Row],[v10_low]:[v12_high]]) -> 0 | F102: =AVERAGE(Table35[[#This Row],[v10_low]:[v12_high]]) -> 0
A103: 27.3 RNA.REGULATION OF TRANSCRIPTION | B103: 0 | C103: 0 | D103: 0 | E103: =SUM(Table35[[#This Row],[v10_low]:[v12_high]]) -> 0 | F103: =AVERAGE(Table35[[#This Row],[v10_low]:[v12_high]]) -> 0
A104: 27.3.22 RNA.REGULATION OF TRANSCRIPTION.HB,HOMEOBOX TRANSCRIPTION FACTOR FAMILY | B104: 0 | C104: 2.1126926 | D104: 2.0057077 | E104: =SUM(Table35[[#This Row],[v10_low]:[v12_high]]) -> 4.1184003 | F104: =AVERAGE(Table35[[#This Row],[v10_low]:[v12_high]]) -> 1.3728001
A105: 27.3.24 RNA.REGULATION OF TRANSCRIPTION.MADS BOX TRANSCRIPTION FACTOR FAMILY | B105: 1.8603693 | C105: 0 | D105: 0 | E105: =SUM(Table35[[#This Row],[v10_low]:[v12_high]]) -> 1.8603693 | F105: =AVERAGE(Table35[[#This Row],[v10_low]:[v12_high]]) -> 0.6201231
A106: 27.3.5 RNA.REGULATION OF TRANSCRIPTION.ARR | B106: 0 | C106: 0 | D106: 0 | E106: =SUM(Table35[[#This Row],[v10_low]:[v12_high]]) -> 0 | F106: =AVERAGE(Table35[[#This Row],[v10_low]:[v12_high]]) -> 0
A107: 27.3.6 RNA.REGULATION OF TRANSCRIPTION.BHLH,BASIC HELIX-LOOP-HELIX FAMILY | B107: 0 | C107: 0 | D107: 0 | E107: =SUM(Table35[[#This Row],[v10_low]:[v12_high]]) -> 0 | F107: =AVERAGE(Table35[[#This Row],[v10_low]:[v12_high]]) -> 0
A108: 27.3.7 RNA.REGULATION OF TRANSCRIPTION.C2C2(ZN) CO-LIKE, CONSTANS-LIKE ZINC FINGER FAMILY | B108: 0 | C108: 0 | D108: 0 | E108: =SUM(Table35[[#This Row],[v10_low]:[v12_high]]) -> 0 | F108: =AVERAGE(Table35[[#This Row],[v10_low]:[v12_high]]) -> 0
A109: 27.3.26 RNA.REGULATION OF TRANSCRIPTION.MYB-RELATED TRANSCRIPTION FACTOR FAMILY | B109: 0 | C109: -1.8283106 | D109: 0 | E109: =SUM(Table35[[#This Row],[v10_low]:[v12_high]]) -> -1.8283106 | F109: =AVERAGE(Table35[[#This Row],[v10_low]:[v12_high]]) -> -0.6094368667
A110: 27.3.9 RNA.REGULATION OF TRANSCRIPTION.C2C2(ZN) GATA TRANSCRIPTION FACTOR FAMILY | B110: 0 | C110: 0 | D110: 0 | E110: =SUM(Table35[[#This Row],[v10_low]:[v12_high]]) -> 0 | F110: =AVERAGE(Table35[[#This Row],[v10_low]:[v12_high]]) -> 0
A111: 27.3.11 RNA.REGULATION OF TRANSCRIPTION.C2H2 ZINC FINGER FAMILY | B111: 0 | C111: 0 | D111: 0 | E111: =SUM(Table35[[#This Row],[v10_low]:[v12_high]]) -> 0 | F111: =AVERAGE(Table35[[#This Row],[v10_low]:[v12_high]]) -> 0
A112: 27.3.12 RNA.REGULATION OF TRANSCRIPTION.C3H ZINC FINGER FAMILY | B112: 0 | C112: 0 | D112: 0 | E112: =SUM(Table35[[#This Row],[v10_low]:[v12_high]]) -> 0 | F112: =AVERAGE(Table35[[#This Row],[v10_low]:[v12_high]]) -> 0
A113: 27.3.20 RNA.REGULATION OF TRANSCRIPTION.G2-LIKE TRANSCRIPTION FACTOR FAMILY, GARP | B113: 0 | C113: 0 | D113: 0 | E113: =SUM(Table35[[#This Row],[v10_low]:[v12_high]]) -> 0 | F113: =AVERAGE(Table35[[#This Row],[v10_low]:[v12_high]]) -> 0
A114: 27.3.3 RNA.REGULATION OF TRANSCRIPTION.AP2/EREBP, APETALA2/ETHYLENE-RESPONSIVE ELEMENT BINDING PROTEIN FAMILY | B114: 0 | C114: 0 | D114: 1.7488068 | E114: =SUM(Table35[[#This Row],[v10_low]:[v12_high]]) -> 1.7488068 | F114: =AVERAGE(Table35[[#This Row],[v10_low]:[v12_high]]) -> 0.5829356
A115: 27.3.23 RNA.REGULATION OF TRANSCRIPTION.HSF,HEAT-SHOCK TRANSCRIPTION FACTOR FAMILY | B115: 0 | C115: 0 | D115: 0 | E115: =SUM(Table35[[#This Row],[v10_low]:[v12_high]]) -> 0 | F115: =AVERAGE(Table35[[#This Row],[v10_low]:[v12_high]]) -> 0
A116: 27.3.32 RNA.REGULATION OF TRANSCRIPTION.WRKY DOMAIN TRANSCRIPTION FACTOR FAMILY | B116: 0 | C116: 2.409604 | D116: 2.212452 | E116: =SUM(Table35[[#This Row],[v10_low]:[v12_high]]) -> 4.622056 | F116: =AVERAGE(Table35[[#This Row],[v10_low]:[v12_high]]) -> 1.540685333
A117: 27.3.25 RNA.REGULATION OF TRANSCRIPTION.MYB DOMAIN TRANSCRIPTION FACTOR FAMILY | B117: 0 | C117: 0 | D117: 0 | E117: =SUM(Table35[[#This Row],[v10_low]:[v12_high]]) -> 0 | F117: =AVERAGE(Table35[[#This Row],[v10_low]:[v12_high]]) -> 0
A118: 27.3.34 RNA.REGULATION OF TRANSCRIPTION.ORPHAN FAMILY | B118: 0 | C118: -1.8156065 | D118: -1.8383969 | E118: =SUM(Table35[[#This Row],[v10_low]:[v12_high]]) -> -3.6540034 | F118: =AVERAGE(Table35[[#This Row],[v10_low]:[v12_high]]) -> -1.218001133
A119: 27.3.29 RNA.REGULATION OF TRANSCRIPTION.TCP TRANSCRIPTION FACTOR FAMILY | B119: 0 | C119: 0 | D119: 0 | E119: =SUM(Table35[[#This Row],[v10_low]:[v12_high]]) -> 0 | F119: =AVERAGE(Table35[[#This Row],[v10_low]:[v12_high]]) -> 0
A120: 27.3.30 RNA.REGULATION OF TRANSCRIPTION.TRIHELIX, TRIPLE-HELIX TRANSCRIPTION FACTOR FAMILY | B120: 0 | C120: 0 | D120: 0 | E120: =SUM(Table35[[#This Row],[v10_low]:[v12_high]]) -> 0 | F120: =AVERAGE(Table35[[#This Row],[v10_low]:[v12_high]]) -> 0
A121: 27.3.35 RNA.REGULATION OF TRANSCRIPTION.BZIP TRANSCRIPTION FACTOR FAMILY | B121: 0 | C121: 0 | D121: 1.8303448 | E121: =SUM(Table35[[#This Row],[v10_low]:[v12_high]]) -> 1.8303448 | F121: =AVERAGE(Table35[[#This Row],[v10_low]:[v12_high]]) -> 0.6101149333
A122: 27.3.4 RNA.REGULATION OF TRANSCRIPTION.ARF, AUXIN RESPONSE FACTOR FAMILY | B122: 0 | C122: -1.6918719 | D122: -1.6255245 | E122: =SUM(Table35[[#This Row],[v10_low]:[v12_high]]) -> -3.3173964 | F122: =AVERAGE(Table35[[#This Row],[v10_low]:[v12_high]]) -> -1.1057988
A123: 27.3.40 RNA.REGULATION OF TRANSCRIPTION.AUX/IAA FAMILY | B123: 2.0237858 | C123: 0 | D123: 0 | E123: =SUM(Table35[[#This Row],[v10_low]:[v12_high]]) -> 2.0237858 | F123: =AVERAGE(Table35[[#This Row],[v10_low]:[v12_high]]) -> 0.6745952667
A124: 27.3.69 RNA.REGULATION OF TRANSCRIPTION.SET-DOMAIN TRANSCRIPTIONAL REGULATOR FAMILY | B124: 0 | C124: -1.7134569 | D124: 0 | E124: =SUM(Table35[[#This Row],[v10_low]:[v12_high]]) -> -1.7134569 | F124: =AVERAGE(Table35[[#This Row],[v10_low]:[v12_high]]) -> -0.5711523
A125: 27.3.44 RNA.REGULATION OF TRANSCRIPTION.CHROMATIN REMODELING FACTORS | B125: 0 | C125: 0 | D125: 0 | E125: =SUM(Table35[[#This Row],[v10_low]:[v12_high]]) -> 0 | F125: =AVERAGE(Table35[[#This Row],[v10_low]:[v12_high]]) -> 0
A126: 27.3.50 RNA.REGULATION OF TRANSCRIPTION.GENERAL TRANSCRIPTION | B126: 0 | C126: 0 | D126: 0 | E126: =SUM(Table35[[#This Row],[v10_low]:[v12_high]]) -> 0 | F126: =AVERAGE(Table35[[#This Row],[v10_low]:[v12_high]]) -> 0
A127: 27.3.52 RNA.REGULATION OF TRANSCRIPTION.GLOBAL TRANSCRIPTION FACTOR GROUP | B127: 0 | C127: 0 | D127: 0 | E127: =SUM(Table35[[#This Row],[v10_low]:[v12_high]]) -> 0 | F127: =AVERAGE(Table35[[#This Row],[v10_low]:[v12_high]]) -> 0
A128: 27.3.54 RNA.REGULATION OF TRANSCRIPTION.HISTONE ACETYLTRANSFERASES | B128: 0 | C128: 0 | D128: 0 | E128: =SUM(Table35[[#This Row],[v10_low]:[v12_high]]) -> 0 | F128: =AVERAGE(Table35[[#This Row],[v10_low]:[v12_high]]) -> 0
A129: 27.3.55 RNA.REGULATION OF TRANSCRIPTION.HDA | B129: 0 | C129: 0 | D129: 0 | E129: =SUM(Table35[[#This Row],[v10_low]:[v12_high]]) -> 0 | F129: =AVERAGE(Table35[[#This Row],[v10_low]:[v12_high]]) -> 0
A130: 27.3.57 RNA.REGULATION OF TRANSCRIPTION.JUMONJI FAMILY | B130: 0 | C130: 0 | D130: 0 | E130: =SUM(Table35[[#This Row],[v10_low]:[v12_high]]) -> 0 | F130: =AVERAGE(Table35[[#This Row],[v10_low]:[v12_high]]) -> 0
A131: 27.3.59 RNA.REGULATION OF TRANSCRIPTION.METHYL BINDING DOMAIN PROTEINS | B131: 0 | C131: 0 | D131: 0 | E131: =SUM(Table35[[#This Row],[v10_low]:[v12_high]]) -> 0 | F131: =AVERAGE(Table35[[#This Row],[v10_low]:[v12_high]]) -> 0
A132: 27.3.63 RNA.REGULATION OF TRANSCRIPTION.PHD FINGER TRANSCRIPTION FACTOR | B132: 0 | C132: 0 | D132: 0 | E132: =SUM(Table35[[#This Row],[v10_low]:[v12_high]]) -> 0 | F132: =AVERAGE(Table35[[#This Row],[v10_low]:[v12_high]]) -> 0
A133: 27.3.67 RNA.REGULATION OF TRANSCRIPTION.PUTATIVE TRANSCRIPTION REGULATOR | B133: 0 | C133: 0 | D133: 0 | E133: =SUM(Table35[[#This Row],[v10_low]:[v12_high]]) -> 0 | F133: =AVERAGE(Table35[[#This Row],[v10_low]:[v12_high]]) -> 0
A134: 27.3.68 RNA.REGULATION OF TRANSCRIPTION.PWWP DOMAIN PROTEIN | B134: 0 | C134: 0 | D134: 0 | E134: =SUM(Table35[[#This Row],[v10_low]:[v12_high]]) -> 0 | F134: =AVERAGE(Table35[[#This Row],[v10_low]:[v12_high]]) -> 0
A135: 27.3.71 RNA.REGULATION OF TRANSCRIPTION.SNF7 | B135: 0 | C135: 1.7228131 | D135: 1.7758546 | E135: =SUM(Table35[[#This Row],[v10_low]:[v12_high]]) -> 3.4986677 | F135: =AVERAGE(Table35[[#This Row],[v10_low]:[v12_high]]) -> 1.166222567
A136: 27.3.8 RNA.REGULATION OF TRANSCRIPTION.C2C2(ZN) DOF ZINC FINGER FAMILY | B136: 0 | C136: 0 | D136: 2.132952 | E136: =SUM(Table35[[#This Row],[v10_low]:[v12_high]]) -> 2.132952 | F136: =AVERAGE(Table35[[#This Row],[v10_low]:[v12_high]]) -> 0.710984
A137: 27.3.73 RNA.REGULATION OF TRANSCRIPTION.ZN-FINGER(CCHC) | B137: 0 | C137: 0 | D137: 0 | E137: =SUM(Table35[[#This Row],[v10_low]:[v12_high]]) -> 0 | F137: =AVERAGE(Table35[[#This Row],[v10_low]:[v12_high]]) -> 0
A138: 27.3.85 RNA.REGULATION OF TRANSCRIPTION.SIGMA LIKE PLANT | B138: 0 | C138: 0 | D138: 0 | E138: =SUM(Table35[[#This Row],[v10_low]:[v12_high]]) -> 0 | F138: =AVERAGE(Table35[[#This Row],[v10_low]:[v12_high]]) -> 0
A139: 27.3.99 RNA.REGULATION OF TRANSCRIPTION.UNCLASSIFIED | B139: 0 | C139: 0 | D139: 0 | E139: =SUM(Table35[[#This Row],[v10_low]:[v12_high]]) -> 0 | F139: =AVERAGE(Table35[[#This Row],[v10_low]:[v12_high]]) -> 0
A140: 27.4 RNA.RNA BINDING | B140: 0 | C140: 0 | D140: 0 | E140: =SUM(Table35[[#This Row],[v10_low]:[v12_high]]) -> 0 | F140: =AVERAGE(Table35[[#This Row],[v10_low]:[v12_high]]) -> 0
A141: 28.1 DNA.SYNTHESIS/CHROMATIN STRUCTURE | B141: 0 | C141: -1.8295889 | D141: 0 | E141: =SUM(Table35[[#This Row],[v10_low]:[v12_high]]) -> -1.8295889 | F141: =AVERAGE(Table35[[#This Row],[v10_low]:[v12_high]]) -> -0.6098629667
A142: 28.1.3.2.1 DNA.SYNTHESIS/CHROMATIN STRUCTURE.HISTONE.CORE.H2A | B142: -2.1773944 | C142: -1.8388014 | D142: -1.6740687 | E142: =SUM(Table35[[#This Row],[v10_low]:[v12_high]]) -> -5.6902645 | F142: =AVERAGE(Table35[[#This Row],[v10_low]:[v12_high]]) -> -1.896754833
A143: 28.1.3.2.2 DNA.SYNTHESIS/CHROMATIN STRUCTURE.HISTONE.CORE.H2B | B143: -2.0319912 | C143: -1.7370316 | D143: 0 | E143: =SUM(Table35[[#This Row],[v10_low]:[v12_high]]) -> -3.7690228 | F143: =AVERAGE(Table35[[#This Row],[v10_low]:[v12_high]]) -> -1.256340933
A144: 28.1.3.2.3 DNA.SYNTHESIS/CHROMATIN STRUCTURE.HISTONE.CORE.H3 | B144: -2.2654805 | C144: -1.866934 | D144: 0 | E144: =SUM(Table35[[#This Row],[v10_low]:[v12_high]]) -> -4.1324145 | F144: =AVERAGE(Table35[[#This Row],[v10_low]:[v12_high]]) -> -1.3774715
A145: 28.1.3.2.4 DNA.SYNTHESIS/CHROMATIN STRUCTURE.HISTONE.CORE.H4 | B145: -2.3924305 | C145: -2.1392972 | D145: -1.7586148 | E145: =SUM(Table35[[#This Row],[v10_low]:[v12_high]]) -> -6.2903425 | F145: =AVERAGE(Table35[[#This Row],[v10_low]:[v12_high]]) -> -2.096780833
A146: 28.2 DNA.REPAIR | B146: 0 | C146: 0 | D146: 0 | E146: =SUM(Table35[[#This Row],[v10_low]:[v12_high]]) -> 0 | F146: =AVERAGE(Table35[[#This Row],[v10_low]:[v12_high]]) -> 0
A147: 28.99 DNA.UNSPECIFIED | B147: 0 | C147: 0 | D147: 0 | E147: =SUM(Table35[[#This Row],[v10_low]:[v12_high]]) -> 0 | F147: =AVERAGE(Table35[[#This Row],[v10_low]:[v12_high]]) -> 0
A148: 29.1 PROTEIN.AA ACTIVATION | B148: 0 | C148: 0 | D148: 0 | E148: =SUM(Table35[[#This Row],[v10_low]:[v12_high]]) -> 0 | F148: =AVERAGE(Table35[[#This Row],[v10_low]:[v12_high]]) -> 0
A149: 29.1.30 PROTEIN.AA ACTIVATION.PSEUDOURIDYLATE SYNTHASE | B149: 0 | C149: 0 | D149: 0 | E149: =SUM(Table35[[#This Row],[v10_low]:[v12_high]]) -> 0 | F149: =AVERAGE(Table35[[#This Row],[v10_low]:[v12_high]]) -> 0
A150: 29.2.2 PROTEIN.SYNTHESIS.RIBOSOME BIOGENESIS | B150: 0 | C150: 0 | D150: 0 | E150: =SUM(Table35[[#This Row],[v10_low]:[v12_high]]) -> 0 | F150: =AVERAGE(Table35[[#This Row],[v10_low]:[v12_high]]) -> 0
A151: 29.2.2.1 PROTEIN.SYNTHESIS.RIBOSOME BIOGENESIS.EXPORT FROM NUCLEUS | B151: 0 | C151: 0 | D151: 0 | E151: =SUM(Table35[[#This Row],[v10_low]:[v12_high]]) -> 0 | F151: =AVERAGE(Table35[[#This Row],[v10_low]:[v12_high]]) -> 0
A152: 29.2.2.3.1 PROTEIN.SYNTHESIS.RIBOSOME BIOGENESIS.PRE-RRNA PROCESSING AND MODIFICATIONS.SNORNPS | B152: -1.9614593 | C152: -1.8455456 | D152: -1.7948176 | E152: =SUM(Table35[[#This Row],[v10_low]:[v12_high]]) -> -5.6018225 | F152: =AVERAGE(Table35[[#This Row],[v10_low]:[v12_high]]) -> -1.867274167
A153: 29.2.2.3.3 PROTEIN.SYNTHESIS.RIBOSOME BIOGENESIS.PRE-RRNA PROCESSING AND MODIFICATIONS.METHYLOTRANSFERASES | B153: 0 | C153: -1.6501136 | D153: 0 | E153: =SUM(Table35[[#This Row],[v10_low]:[v12_high]]) -> -1.6501136 | F153: =AVERAGE(Table35[[#This Row],[v10_low]:[v12_high]]) -> -0.5500378667
A154: 29.2.2.3.5 PROTEIN.SYNTHESIS.RIBOSOME BIOGENESIS.PRE-RRNA PROCESSING AND MODIFICATIONS.DEXD-BOX HELICASES | B154: 0 | C154: 0 | D154: 0 | E154: =SUM(Table35[[#This Row],[v10_low]:[v12_high]]) -> 0 | F154: =AVERAGE(Table35[[#This Row],[v10_low]:[v12_high]]) -> 0
A155: 29.2.3 PROTEIN.SYNTHESIS.INITIATION | B155: 0 | C155: 0 | D155: 0 | E155: =SUM(Table35[[#This Row],[v10_low]:[v12_high]]) -> 0 | F155: =AVERAGE(Table35[[#This Row],[v10_low]:[v12_high]]) -> 0
A156: 29.2.4 PROTEIN.SYNTHESIS.ELONGATION | B156: 0 | C156: -1.8971437 | D156: -1.8526374 | E156: =SUM(Table35[[#This Row],[v10_low]:[v12_high]]) -> -3.7497811 | F156: =AVERAGE(Table35[[#This Row],[v10_low]:[v12_high]]) -> -1.249927033
A157: 29.2.5 PROTEIN.SYNTHESIS.RELEASE | B157: 0 | C157: -1.6218861 | D157: 0 | E157: =SUM(Table35[[#This Row],[v10_low]:[v12_high]]) -> -1.6218861 | F157: =AVERAGE(Table35[[#This Row],[v10_low]:[v12_high]]) -> -0.5406287
A158: 29.3.1 PROTEIN.TARGETING.NUCLEUS | B158: 0 | C158: 0 | D158: 0 | E158: =SUM(Table35[[#This Row],[v10_low]:[v12_high]]) -> 0 | F158: =AVERAGE(Table35[[#This Row],[v10_low]:[v12_high]]) -> 0
A159: 29.3.2 PROTEIN.TARGETING.MITOCHONDRIA | B159: 0 | C159: 0 | D159: 0 | E159: =SUM(Table35[[#This Row],[v10_low]:[v12_high]]) -> 0 | F159: =AVERAGE(Table35[[#This Row],[v10_low]:[v12_high]]) -> 0
A160: 29.3.3 PROTEIN.TARGETING.CHLOROPLAST | B160: 0 | C160: -2.1318588 | D160: -2.0775955 | E160: =SUM(Table35[[#This Row],[v10_low]:[v12_high]]) -> -4.2094543 | F160: =AVERAGE(Table35[[#This Row],[v10_low]:[v12_high]]) -> -1.403151433
A161: 29.3.4.1 PROTEIN.TARGETING.SECRETORY PATHWAY.ER | B161: 0 | C161: 0 | D161: 0 | E161: =SUM(Table35[[#This Row],[v10_low]:[v12_high]]) -> 0 | F161: =AVERAGE(Table35[[#This Row],[v10_low]:[v12_high]]) -> 0
A162: 29.3.4.2 PROTEIN.TARGETING.SECRETORY PATHWAY.GOLGI | B162: 0 | C162: 0 | D162: 0 | E162: =SUM(Table35[[#This Row],[v10_low]:[v12_high]]) -> 0 | F162: =AVERAGE(Table35[[#This Row],[v10_low]:[v12_high]]) -> 0
A163: 29.3.4.3 PROTEIN.TARGETING.SECRETORY PATHWAY.VACUOLE | B163: 0 | C163: 1.8061992 | D163: 1.9007926 | E163: =SUM(Table35[[#This Row],[v10_low]:[v12_high]]) -> 3.7069918 | F163: =AVERAGE(Table35[[#This Row],[v10_low]:[v12_high]]) -> 1.235663933
A164: 29.3.4.99 PROTEIN.TARGETING.SECRETORY PATHWAY.UNSPECIFIED | B164: 0 | C164: 1.8398017 | D164: 0 | E164: =SUM(Table35[[#This Row],[v10_low]:[v12_high]]) -> 1.8398017 | F164: =AVERAGE(Table35[[#This Row],[v10_low]:[v12_high]]) -> 0.6132672333
A165: 29.3.5 PROTEIN.TARGETING.PEROXISOMES | B165: 0 | C165: 0 | D165: 0 | E165: =SUM(Table35[[#This Row],[v10_low]:[v12_high]]) -> 0 | F165: =AVERAGE(Table35[[#This Row],[v10_low]:[v12_high]]) -> 0
A166: 29.4.1 PROTEIN.POSTRANSLATIONAL MODIFICATION.KINASE | B166: 0 | C166: 1.7149376 | D166: 0 | E166: =SUM(Table35[[#This Row],[v10_low]:[v12_high]]) -> 1.7149376 | F166: =AVERAGE(Table35[[#This Row],[v10_low]:[v12_high]]) -> 0.5716458667
A167: 29.4.1.57 PROTEIN.POSTRANSLATIONAL MODIFICATION.KINASE.RECEPTOR LIKE CYTOPLASMATIC KINASE VII | B167: 0 | C167: 1.8263915 | D167: 0 | E167: =SUM(Table35[[#This Row],[v10_low]:[v12_high]]) -> 1.8263915 | F167: =AVERAGE(Table35[[#This Row],[v10_low]:[v12_high]]) -> 0.6087971667
A168: 29.5 PROTEIN.DEGRADATION | B168: 0 | C168: 0 | D168: 0 | E168: =SUM(Table35[[#This Row],[v10_low]:[v12_high]]) -> 0 | F168: =AVERAGE(Table35[[#This Row],[v10_low]:[v12_high]]) -> 0
A169: 29.5.1 PROTEIN.DEGRADATION.SUBTILASES | B169: 0 | C169: 0 | D169: 0 | E169: =SUM(Table35[[#This Row],[v10_low]:[v12_high]]) -> 0 | F169: =AVERAGE(Table35[[#This Row],[v10_low]:[v12_high]]) -> 0
A170: 29.5.11.1 PROTEIN.DEGRADATION.UBIQUITIN.UBIQUITIN | B170: 0 | C170: 1.7962455 | D170: 1.6604366 | E170: =SUM(Table35[[#This Row],[v10_low]:[v12_high]]) -> 3.4566821 | F170: =AVERAGE(Table35[[#This Row],[v10_low]:[v12_high]]) -> 1.152227367
A171: 29.5.11.20 PROTEIN.DEGRADATION.UBIQUITIN.PROTEASOM | B171: 0 | C171: 2.0206797 | D171: 0 | E171: =SUM(Table35[[#This Row],[v10_low]:[v12_high]]) -> 2.0206797 | F171: =AVERAGE(Table35[[#This Row],[v10_low]:[v12_high]]) -> 0.6735599
A172: 29.5.4 PROTEIN.DEGRADATION.ASPARTATE PROTEASE | B172: 0 | C172: 0 | D172: 0 | E172: =SUM(Table35[[#This Row],[v10_low]:[v12_high]]) -> 0 | F172: =AVERAGE(Table35[[#This Row],[v10_low]:[v12_high]]) -> 0
A173: 29.5.5 PROTEIN.DEGRADATION.SERINE PROTEASE | B173: 0 | C173: 0 | D173: 0 | E173: =SUM(Table35[[#This Row],[v10_low]:[v12_high]]) -> 0 | F173: =AVERAGE(Table35[[#This Row],[v10_low]:[v12_high]]) -> 0
A174: 29.5.7 PROTEIN.DEGRADATION.METALLOPROTEASE | B174: 0 | C174: 0 | D174: 0 | E174: =SUM(Table35[[#This Row],[v10_low]:[v12_high]]) -> 0 | F174: =AVERAGE(Table35[[#This Row],[v10_low]:[v12_high]]) -> 0
A175: 29.5.9 PROTEIN.DEGRADATION.AAA TYPE | B175: 0 | C175: 0 | D175: 0 | E175: =SUM(Table35[[#This Row],[v10_low]:[v12_high]]) -> 0 | F175: =AVERAGE(Table35[[#This Row],[v10_low]:[v12_high]]) -> 0
A176: 29.5.11 PROTEIN.DEGRADATION.UBIQUITIN | B176: 0 | C176: 0 | D176: 0 | E176: =SUM(Table35[[#This Row],[v10_low]:[v12_high]]) -> 0 | F176: =AVERAGE(Table35[[#This Row],[v10_low]:[v12_high]]) -> 0
A177: 29.5.11.3 PROTEIN.DEGRADATION.UBIQUITIN.E2 | B177: 0 | C177: 2.061539 | D177: 2.1349325 | E177: =SUM(Table35[[#This Row],[v10_low]:[v12_high]]) -> 4.1964715 | F177: =AVERAGE(Table35[[#This Row],[v10_low]:[v12_high]]) -> 1.398823833
A178: 29.5.11.4.2 PROTEIN.DEGRADATION.UBIQUITIN.E3.RING | B178: 0 | C178: 0 | D178: 1.6156749 | E178: =SUM(Table35[[#This Row],[v10_low]:[v12_high]]) -> 1.6156749 | F178: =AVERAGE(Table35[[#This Row],[v10_low]:[v12_high]]) -> 0.5385583
A179: 29.5.11.4.1 PROTEIN.DEGRADATION.UBIQUITIN.E3.HECT | B179: 0 | C179: 0 | D179: 0 | E179: =SUM(Table35[[#This Row],[v10_low]:[v12_high]]) -> 0 | F179: =AVERAGE(Table35[[#This Row],[v10_low]:[v12_high]]) -> 0
A180: 29.5.11.4.3.1 PROTEIN.DEGRADATION.UBIQUITIN.E3.SCF.SKP | B180: 0 | C180: 1.5950828 | D180: 0 | E180: =SUM(Table35[[#This Row],[v10_low]:[v12_high]]) -> 1.5950828 | F180: =AVERAGE(Table35[[#This Row],[v10_low]:[v12_high]]) -> 0.5316942667
A181: 29.5.11.4.3.2 PROTEIN.DEGRADATION.UBIQUITIN.E3.SCF.FBOX | B181: 0 | C181: 0 | D181: 1.6251658 | E181: =SUM(Table35[[#This Row],[v10_low]:[v12_high]]) -> 1.6251658 | F181: =AVERAGE(Table35[[#This Row],[v10_low]:[v12_high]]) -> 0.5417219333
A182: 29.5.2 PROTEIN.DEGRADATION.AUTOPHAGY | B182: 0 | C182: 1.7256074 | D182: 1.8232836 | E182: =SUM(Table35[[#This Row],[v10_low]:[v12_high]]) -> 3.548891 | F182: =AVERAGE(Table35[[#This Row],[v10_low]:[v12_high]]) -> 1.182963667
A183: 29.5.11.4.5.2 PROTEIN.DEGRADATION.UBIQUITIN.E3.BTB/POZ CULLIN3.BTB/POZ | B183: 0 | C183: 0 | D183: 0 | E183: =SUM(Table35[[#This Row],[v10_low]:[v12_high]]) -> 0 | F183: =AVERAGE(Table35[[#This Row],[v10_low]:[v12_high]]) -> 0
A184: 29.5.11.5 PROTEIN.DEGRADATION.UBIQUITIN.UBIQUITIN PROTEASE | B184: 0 | C184: 0 | D184: 0 | E184: =SUM(Table35[[#This Row],[v10_low]:[v12_high]]) -> 0 | F184: =AVERAGE(Table35[[#This Row],[v10_low]:[v12_high]]) -> 0
A185: 29.5.3 PROTEIN.DEGRADATION.CYSTEINE PROTEASE | B185: 1.8622098 | C185: 1.680345 | D185: 0 | E185: =SUM(Table35[[#This Row],[v10_low]:[v12_high]]) -> 3.5425548 | F185: =AVERAGE(Table35[[#This Row],[v10_low]:[v12_high]]) -> 1.1808516
A186: 29.6 PROTEIN.FOLDING | B186: 0 | C186: -1.8820784 | D186: -1.7265149 | E186: =SUM(Table35[[#This Row],[v10_low]:[v12_high]]) -> -3.6085933 | F186: =AVERAGE(Table35[[#This Row],[v10_low]:[v12_high]]) -> -1.202864433
A187: 29.7 PROTEIN.GLYCOSYLATION | B187: 0 | C187: 0 | D187: 0 | E187: =SUM(Table35[[#This Row],[v10_low]:[v12_high]]) -> 0 | F187: =AVERAGE(Table35[[#This Row],[v10_low]:[v12_high]]) -> 0
A188: 29.8 PROTEIN.ASSEMBLY AND COFACTOR LIGATION | B188: 0 | C188: -1.9078412 | D188: -1.8042482 | E188: =SUM(Table35[[#This Row],[v10_low]:[v12_high]]) -> -3.7120894 | F188: =AVERAGE(Table35[[#This Row],[v10_low]:[v12_high]]) -> -1.237363133
A189: 30.1 SIGNALLING.IN SUGAR AND NUTRIENT PHYSIOLOGY | B189: 0 | C189: 1.7488029 | D189: 0 | E189: =SUM(Table35[[#This Row],[v10_low]:[v12_high]]) -> 1.7488029 | F189: =AVERAGE(Table35[[#This Row],[v10_low]:[v12_high]]) -> 0.5829343
A190: 30.2.2 SIGNALLING.RECEPTOR KINASES.LEUCINE RICH REPEAT II | B190: 0 | C190: 0 | D190: 0 | E190: =SUM(Table35[[#This Row],[v10_low]:[v12_high]]) -> 0 | F190: =AVERAGE(Table35[[#This Row],[v10_low]:[v12_high]]) -> 0
A191: 30.11 SIGNALLING.LIGHT | B191: 1.8233774 | C191: 0 | D191: 0 | E191: =SUM(Table35[[#This Row],[v10_low]:[v12_high]]) -> 1.8233774 | F191: =AVERAGE(Table35[[#This Row],[v10_low]:[v12_high]]) -> 0.6077924667
A192: 30.2.6 SIGNALLING.RECEPTOR KINASES.LEUCINE RICH REPEAT VI | B192: 0 | C192: 0 | D192: 0 | E192: =SUM(Table35[[#This Row],[v10_low]:[v12_high]]) -> 0 | F192: =AVERAGE(Table35[[#This Row],[v10_low]:[v12_high]]) -> 0
A193: 30.2.8.2 SIGNALLING.RECEPTOR KINASES.LEUCINE RICH REPEAT VIII.VIII-2 | B193: 0 | C193: 0 | D193: 0 | E193: =SUM(Table35[[#This Row],[v10_low]:[v12_high]]) -> 0 | F193: =AVERAGE(Table35[[#This Row],[v10_low]:[v12_high]]) -> 0
A194: 30.2.9 SIGNALLING.RECEPTOR KINASES.LEUCINE RICH REPEAT IX | B194: 0 | C194: 0 | D194: 0 | E194: =SUM(Table35[[#This Row],[v10_low]:[v12_high]]) -> 0 | F194: =AVERAGE(Table35[[#This Row],[v10_low]:[v12_high]]) -> 0
A195: 30.2.10 SIGNALLING.RECEPTOR KINASES.LEUCINE RICH REPEAT X | B195: 0 | C195: 0 | D195: 0 | E195: =SUM(Table35[[#This Row],[v10_low]:[v12_high]]) -> 0 | F195: =AVERAGE(Table35[[#This Row],[v10_low]:[v12_high]]) -> 0
A196: 30.2.11 SIGNALLING.RECEPTOR KINASES.LEUCINE RICH REPEAT XI | B196: 0 | C196: 0 | D196: 0 | E196: =SUM(Table35[[#This Row],[v10_low]:[v12_high]]) -> 0 | F196: =AVERAGE(Table35[[#This Row],[v10_low]:[v12_high]]) -> 0
A197: 30.2.16 SIGNALLING.RECEPTOR KINASES.CATHARANTHUS ROSEUS-LIKE RLK1 | B197: 0 | C197: 0 | D197: 0 | E197: =SUM(Table35[[#This Row],[v10_low]:[v12_high]]) -> 0 | F197: =AVERAGE(Table35[[#This Row],[v10_low]:[v12_high]]) -> 0
A198: 30.2.17 SIGNALLING.RECEPTOR KINASES.DUF 26 | B198: 0 | C198: 0 | D198: 1.7603866 | E198: =SUM(Table35[[#This Row],[v10_low]:[v12_high]]) -> 1.7603866 | F198: =AVERAGE(Table35[[#This Row],[v10_low]:[v12_high]]) -> 0.5867955333
A199: 30.2.19 SIGNALLING.RECEPTOR KINASES.LEGUME-LECTIN | B199: 0 | C199: 1.6061851 | D199: 1.8650775 | E199: =SUM(Table35[[#This Row],[v10_low]:[v12_high]]) -> 3.4712626 | F199: =AVERAGE(Table35[[#This Row],[v10_low]:[v12_high]]) -> 1.157087533
A200: 30.2.20 SIGNALLING.RECEPTOR KINASES.WHEAT LRK10 LIKE | B200: 0 | C200: 1.8332494 | D200: 1.830707 | E200: =SUM(Table35[[#This Row],[v10_low]:[v12_high]]) -> 3.6639564 | F200: =AVERAGE(Table35[[#This Row],[v10_low]:[v12_high]]) -> 1.2213188
... 51 more rows

Sheet Sheet2
A1: 26.10 MISC.CYTOCHROME P450 | B1: 2.0621443 | C1: 2.1146362 | D1: 1.9281881 | H1: 2.0621443 | I1: 2.1146362 | J1: 1.9281881 | K1: P450 | M1: 0 | N1: -1.8335947 | O1: 0
A2: 17.1.2 HORMONE METABOLISM.ABSCISIC ACID.SIGNAL TRANSDUCTION | B2: 1.8800068 | C2: 2.1878896 | D2: 1.9336845 | H2: 1.8800068 | I2: 2.1878896 | J2: 1.9336845 | M2: 0 | N2: 0 | O2: -1.93939
A3: 17.1.3 HORMONE METABOLISM.ABSCISIC ACID.INDUCED-REGULATED-RESPONSIVE-ACTIVATED | B3: 1.8437324 | C3: 1.9730338 | D3: 2.0659008 | H3: 1.8437324 | I3: 1.9730338 | J3: 2.0659008 | M3: 0 | N3: -1.9183649 | O3: -1.8527651
A4: 17.5.2 HORMONE METABOLISM.ETHYLENE.SIGNAL TRANSDUCTION | B4: 0 | C4: 0 | D4: 1.8551253 | H4: 0 | I4: 0 | J4: 1.8551253 | K4: abscisic acid, ethylene | M4: 0 | N4: -1.7767106 | O4: -1.7774082
A5: 27.3.32 RNA.REGULATION OF TRANSCRIPTION.WRKY DOMAIN TRANSCRIPTION FACTOR FAMILY | B5: 0 | C5: 2.409604 | D5: 2.212452 | H5: 0 | I5: 2.409604 | J5: 2.212452 | M5: 0 | N5: -1.8295889 | O5: 0
A6: 27.3.22 RNA.REGULATION OF TRANSCRIPTION.HB,HOMEOBOX TRANSCRIPTION FACTOR FAMILY | B6: 0 | C6: 2.1126926 | D6: 2.0057077 | H6: 0 | I6: 2.1126926 | J6: 2.0057077 | M6: -2.1773944 | N6: -1.8388014 | O6: -1.6740687
A7: 27.3.8 RNA.REGULATION OF TRANSCRIPTION.C2C2(ZN) DOF ZINC FINGER FAMILY | B7: 0 | C7: 0 | D7: 2.132952 | H7: 0 | I7: 0 | J7: 2.132952 | M7: -2.0319912 | N7: -1.7370316 | O7: 0
A8: 27.3.40 RNA.REGULATION OF TRANSCRIPTION.AUX/IAA FAMILY | B8: 2.0237858 | C8: 0 | D8: 0 | H8: 2.0237858 | I8: 0 | J8: 0 | M8: -2.2654805 | N8: -1.866934 | O8: 0
A9: 27.3.71 RNA.REGULATION OF TRANSCRIPTION.SNF7 | B9: 0 | C9: 1.7228131 | D9: 1.7758546 | H9: 0 | I9: 1.7228131 | J9: 1.7758546 | M9: -2.3924305 | N9: -2.1392972 | O9: -1.7586148
A10: 27.3.35 RNA.REGULATION OF TRANSCRIPTION.BZIP TRANSCRIPTION FACTOR FAMILY | B10: 0 | C10: 0 | D10: 1.8303448 | H10: 0 | I10: 0 | J10: 1.8303448 | M10: -1.9614593 | N10: -1.8455456 | O10: -1.7948176
A11: 27.3.24 RNA.REGULATION OF TRANSCRIPTION.MADS BOX TRANSCRIPTION FACTOR FAMILY | B11: 1.8603693 | C11: 0 | D11: 0 | H11: 1.8603693 | I11: 0 | J11: 0 | M11: 0 | N11: -1.6501136 | O11: 0
A12: 27.3.3 RNA.REGULATION OF TRANSCRIPTION.AP2/EREBP, APETALA2/ETHYLENE-RESPONSIVE ELEMENT BINDING PROTEIN FAMILY | B12: 0 | C12: 0 | D12: 1.7488068 | H12: 0 | I12: 0 | J12: 1.7488068 | K12: transcription factors | M12: 0 | N12: -1.8971437 | O12: -1.8526374
A13: 29.5.11.1 PROTEIN.DEGRADATION.UBIQUITIN.UBIQUITIN | B13: 0 | C13: 1.7962455 | D13: 1.6604366 | H13: 0 | I13: 1.7962455 | J13: 1.6604366 | M13: 0 | N13: -1.6218861 | O13: 0
A14: 29.5.11.20 PROTEIN.DEGRADATION.UBIQUITIN.PROTEASOM | B14: 0 | C14: 2.0206797 | D14: 0 | H14: 0 | I14: 2.0206797 | J14: 0 | M14: 0 | N14: -2.1318588 | O14: -2.0775955
A15: 29.5.11.3 PROTEIN.DEGRADATION.UBIQUITIN.E2 | B15: 0 | C15: 2.061539 | D15: 2.1349325 | H15: 0 | I15: 2.061539 | J15: 2.1349325 | M15: 0 | N15: -1.8820784 | O15: -1.7265149
A16: 29.5.11.4.3.1 PROTEIN.DEGRADATION.UBIQUITIN.E3.SCF.SKP | B16: 0 | C16: 1.5950828 | D16: 0 | H16: 0 | I16: 1.5950828 | J16: 0 | M16: 0 | N16: -1.9078412 | O16: -1.8042482
A17: 29.3.4.3 PROTEIN.TARGETING.SECRETORY PATHWAY.VACUOLE | B17: 0 | C17: 1.8061992 | D17: 1.9007926 | H17: 0 | I17: 1.8061992 | J17: 1.9007926 | M17: 0 | N17: 0 | O17: -1.8121061
A18: 29.3.4.99 PROTEIN.TARGETING.SECRETORY PATHWAY.UNSPECIFIED | B18: 0 | C18: 1.8398017 | D18: 0 | H18: 0 | I18: 1.8398017 | J18: 0 | M18: 0 | N18: 0 | O18: -2.1408293
A19: 29.5.2 PROTEIN.DEGRADATION.AUTOPHAGY | B19: 0 | C19: 1.7256074 | D19: 1.8232836 | H19: 0 | I19: 1.7256074 | J19: 1.8232836 | M19: -1.7483578 | N19: 0 | O19: -1.6538737
A20: 29.5.3 PROTEIN.DEGRADATION.CYSTEINE PROTEASE | B20: 1.8622098 | C20: 1.680345 | D20: 0 | H20: 1.8622098 | I20: 1.680345 | J20: 0 | M20: -1.7685975 | N20: -2.1091502 | O20: -2.427318
A21: 29.5.11.4.3.2 PROTEIN.DEGRADATION.UBIQUITIN.E3.SCF.FBOX | B21: 0 | C21: 0 | D21: 1.6251658 | H21: 0 | I21: 0 | J21: 1.6251658 | M21: 0 | N21: -1.6574149 | O21: 0
A22: 29.5.11.4.2 PROTEIN.DEGRADATION.UBIQUITIN.E3.RING | B22: 0 | C22: 0 | D22: 1.6156749 | H22: 0 | I22: 0 | J22: 1.6156749 | K22: protein degradation | M22: -1.9127483 | N22: 0 | O22: 0
A23: 20.1 STRESS.BIOTIC | B23: 0 | C23: 1.979799 | D23: 2.0292907 | H23: 0 | I23: 1.979799 | J23: 2.0292907 | M23: 0 | N23: -1.8283106 | O23: 0
A24: 20.2.4 STRESS.ABIOTIC.TOUCH/WOUNDING | B24: 0 | C24: 1.9003338 | D24: 1.6725432 | H24: 0 | I24: 1.9003338 | J24: 1.6725432 | M24: 0 | N24: -1.6918719 | O24: -1.6255245
A25: 20.2 STRESS.ABIOTIC | B25: 0 | C25: 1.6410445 | D25: 0 | H25: 0 | I25: 1.6410445 | J25: 0 | M25: 0 | N25: -1.8156065 | O25: -1.8383969
A26: 20.2.2 STRESS.ABIOTIC.COLD | B26: 0 | C26: 1.6526372 | D26: 1.7346632 | H26: 0 | I26: 1.6526372 | J26: 1.7346632 | K26: stress | M26: 0 | N26: -1.7134569 | O26: 0
A27: 16.2 SECONDARY METABOLISM.PHENYLPROPANOIDS | B27: 0 | C27: 0 | D27: 1.7110898 | H27: 0 | I27: 0 | J27: 1.7110898 | M27: 0 | N27: 0 | O27: -1.6244227
A28: 16.8.3.3 SECONDARY METABOLISM.FLAVONOIDS.DIHYDROFLAVONOLS.FLAVONOID 3-MONOOXYGENASE | B28: 0 | C28: 0 | D28: 1.8350034 | H28: 0 | I28: 0 | J28: 1.8350034 | M28: 0 | N28: -2.107853 | O28: -2.141852
A29: 16.8.4 SECONDARY METABOLISM.FLAVONOIDS.FLAVONOLS | B29: 0 | C29: 1.7016641 | D29: 0 | H29: 0 | I29: 1.7016641 | J29: 0 | M29: 0 | N29: -2.6286025 | O29: -2.781654
A30: 16.8.3 SECONDARY METABOLISM.FLAVONOIDS.DIHYDROFLAVONOLS | B30: 0 | C30: 1.6921691 | D30: 0 | H30: 0 | I30: 1.6921691 | J30: 0 | K30: secondary metabolism | M30: 0 | N30: -2.8507993 | O30: -2.8361762
A31: 34.13 TRANSPORT.PEPTIDES AND OLIGOPEPTIDES | B31: 0 | C31: 1.9570346 | D31: 1.9544774 | H31: 0 | I31: 1.9570346 | J31: 1.9544774 | M31: 0 | N31: -2.887299 | O31: -2.9446847
A32: 34.4 TRANSPORT.NITRATE | B32: 2.0067422 | C32: 1.7937611 | D32: 0 | H32: 2.0067422 | I32: 1.7937611 | J32: 0 | M32: 0 | N32: -3.0182064 | O32: -3.0314417
A33: 34.3 TRANSPORT.AMINO ACIDS | B33: 0 | C33: 1.7945993 | D33: 1.8843045 | H33: 0 | I33: 1.7945993 | J33: 1.8843045
A34: 34.7 TRANSPORT.PHOSPHATE | B34: 0 | C34: 1.8090614 | D34: 1.6956209 | H34: 0 | I34: 1.8090614 | J34: 1.6956209
A35: 34.19.1 TRANSPORT.MAJOR INTRINSIC PROTEINS.PIP | B35: 1.8324564 | C35: 0 | D35: 0 | H35: 1.8324564 | I35: 0 | J35: 0
A36: 34.2 TRANSPORT.SUGARS | B36: 0 | C36: 1.6856345 | D36: 0 | H36: 0 | I36: 1.6856345 | J36: 0
A37: 34.22 TRANSPORT.CYCLIC NUCLEOTIDE OR CALCIUM REGULATED CHANNELS | B37: 0 | C37: 1.6070596 | D37: 0 | H37: 0 | I37: 1.6070596 | J37: 0 | K37: transport
A38: 11.1.8 LIPID METABOLISM.FA SYNTHESIS AND FA ELONGATION.ACYL COA LIGASE | B38: 0 | C38: 1.6577212 | D38: 0 | H38: 0 | I38: 1.6577212 | J38: 0
A39: 11.9.3.2 LIPID METABOLISM.LIPID DEGRADATION.LYSOPHOSPHOLIPASES.CARBOXYLESTERASE | B39: 0 | C39: 1.9607472 | D39: 1.7419404 | H39: 0 | I39: 1.9607472 | J39: 1.7419404
A40: 11.9.4.5 LIPID METABOLISM.LIPID DEGRADATION.BETA-OXIDATION.ACYL-COA THIOESTERASE | B40: 0 | C40: 1.7926122 | D40: 0 | H40: 0 | I40: 1.7926122 | J40: 0
A41: 11.9.2.1 LIPID METABOLISM.LIPID DEGRADATION.LIPASES.TRIACYLGLYCEROL LIPASE | B41: 0 | C41: 1.9041566 | D41: 1.6619874 | H41: 0 | I41: 1.9041566 | J41: 1.6619874 | K41: lipid metabolism
A42: 30.2.20 SIGNALLING.RECEPTOR KINASES.WHEAT LRK10 LIKE | B42: 0 | C42: 1.8332494 | D42: 1.830707 | H42: 0 | I42: 1.8332494 | J42: 1.830707
A43: 30.2.19 SIGNALLING.RECEPTOR KINASES.LEGUME-LECTIN | B43: 0 | C43: 1.6061851 | D43: 1.8650775 | H43: 0 | I43: 1.6061851 | J43: 1.8650775
A44: 30.11 SIGNALLING.LIGHT | B44: 1.8233774 | C44: 0 | D44: 0 | H44: 1.8233774 | I44: 0 | J44: 0
A45: 30.2.17 SIGNALLING.RECEPTOR KINASES.DUF 26 | B45: 0 | C45: 0 | D45: 1.7603866 | H45: 0 | I45: 0 | J45: 1.7603866 | K45: signalling
A46: 2.2.2.1.2 MAJOR CHO METABOLISM.DEGRADATION.STARCH.STARCH CLEAVAGE.BETA AMYLASE | B46: 1.9691802 | C46: 0 | D46: 0 | H46: low_v1.0 | I46: high_v1.0 | J46: high_v1.2
A47: 26.12 MISC.PEROXIDASES | B47: 0 | C47: 0 | D47: 1.8991888
A48: 35.1.3 NOT ASSIGNED.NO ONTOLOGY.ARMADILLO/BETA-CATENIN REPEAT FAMILY PROTEIN | B48: 0 | C48: 1.8937547 | D48: 0
A49: 26.9 MISC.GLUTATHIONE S TRANSFERASES | B49: 0 | C49: 2.2536116 | D49: 1.9930892
A50: 24 BIODEGRADATION OF XENOBIOTICS | B50: 0 | C50: 1.8502047 | D50: 0
A51: 29.4.1.57 PROTEIN.POSTRANSLATIONAL MODIFICATION.KINASE.RECEPTOR LIKE CYTOPLASMATIC KINASE VII | B51: 0 | C51: 1.8263915 | D51: 0
A52: 10.6.2 CELL WALL.DEGRADATION.MANNAN-XYLOSE-ARABINOSE-FUCOSE | B52: 0 | C52: 0 | D52: 1.7798741
A53: 30.1 SIGNALLING.IN SUGAR AND NUTRIENT PHYSIOLOGY | B53: 0 | C53: 1.7488029 | D53: 0
A54: 26.19 MISC.PLASTOCYANIN-LIKE | B54: 0 | C54: 0 | D54: 1.725434
A55: 29.4.1 PROTEIN.POSTRANSLATIONAL MODIFICATION.KINASE | B55: 0 | C55: 1.7149376 | D55: 0
A56: 31.3 CELL.CYCLE | B56: 0 | C56: -1.6888845 | D56: 0
A57: 13.1.3.4 AMINO ACID METABOLISM.SYNTHESIS.ASPARTATE FAMILY.METHIONINE | B57: 0 | C57: 0 | D57: -1.8254398
A58: 34.21 TRANSPORT.CALCIUM | B58: -1.9638817 | C58: 0 | D58: 0
A59: 34.19.2 TRANSPORT.MAJOR INTRINSIC PROTEINS.TIP | B59: 0 | C59: -1.9814844 | D59: 0
A60: 26.4.1 MISC.BETA 1,3 GLUCAN HYDROLASES.GLUCAN ENDO-1,3-BETA-GLUCOSIDASE | B60: -1.7658294 | C60: 0 | D60: 0
A61: 30.2.3 SIGNALLING.RECEPTOR KINASES.LEUCINE RICH REPEAT III | B61: 0 | C61: -2.4678848 | D61: -2.1773834 | H61: 0 | I61: -1.8335947 | J61: 0
A62: 11.9.3.1 LIPID METABOLISM.LIPID DEGRADATION.LYSOPHOSPHOLIPASES.PHOSPHOLIPASE D | B62: 0 | C62: -1.8335947 | D62: 0 | H62: 0 | I62: 0 | J62: -1.93939
A63: 11.3 LIPID METABOLISM.PHOSPHOLIPID SYNTHESIS | B63: 0 | C63: 0 | D63: -1.93939 | H63: 0 | I63: -1.9183649 | J63: -1.8527651
A64: 26.21 MISC.PROTEASE INHIBITOR/SEED STORAGE/LIPID TRANSFER PROTEIN (LTP) FAMILY PROTEIN | B64: 0 | C64: -1.9183649 | D64: -1.8527651 | H64: 0 | I64: -1.7767106 | J64: -1.7774082
A65: 26.28 MISC.GDSL-MOTIF LIPASE | B65: 0 | C65: -1.7767106 | D65: -1.7774082 | H65: 0 | I65: -1.8295889 | J65: 0 | K65: lipid metabolism
A66: 28.1 DNA.SYNTHESIS/CHROMATIN STRUCTURE | B66: 0 | C66: -1.8295889 | D66: 0 | H66: -2.1773944 | I66: -1.8388014 | J66: -1.6740687
A67: 28.1.3.2.1 DNA.SYNTHESIS/CHROMATIN STRUCTURE.HISTONE.CORE.H2A | B67: -2.1773944 | C67: -1.8388014 | D67: -1.6740687 | H67: -2.0319912 | I67: -1.7370316 | J67: 0
A68: 28.1.3.2.2 DNA.SYNTHESIS/CHROMATIN STRUCTURE.HISTONE.CORE.H2B | B68: -2.0319912 | C68: -1.7370316 | D68: 0 | H68: -2.2654805 | I68: -1.866934 | J68: 0
A69: 28.1.3.2.3 DNA.SYNTHESIS/CHROMATIN STRUCTURE.HISTONE.CORE.H3 | B69: -2.2654805 | C69: -1.866934 | D69: 0 | H69: -2.3924305 | I69: -2.1392972 | J69: -1.7586148
A70: 28.1.3.2.4 DNA.SYNTHESIS/CHROMATIN STRUCTURE.HISTONE.CORE.H4 | B70: -2.3924305 | C70: -2.1392972 | D70: -1.7586148 | H70: -1.9614593 | I70: -1.8455456 | J70: -1.7948176 | K70: DNA synthesis
A71: 29.2.2.3.1 PROTEIN.SYNTHESIS.RIBOSOME BIOGENESIS.PRE-RRNA PROCESSING AND MODIFICATIONS.SNORNPS | B71: -1.9614593 | C71: -1.8455456 | D71: -1.7948176 | H71: 0 | I71: -1.6501136 | J71: 0
A72: 29.2.2.3.3 PROTEIN.SYNTHESIS.RIBOSOME BIOGENESIS.PRE-RRNA PROCESSING AND MODIFICATIONS.METHYLOTRANSFERASES | B72: 0 | C72: -1.6501136 | D72: 0 | H72: 0 | I72: -1.8971437 | J72: -1.8526374
A73: 29.2.4 PROTEIN.SYNTHESIS.ELONGATION | B73: 0 | C73: -1.8971437 | D73: -1.8526374 | H73: 0 | I73: -1.6218861 | J73: 0
A74: 29.2.5 PROTEIN.SYNTHESIS.RELEASE | B74: 0 | C74: -1.6218861 | D74: 0 | H74: 0 | I74: -2.1318588 | J74: -2.0775955
A75: 29.3.3 PROTEIN.TARGETING.CHLOROPLAST | B75: 0 | C75: -2.1318588 | D75: -2.0775955 | H75: 0 | I75: -1.8820784 | J75: -1.7265149
A76: 29.6 PROTEIN.FOLDING | B76: 0 | C76: -1.8820784 | D76: -1.7265149 | H76: 0 | I76: -1.9078412 | J76: -1.8042482
A77: 29.8 PROTEIN.ASSEMBLY AND COFACTOR LIGATION | B77: 0 | C77: -1.9078412 | D77: -1.8042482 | H77: 0 | I77: 0 | J77: -1.8121061 | K77: protein synthesis
A78: 10.6.3 CELL WALL.DEGRADATION.PECTATE LYASES AND POLYGALACTURONASES | B78: 0 | C78: 0 | D78: -1.8121061 | H78: 0 | I78: 0 | J78: -2.1408293
A79: 10.2 CELL WALL.CELLULOSE SYNTHESIS | B79: 0 | C79: 0 | D79: -2.1408293 | H79: -1.7483578 | I79: 0 | J79: -1.6538737
A80: 10.8.1 CELL WALL.PECTIN*ESTERASES.PME | B80: -1.7483578 | C80: 0 | D80: -1.6538737 | H80: -1.7685975 | I80: -2.1091502 | J80: -2.427318
A81: 10.5.1.1 CELL WALL.CELL WALL PROTEINS.AGPS.AGP | B81: -1.7685975 | C81: -2.1091502 | D81: -2.427318 | H81: 0 | I81: -1.6574149 | J81: 0
A82: 26.3.2 MISC.GLUCO-, GALACTO- AND MANNOSIDASES.BETA-GALACTOSIDASE | B82: 0 | C82: -1.6574149 | D82: 0 | H82: -1.9127483 | I82: 0 | J82: 0
A83: 30.2.22 SIGNALLING.RECEPTOR KINASES.PROLINE EXTENSIN LIKE | B83: -1.9127483 | C83: 0 | D83: 0 | H83: 0 | I83: -1.8283106 | J83: 0 | K83: cell wall
A84: 27.3.26 RNA.REGULATION OF TRANSCRIPTION.MYB-RELATED TRANSCRIPTION FACTOR FAMILY | B84: 0 | C84: -1.8283106 | D84: 0 | H84: 0 | I84: -1.6918719 | J84: -1.6255245
A85: 27.3.4 RNA.REGULATION OF TRANSCRIPTION.ARF, AUXIN RESPONSE FACTOR FAMILY | B85: 0 | C85: -1.6918719 | D85: -1.6255245 | H85: 0 | I85: -1.8156065 | J85: -1.8383969
A86: 27.3.34 RNA.REGULATION OF TRANSCRIPTION.ORPHAN FAMILY | B86: 0 | C86: -1.8156065 | D86: -1.8383969 | H86: 0 | I86: -1.7134569 | J86: 0
A87: 27.1.2 RNA.PROCESSING.RNA HELICASE | B87: 0 | C87: -1.6274478 | D87: 0 | H87: 0 | I87: 0 | J87: -1.6244227 | K87: transcription factors
A88: 27.3.69 RNA.REGULATION OF TRANSCRIPTION.SET-DOMAIN TRANSCRIPTIONAL REGULATOR FAMILY | B88: 0 | C88: -1.7134569 | D88: 0 | H88: 0 | I88: -2.107853 | J88: -2.141852
A89: 35.1.5 NOT ASSIGNED.NO ONTOLOGY.PENTATRICOPEPTIDE (PPR) REPEAT-CONTAINING PROTEIN | B89: -2.1658123 | C89: -2.878375 | D89: -2.4671354 | H89: 0 | I89: -2.6286025 | J89: -2.781654
A90: 1.3.6 PS.CALVIN CYCLE.ALDOLASE | B90: 0 | C90: 0 | D90: -1.6244227 | H90: 0 | I90: -2.8507993 | J90: -2.8361762
A91: 1.3.13 PS.CALVIN CYCLE.RUBISCO INTERACTING | B91: 0 | C91: -2.107853 | D91: -2.141852 | H91: 0 | I91: -2.887299 | J91: -2.9446847
A92: 1.1.2.1 PS.LIGHTREACTION.PHOTOSYSTEM I.LHC-I | B92: 0 | C92: -2.6286025 | D92: -2.781654 | H92: 0 | I92: -3.0182064 | J92: -3.0314417 | K92: photosynthesis
A93: 1.1.1.1 PS.LIGHTREACTION.PHOTOSYSTEM II.LHC-II | B93: 0 | C93: -2.8507993 | D93: -2.8361762 | H93: low_v1.0 | I93: high_v1.0 | J93: high_v1.2
A94: 1.1.2.2 PS.LIGHTREACTION.PHOTOSYSTEM I.PSI POLYPEPTIDE SUBUNITS | B94: 0 | C94: -2.887299 | D94: -2.9446847
A95: 1.1.1.2 PS.LIGHTREACTION.PHOTOSYSTEM II.PSII POLYPEPTIDE SUBUNITS | B95: 0 | C95: -3.0182064 | D95: -3.0314417

Sheet Sheet4
A1: 2.0621443 | B1: 2.1146362 | C1: 1.9281881
A2: 1.8800068 | B2: 2.1878896 | C2: 1.9336845
A3: 1.8437324 | B3: 1.9730338 | C3: 2.0659008
A4: 0 | B4: 2.409604 | C4: 2.212452
A5: 0 | B5: 2.2536116 | C5: 1.9930892
A6: 0 | B6: 2.061539 | C6: 2.1349325
A7: 0 | B7: 2.1126926 | C7: 2.0057077
A8: 0 | B8: 1.979799 | C8: 2.0292907
A9: 0 | B9: 1.9570346 | C9: 1.9544774
A10: 2.0067422 | B10: 1.7937611 | C10: 0
A11: 0 | B11: 1.8061992 | C11: 1.9007926
A12: 0 | B12: 1.9607472 | C12: 1.7419404
A13: 0 | B13: 1.7945993 | C13: 1.8843045
A14: 0 | B14: 1.8332494 | C14: 1.830707
A15: 0 | B15: 1.9003338 | C15: 1.6725432
A16: 0 | B16: 1.9041566 | C16: 1.6619874
A17: 0 | B17: 1.7256074 | C17: 1.8232836
A18: 1.8622098 | B18: 1.680345 | C18: 0
A19: 0 | B19: 1.8090614 | C19: 1.6956209
A20: 0 | B20: 1.7228131 | C20: 1.7758546
A21: 0 | B21: 1.6061851 | C21: 1.8650775
A22: 0 | B22: 1.7962455 | C22: 1.6604366
A23: 0 | B23: 1.6526372 | C23: 1.7346632
A24: 0 | B24: 0 | C24: 2.132952
A25: 2.0237858 | B25: 0 | C25: 0
A26: 0 | B26: 2.0206797 | C26: 0
A27: 1.9691802 | B27: 0 | C27: 0
A28: 0 | B28: 0 | C28: 1.8991888
A29: 0 | B29: 1.8937547 | C29: 0
A30: 1.8603693 | B30: 0 | C30: 0 | G30: 2.0621443 | H30: 1.8800068 | I30: 1.8437324 | J30: 0 | K30: 0 | L30: 0 | M30: 0 | N30: 0 | O30: 0 | P30: 2.0067422 | Q30: 0 | R30: 0 | S30: 0 | T30: 0 | U30: 0 | V30: 0 | W30: 0 | X30: 1.8622098 | Y30: 0 | Z30: 0 | AA30: 0 | AB30: 0 | AC30: 0 | AD30: 0 | AE30: 2.0237858 | AF30: 0 | AG30: 1.9691802 | AH30: 0 | AI30: 0 | AJ30: 1.8603693 | AK30: 0 | AL30: 0 | AM30: 0 | AN30: 0 | AO30: 1.8324564 | AP30: 0 | AQ30: 0 | AR30: 1.8233774 | AS30: 0 | AT30: 0 | AU30: 0 | AV30: 0 | AW30: 0 | AX30: 0 | AY30: 0 | AZ30: 0 | BA30: 0 | BB30: 0 | BC30: 0 | BD30: 0 | BE30: 0 | BF30: 0 | BG30: 0 | BH30: 0 | BI30: 0 | BJ30: 0 | BK30: 0 | BL30: -1.7658294 | BM30: 0 | BN30: 0 | BO30: 0 | BP30: 0 | BQ30: 0 | BR30: -1.9127483 | BS30: -1.9638817 | BT30: 0 | BU30: 0 | BV30: -1.7483578 | BW30: 0 | BX30: 0 | BY30: 0 | BZ30: 0 | CA30: -2.1773944 | CB30: -2.0319912 | CC30: -2.2654805 | CD30: -2.3924305 | CE30: -1.9614593 | CF30: 0 | CG30: 0 | CH30: 0 | CI30: 0 | CJ30: 0 | CK30: 0 | CL30: -1.7685975 | CM30: 0 | CN30: 0 | CO30: 0 | CP30: 0 | CQ30: -2.1658123 | CR30: 0 | CS30: 0 | CT30: 0 | CU30: 0 | CV30: 0 | CW30: 0
A31: 0 | B31: 0 | C31: 1.8551253 | G31: 2.1146362 | H31: 2.1878896 | I31: 1.9730338 | J31: 2.409604 | K31: 2.2536116 | L31: 2.061539 | M31: 2.1126926 | N31: 1.979799 | O31: 1.9570346 | P31: 1.7937611 | Q31: 1.8061992 | R31: 1.9607472 | S31: 1.7945993 | T31: 1.8332494 | U31: 1.9003338 | V31: 1.9041566 | W31: 1.7256074 | X31: 1.680345 | Y31: 1.8090614 | Z31: 1.7228131 | AA31: 1.6061851 | AB31: 1.7962455 | AC31: 1.6526372 | AD31: 0 | AE31: 0 | AF31: 2.0206797 | AG31: 0 | AH31: 0 | AI31: 1.8937547 | AJ31: 0 | AK31: 0 | AL31: 1.8502047 | AM31: 1.8398017 | AN31: 0 | AO31: 0 | AP31: 0 | AQ31: 1.8263915 | AR31: 0 | AS31: 1.7926122 | AT31: 0 | AU31: 0 | AV31: 0 | AW31: 1.7488029 | AX31: 0 | AY31: 1.7149376 | AZ31: 0 | BA31: 1.7016641 | BB31: 1.6921691 | BC31: 1.6856345 | BD31: 1.6577212 | BE31: 1.6410445 | BF31: 0 | BG31: 0 | BH31: 1.6070596 | BI31: 1.5950828 | BJ31: -1.6574149 | BK31: -1.6888845 | BL31: 0 | BM31: 0 | BN31: 0 | BO31: -1.8283106 | BP31: -1.8335947 | BQ31: 0 | BR31: 0 | BS31: 0 | BT31: -1.9814844 | BU31: 0 | BV31: 0 | BW31: -1.7767106 | BX31: -1.9183649 | BY31: -2.4678848 | BZ31: -1.8295889 | CA31: -1.8388014 | CB31: -1.7370316 | CC31: -1.866934 | CD31: -2.1392972 | CE31: -1.8455456 | CF31: -1.6501136 | CG31: -1.8971437 | CH31: -1.6218861 | CI31: -2.1318588 | CJ31: -1.8820784 | CK31: -1.9078412 | CL31: -2.1091502 | CM31: -1.6918719 | CN31: -1.8156065 | CO31: -1.6274478 | CP31: -1.7134569 | CQ31: -2.878375 | CR31: -2.6286025 | CS31: -2.8507993 | CT31: -2.887299 | CU31: -3.0182064 | CV31: 0 | CW31: -2.107853
A32: 0 | B32: 1.8502047 | C32: 0 | G32: 1.9281881 | H32: 1.9336845 | I32: 2.0659008 | J32: 2.212452 | K32: 1.9930892 | L32: 2.1349325 | M32: 2.0057077 | N32: 2.0292907 | O32: 1.9544774 | P32: 0 | Q32: 1.9007926 | R32: 1.7419404 | S32: 1.8843045 | T32: 1.830707 | U32: 1.6725432 | V32: 1.6619874 | W32: 1.8232836 | X32: 0 | Y32: 1.6956209 | Z32: 1.7758546 | AA32: 1.8650775 | AB32: 1.6604366 | AC32: 1.7346632 | AD32: 2.132952 | AE32: 0 | AF32: 0 | AG32: 0 | AH32: 1.8991888 | AI32: 0 | AJ32: 0 | AK32: 1.8551253 | AL32: 0 | AM32: 0 | AN32: 1.8350034 | AO32: 0 | AP32: 1.8303448 | AQ32: 0 | AR32: 0 | AS32: 0 | AT32: 1.7798741 | AU32: 1.7603866 | AV32: 1.7488068 | AW32: 0 | AX32: 1.725434 | AY32: 0 | AZ32: 1.7110898 | BA32: 0 | BB32: 0 | BC32: 0 | BD32: 0 | BE32: 0 | BF32: 1.6251658 | BG32: 1.6156749 | BH32: 0 | BI32: 0 | BJ32: 0 | BK32: 0 | BL32: 0 | BM32: -1.8121061 | BN32: -1.8254398 | BO32: 0 | BP32: 0 | BQ32: -1.93939 | BR32: 0 | BS32: 0 | BT32: 0 | BU32: -2.1408293 | BV32: -1.6538737 | BW32: -1.7774082 | BX32: -1.8527651 | BY32: -2.1773834 | BZ32: 0 | CA32: -1.6740687 | CB32: 0 | CC32: 0 | CD32: -1.7586148 | CE32: -1.7948176 | CF32: 0 | CG32: -1.8526374 | CH32: 0 | CI32: -2.0775955 | CJ32: -1.7265149 | CK32: -1.8042482 | CL32: -2.427318 | CM32: -1.6255245 | CN32: -1.8383969 | CO32: 0 | CP32: 0 | CQ32: -2.4671354 | CR32: -2.781654 | CS32: -2.8361762 | CT32: -2.9446847 | CU32: -3.0314417 | CV32: -1.6244227 | CW32: -2.141852
A33: 0 | B33: 1.8398017 | C33: 0
A34: 0 | B34: 0 | C34: 1.8350034
A35: 1.8324564 | B35: 0 | C35: 0
A36: 0 | B36: 0 | C36: 1.8303448
A37: 0 | B37: 1.8263915 | C37: 0
A38: 1.8233774 | B38: 0 | C38: 0
A39: 0 | B39: 1.7926122 | C39: 0
A40: 0 | B40: 0 | C40: 1.7798741
A41: 0 | B41: 0 | C41: 1.7603866
A42: 0 | B42: 0 | C42: 1.7488068
A43: 0 | B43: 1.7488029 | C43: 0
A44: 0 | B44: 0 | C44: 1.725434
A45: 0 | B45: 1.7149376 | C45: 0
A46: 0 | B46: 0 | C46: 1.7110898
A47: 0 | B47: 1.7016641 | C47: 0
A48: 0 | B48: 1.6921691 | C48: 0
A49: 0 | B49: 1.6856345 | C49: 0
A50: 0 | B50: 1.6577212 | C50: 0
A51: 0 | B51: 1.6410445 | C51: 0
A52: 0 | B52: 0 | C52: 1.6251658
A53: 0 | B53: 0 | C53: 1.6156749
A54: 0 | B54: 1.6070596 | C54: 0
A55: 0 | B55: 1.5950828 | C55: 0
A56: 0 | B56: -1.6574149 | C56: 0
A57: 0 | B57: -1.6888845 | C57: 0
A58: -1.7658294 | B58: 0 | C58: 0
A59: 0 | B59: 0 | C59: -1.8121061
A60: 0 | B60: 0 | C60: -1.8254398
A61: 0 | B61: -1.8283106 | C61: 0
A62: 0 | B62: -1.8335947 | C62: 0
A63: 0 | B63: 0 | C63: -1.93939
A64: -1.9127483 | B64: 0 | C64: 0
A65: -1.9638817 | B65: 0 | C65: 0
A66: 0 | B66: -1.9814844 | C66: 0
A67: 0 | B67: 0 | C67: -2.1408293
A68: -1.7483578 | B68: 0 | C68: -1.6538737
A69: 0 | B69: -1.7767106 | C69: -1.7774082
A70: 0 | B70: -1.9183649 | C70: -1.8527651
A71: 0 | B71: -2.4678848 | C71: -2.1773834
A72: 0 | B72: -1.8295889 | C72: 0
A73: -2.1773944 | B73: -1.8388014 | C73: -1.6740687
A74: -2.0319912 | B74: -1.7370316 | C74: 0
A75: -2.2654805 | B75: -1.866934 | C75: 0
A76: -2.3924305 | B76: -2.1392972 | C76: -1.7586148
A77: -1.9614593 | B77: -1.8455456 | C77: -1.7948176
A78: 0 | B78: -1.6501136 | C78: 0
A79: 0 | B79: -1.8971437 | C79: -1.8526374
A80: 0 | B80: -1.6218861 | C80: 0
A81: 0 | B81: -2.1318588 | C81: -2.0775955
A82: 0 | B82: -1.8820784 | C82: -1.7265149
A83: 0 | B83: -1.9078412 | C83: -1.8042482
A84: -1.7685975 | B84: -2.1091502 | C84: -2.427318
A85: 0 | B85: -1.6918719 | C85: -1.6255245
A86: 0 | B86: -1.8156065 | C86: -1.8383969
A87: 0 | B87: -1.6274478 | C87: 0
A88: 0 | B88: -1.7134569 | C88: 0
A89: -2.1658123 | B89: -2.878375 | C89: -2.4671354
A90: 0 | B90: -2.6286025 | C90: -2.781654
A91: 0 | B91: -2.8507993 | C91: -2.8361762
A92: 0 | B92: -2.887299 | C92: -2.9446847
A93: 0 | B93: -3.0182064 | C93: -3.0314417
A94: 0 | B94: 0 | C94: -1.6244227
A95: 0 | B95: -2.107853 | C95: -2.141852

Sheet Sheet5
A1: 10.6.2 CELL WALL.DEGRADATION.MANNAN-XYLOSE-ARABINOSE-FUCOSE | B1: 0 | C1: 0 | D1: 1.7798741
A2: 11.1.8 LIPID METABOLISM.FA SYNTHESIS AND FA ELONGATION.ACYL COA LIGASE | B2: 0 | C2: 1.6577212 | D2: 0
A3: 11.9.2.1 LIPID METABOLISM.LIPID DEGRADATION.LIPASES.TRIACYLGLYCEROL LIPASE | B3: 0 | C3: 1.9041566 | D3: 1.6619874
A4: 11.9.3.2 LIPID METABOLISM.LIPID DEGRADATION.LYSOPHOSPHOLIPASES.CARBOXYLESTERASE | B4: 0 | C4: 1.9607472 | D4: 1.7419404
A5: 11.9.4.5 LIPID METABOLISM.LIPID DEGRADATION.BETA-OXIDATION.ACYL-COA THIOESTERASE | B5: 0 | C5: 1.7926122 | D5: 0
A6: 16.2 SECONDARY METABOLISM.PHENYLPROPANOIDS | B6: 0 | C6: 0 | D6: 1.7110898
A7: 16.8.3 SECONDARY METABOLISM.FLAVONOIDS.DIHYDROFLAVONOLS | B7: 0 | C7: 1.6921691 | D7: 0
A8: 16.8.3.3 SECONDARY METABOLISM.FLAVONOIDS.DIHYDROFLAVONOLS.FLAVONOID 3-MONOOXYGENASE | B8: 0 | C8: 0 | D8: 1.8350034
A9: 16.8.4 SECONDARY METABOLISM.FLAVONOIDS.FLAVONOLS | B9: 0 | C9: 1.7016641 | D9: 0
A10: 17.1.2 HORMONE METABOLISM.ABSCISIC ACID.SIGNAL TRANSDUCTION | B10: 1.8800068 | C10: 2.1878896 | D10: 1.9336845
A11: 17.1.3 HORMONE METABOLISM.ABSCISIC ACID.INDUCED-REGULATED-RESPONSIVE-ACTIVATED | B11: 1.8437324 | C11: 1.9730338 | D11: 2.0659008
A12: 17.5.2 HORMONE METABOLISM.ETHYLENE.SIGNAL TRANSDUCTION | B12: 0 | C12: 0 | D12: 1.8551253
A13: 2.2.2.1.2 MAJOR CHO METABOLISM.DEGRADATION.STARCH.STARCH CLEAVAGE.BETA AMYLASE | B13: 1.9691802 | C13: 0 | D13: 0
A14: 20.1 STRESS.BIOTIC | B14: 0 | C14: 1.979799 | D14: 2.0292907
A15: 20.2 STRESS.ABIOTIC | B15: 0 | C15: 1.6410445 | D15: 0
A16: 20.2.2 STRESS.ABIOTIC.COLD | B16: 0 | C16: 1.6526372 | D16: 1.7346632
A17: 20.2.4 STRESS.ABIOTIC.TOUCH/WOUNDING | B17: 0 | C17: 1.9003338 | D17: 1.6725432
A18: 24 BIODEGRADATION OF XENOBIOTICS | B18: 0 | C18: 1.8502047 | D18: 0
A19: 26.10 MISC.CYTOCHROME P450 | B19: 2.0621443 | C19: 2.1146362 | D19: 1.9281881
A20: 26.12 MISC.PEROXIDASES | B20: 0 | C20: 0 | D20: 1.8991888
A21: 26.19 MISC.PLASTOCYANIN-LIKE | B21: 0 | C21: 0 | D21: 1.725434
A22: 26.9 MISC.GLUTATHIONE S TRANSFERASES | B22: 0 | C22: 2.2536116 | D22: 1.9930892
A23: 27.3.22 RNA.REGULATION OF TRANSCRIPTION.HB,HOMEOBOX TRANSCRIPTION FACTOR FAMILY | B23: 0 | C23: 2.1126926 | D23: 2.0057077
A24: 27.3.24 RNA.REGULATION OF TRANSCRIPTION.MADS BOX TRANSCRIPTION FACTOR FAMILY | B24: 1.8603693 | C24: 0 | D24: 0
A25: 27.3.3 RNA.REGULATION OF TRANSCRIPTION.AP2/EREBP, APETALA2/ETHYLENE-RESPONSIVE ELEMENT BINDING PROTEIN FAMILY | B25: 0 | C25: 0 | D25: 1.7488068
A26: 27.3.32 RNA.REGULATION OF TRANSCRIPTION.WRKY DOMAIN TRANSCRIPTION FACTOR FAMILY | B26: 0 | C26: 2.409604 | D26: 2.212452
A27: 27.3.35 RNA.REGULATION OF TRANSCRIPTION.BZIP TRANSCRIPTION FACTOR FAMILY | B27: 0 | C27: 0 | D27: 1.8303448
A28: 27.3.40 RNA.REGULATION OF TRANSCRIPTION.AUX/IAA FAMILY | B28: 2.0237858 | C28: 0 | D28: 0
A29: 27.3.71 RNA.REGULATION OF TRANSCRIPTION.SNF7 | B29: 0 | C29: 1.7228131 | D29: 1.7758546
A30: 27.3.8 RNA.REGULATION OF TRANSCRIPTION.C2C2(ZN) DOF ZINC FINGER FAMILY | B30: 0 | C30: 0 | D30: 2.132952
A31: 29.3.4.3 PROTEIN.TARGETING.SECRETORY PATHWAY.VACUOLE | B31: 0 | C31: 1.8061992 | D31: 1.9007926
A32: 29.3.4.99 PROTEIN.TARGETING.SECRETORY PATHWAY.UNSPECIFIED | B32: 0 | C32: 1.8398017 | D32: 0
A33: 29.4.1 PROTEIN.POSTRANSLATIONAL MODIFICATION.KINASE | B33: 0 | C33: 1.7149376 | D33: 0
A34: 29.4.1.57 PROTEIN.POSTRANSLATIONAL MODIFICATION.KINASE.RECEPTOR LIKE CYTOPLASMATIC KINASE VII | B34: 0 | C34: 1.8263915 | D34: 0
A35: 29.5.11.1 PROTEIN.DEGRADATION.UBIQUITIN.UBIQUITIN | B35: 0 | C35: 1.7962455 | D35: 1.6604366
A36: 29.5.11.20 PROTEIN.DEGRADATION.UBIQUITIN.PROTEASOM | B36: 0 | C36: 2.0206797 | D36: 0
A37: 29.5.11.3 PROTEIN.DEGRADATION.UBIQUITIN.E2 | B37: 0 | C37: 2.061539 | D37: 2.1349325
A38: 29.5.11.4.2 PROTEIN.DEGRADATION.UBIQUITIN.E3.RING | B38: 0 | C38: 0 | D38: 1.6156749
A39: 29.5.11.4.3.1 PROTEIN.DEGRADATION.UBIQUITIN.E3.SCF.SKP | B39: 0 | C39: 1.5950828 | D39: 0
A40: 29.5.11.4.3.2 PROTEIN.DEGRADATION.UBIQUITIN.E3.SCF.FBOX | B40: 0 | C40: 0 | D40: 1.6251658
A41: 29.5.2 PROTEIN.DEGRADATION.AUTOPHAGY | B41: 0 | C41: 1.7256074 | D41: 1.8232836
A42: 29.5.3 PROTEIN.DEGRADATION.CYSTEINE PROTEASE | B42: 1.8622098 | C42: 1.680345 | D42: 0
A43: 30.1 SIGNALLING.IN SUGAR AND NUTRIENT PHYSIOLOGY | B43: 0 | C43: 1.7488029 | D43: 0
A44: 30.11 SIGNALLING.LIGHT | B44: 1.8233774 | C44: 0 | D44: 0
A45: 30.2.17 SIGNALLING.RECEPTOR KINASES.DUF 26 | B45: 0 | C45: 0 | D45: 1.7603866
A46: 30.2.19 SIGNALLING.RECEPTOR KINASES.LEGUME-LECTIN | B46: 0 | C46: 1.6061851 | D46: 1.8650775
A47: 30.2.20 SIGNALLING.RECEPTOR KINASES.WHEAT LRK10 LIKE | B47: 0 | C47: 1.8332494 | D47: 1.830707
A48: 34.13 TRANSPORT.PEPTIDES AND OLIGOPEPTIDES | B48: 0 | C48: 1.9570346 | D48: 1.9544774
A49: 34.19.1 TRANSPORT.MAJOR INTRINSIC PROTEINS.PIP | B49: 1.8324564 | C49: 0 | D49: 0
A50: 34.2 TRANSPORT.SUGARS | B50: 0 | C50: 1.6856345 | D50: 0
A51: 34.22 TRANSPORT.CYCLIC NUCLEOTIDE OR CALCIUM REGULATED CHANNELS | B51: 0 | C51: 1.6070596 | D51: 0
A52: 34.3 TRANSPORT.AMINO ACIDS | B52: 0 | C52: 1.7945993 | D52: 1.8843045
A53: 34.4 TRANSPORT.NITRATE | B53: 2.0067422 | C53: 1.7937611 | D53: 0
A54: 34.7 TRANSPORT.PHOSPHATE | B54: 0 | C54: 1.8090614 | D54: 1.6956209
A55: 35.1.3 NOT ASSIGNED.NO ONTOLOGY.ARMADILLO/BETA-CATENIN REPEAT FAMILY PROTEIN | B55: 0 | C55: 1.8937547 | D55: 0 | G55: =MIN(B1:D55) -> 0

Sheet Sheet7
A1: 29.2.5 PROTEIN.SYNTHESIS.RELEASE | B1: 0 | C1: -1.6218861 | D1: 0
A2: 1.3.6 PS.CALVIN CYCLE.ALDOLASE | B2: 0 | C2: 0 | D2: -1.6244227
A3: 27.1.2 RNA.PROCESSING.RNA HELICASE | B3: 0 | C3: -1.6274478 | D3: 0
A4: 29.2.2.3.3 PROTEIN.SYNTHESIS.RIBOSOME BIOGENESIS.PRE-RRNA PROCESSING AND MODIFICATIONS.METHYLOTRANSFERASES | B4: 0 | C4: -1.6501136 | D4: 0
A5: 26.3.2 MISC.GLUCO-, GALACTO- AND MANNOSIDASES.BETA-GALACTOSIDASE | B5: 0 | C5: -1.6574149 | D5: 0
A6: 31.3 CELL.CYCLE | B6: 0 | C6: -1.6888845 | D6: 0
A7: 27.3.69 RNA.REGULATION OF TRANSCRIPTION.SET-DOMAIN TRANSCRIPTIONAL REGULATOR FAMILY | B7: 0 | C7: -1.7134569 | D7: 0
A8: 26.4.1 MISC.BETA 1,3 GLUCAN HYDROLASES.GLUCAN ENDO-1,3-BETA-GLUCOSIDASE | B8: -1.7658294 | C8: 0 | D8: 0
A9: 10.6.3 CELL WALL.DEGRADATION.PECTATE LYASES AND POLYGALACTURONASES | B9: 0 | C9: 0 | D9: -1.8121061
A10: 13.1.3.4 AMINO ACID METABOLISM.SYNTHESIS.ASPARTATE FAMILY.METHIONINE | B10: 0 | C10: 0 | D10: -1.8254398
A11: 27.3.26 RNA.REGULATION OF TRANSCRIPTION.MYB-RELATED TRANSCRIPTION FACTOR FAMILY | B11: 0 | C11: -1.8283106 | D11: 0
A12: 28.1 DNA.SYNTHESIS/CHROMATIN STRUCTURE | B12: 0 | C12: -1.8295889 | D12: 0
A13: 11.9.3.1 LIPID METABOLISM.LIPID DEGRADATION.LYSOPHOSPHOLIPASES.PHOSPHOLIPASE D | B13: 0 | C13: -1.8335947 | D13: 0
A14: 30.2.22 SIGNALLING.RECEPTOR KINASES.PROLINE EXTENSIN LIKE | B14: -1.9127483 | C14: 0 | D14: 0
A15: 11.3 LIPID METABOLISM.PHOSPHOLIPID SYNTHESIS | B15: 0 | C15: 0 | D15: -1.93939
A16: 34.21 TRANSPORT.CALCIUM | B16: -1.9638817 | C16: 0 | D16: 0
A17: 34.19.2 TRANSPORT.MAJOR INTRINSIC PROTEINS.TIP | B17: 0 | C17: -1.9814844 | D17: 0
A18: 10.2 CELL WALL.CELLULOSE SYNTHESIS | B18: 0 | C18: 0 | D18: -2.1408293
A19: 27.3.4 RNA.REGULATION OF TRANSCRIPTION.ARF, AUXIN RESPONSE FACTOR FAMILY | B19: 0 | C19: -1.6918719 | D19: -1.6255245
A20: 10.8.1 CELL WALL.PECTIN*ESTERASES.PME | B20: -1.7483578 | C20: 0 | D20: -1.6538737
A21: 26.28 MISC.GDSL-MOTIF LIPASE | B21: 0 | C21: -1.7767106 | D21: -1.7774082
A22: 29.6 PROTEIN.FOLDING | B22: 0 | C22: -1.8820784 | D22: -1.7265149
A23: 27.3.34 RNA.REGULATION OF TRANSCRIPTION.ORPHAN FAMILY | B23: 0 | C23: -1.8156065 | D23: -1.8383969
A24: 29.8 PROTEIN.ASSEMBLY AND COFACTOR LIGATION | B24: 0 | C24: -1.9078412 | D24: -1.8042482
A25: 29.2.4 PROTEIN.SYNTHESIS.ELONGATION | B25: 0 | C25: -1.8971437 | D25: -1.8526374
A26: 28.1.3.2.2 DNA.SYNTHESIS/CHROMATIN STRUCTURE.HISTONE.CORE.H2B | B26: -2.0319912 | C26: -1.7370316 | D26: 0
A27: 26.21 MISC.PROTEASE INHIBITOR/SEED STORAGE/LIPID TRANSFER PROTEIN (LTP) FAMILY PROTEIN | B27: 0 | C27: -1.9183649 | D27: -1.8527651
A28: 28.1.3.2.3 DNA.SYNTHESIS/CHROMATIN STRUCTURE.HISTONE.CORE.H3 | B28: -2.2654805 | C28: -1.866934 | D28: 0
A29: 29.3.3 PROTEIN.TARGETING.CHLOROPLAST | B29: 0 | C29: -2.1318588 | D29: -2.0775955
A30: 1.3.13 PS.CALVIN CYCLE.RUBISCO INTERACTING | B30: 0 | C30: -2.107853 | D30: -2.141852
A31: 30.2.3 SIGNALLING.RECEPTOR KINASES.LEUCINE RICH REPEAT III | B31: 0 | C31: -2.4678848 | D31: -2.1773834
A32: 1.1.2.1 PS.LIGHTREACTION.PHOTOSYSTEM I.LHC-I | B32: 0 | C32: -2.6286025 | D32: -2.781654
A33: 29.2.2.3.1 PROTEIN.SYNTHESIS.RIBOSOME BIOGENESIS.PRE-RRNA PROCESSING AND MODIFICATIONS.SNORNPS | B33: -1.9614593 | C33: -1.8455456 | D33: -1.7948176
A34: 1.1.1.1 PS.LIGHTREACTION.PHOTOSYSTEM II.LHC-II | B34: 0 | C34: -2.8507993 | D34: -2.8361762
A35: 28.1.3.2.1 DNA.SYNTHESIS/CHROMATIN STRUCTURE.HISTONE.CORE.H2A | B35: -2.1773944 | C35: -1.8388014 | D35: -1.6740687
A36: 1.1.2.2 PS.LIGHTREACTION.PHOTOSYSTEM I.PSI POLYPEPTIDE SUBUNITS | B36: 0 | C36: -2.887299 | D36: -2.9446847
A37: 1.1.1.2 PS.LIGHTREACTION.PHOTOSYSTEM II.PSII POLYPEPTIDE SUBUNITS | B37: 0 | C37: -3.0182064 | D37: -3.0314417
A38: 28.1.3.2.4 DNA.SYNTHESIS/CHROMATIN STRUCTURE.HISTONE.CORE.H4 | B38: -2.3924305 | C38: -2.1392972 | D38: -1.7586148
A39: 10.5.1.1 CELL WALL.CELL WALL PROTEINS.AGPS.AGP | B39: -1.7685975 | C39: -2.1091502 | D39: -2.427318
A40: 35.1.5 NOT ASSIGNED.NO ONTOLOGY.PENTATRICOPEPTIDE (PPR) REPEAT-CONTAINING PROTEIN | B40: -2.1658123 | C40: -2.878375 | D40: -2.4671354

Sheet Sheet6
A1: BIN | B1: Column1 | C1: v1.0-l | D1: v1.0-h | E1: v1.2-h | F1: Column2
A2: 10.6.2 | B2: CELL WALL/DEGRADATION/MANNAN-XYLOSE-ARABINOSE-FUCOSE | C2: 0 | D2: 0 | E2: 1.7798741 | F2: CELL WALL
A3: 11.1.8 | B3: LIPID METABOLISM/FA SYNTHESIS AND FA ELONGATION/ACYL COA LIGASE | C3: 0 | D3: 1.6577212 | E3: 0 | F3: LIPID METABOLISM
A4: 11.9.2.1 | B4: LIPID METABOLISM/LIPID DEGRADATION/LIPASES/TRIACYLGLYCEROL LIPASE | C4: 0 | D4: 1.9041566 | E4: 1.6619874
A5: 11.9.3.2 | B5: LIPID METABOLISM/LIPID DEGRADATION/LYSOPHOSPHOLIPASES/CARBOXYLESTERASE | C5: 0 | D5: 1.9607472 | E5: 1.7419404
A6: 11.9.4.5 | B6: LIPID METABOLISM/LIPID DEGRADATION/BETA-OXIDATION/ACYL-COA THIOESTERASE | C6: 0 | D6: 1.7926122 | E6: 0
A7: 16.2 | B7: SECONDARY METABOLISM/PHENYLPROPANOIDS | C7: 0 | D7: 0 | E7: 1.7110898 | F7: SECONDARY METABOLISM
A8: 16.8.3 | B8: SECONDARY METABOLISM/FLAVONOIDS/DIHYDROFLAVONOLS | C8: 0 | D8: 1.6921691 | E8: 0
A9: 16.8.3.3 | B9: SECONDARY METABOLISM/FLAVONOIDS/DIHYDROFLAVONOLS/FLAVONOID 3-MONOOXYGENASE | C9: 0 | D9: 0 | E9: 1.8350034
A10: 16.8.4 | B10: SECONDARY METABOLISM/FLAVONOIDS/FLAVONOLS | C10: 0 | D10: 1.7016641 | E10: 0
A11: 17.1.2 | B11: HORMONE METABOLISM/ABSCISIC ACID/SIGNAL TRANSDUCTION | C11: 1.8800068 | D11: 2.1878896 | E11: 1.9336845 | F11: HORMONE METABOLIM
A12: 17.1.3 | B12: HORMONE METABOLISM/ABSCISIC ACID/INDUCED-REGULATED-RESPONSIVE-ACTIVATED | C12: 1.8437324 | D12: 1.9730338 | E12: 2.0659008
A13: 17.5.2 | B13: HORMONE METABOLISM/ETHYLENE/SIGNAL TRANSDUCTION | C13: 0 | D13: 0 | E13: 1.8551253
A14: 2.2.2.1.2 | B14: MAJOR CHO METABOLISM/DEGRADATION/STARCH/STARCH CLEAVAGE/BETA AMYLASE | C14: 1.9691802 | D14: 0 | E14: 0 | F14: MAJOR CHO METABOLISM
A15: 20.1 | B15: STRESS/BIOTIC | C15: 0 | D15: 1.979799 | E15: 2.0292907 | F15: STRESS
A16: 20.2 | B16: STRESS/ABIOTIC | C16: 0 | D16: 1.6410445 | E16: 0
A17: 20.2.2 | B17: STRESS/ABIOTIC/COLD | C17: 0 | D17: 1.6526372 | E17: 1.7346632
A18: 20.2.4 | B18: STRESS/ABIOTIC/TOUCH/WOUNDING | C18: 0 | D18: 1.9003338 | E18: 1.6725432
A19: 24 | B19: BIODEGRADATION OF XENOBIOTICS | C19: 0 | D19: 1.8502047 | E19: 0 | F19: BIODEGRADATION OF XENOBIOTICS
A20: 26.9 | B20: MISC/GLUTATHIONE S TRANSFERASES | C20: 0 | D20: 2.2536116 | E20: 1.9930892 | F20: MISC
A21: 26.10 | B21: MISC/CYTOCHROME P450 | C21: 2.0621443 | D21: 2.1146362 | E21: 1.9281881
A22: 26.12 | B22: MISC/PEROXIDASES | C22: 0 | D22: 0 | E22: 1.8991888
A23: 26.19 | B23: MISC/PLASTOCYANIN-LIKE | C23: 0 | D23: 0 | E23: 1.725434
A24: 27.3.3 | B24: RNA/REGULATION OF TRANSCRIPTION/AP2/EREBP, APETALA2/ETHYLENE-RESPONSIVE ELEMENT BINDING PROTEIN FAMILY | C24: 0 | D24: 0 | E24: 1.7488068 | F24: RNA
A25: 27.3.8 | B25: RNA/REGULATION OF TRANSCRIPTION/C2C2(ZN) DOF ZINC FINGER FAMILY | C25: 0 | D25: 0 | E25: 2.132952
A26: 27.3.22 | B26: RNA/REGULATION OF TRANSCRIPTION/HB,HOMEOBOX TRANSCRIPTION FACTOR FAMILY | C26: 0 | D26: 2.1126926 | E26: 2.0057077
A27: 27.3.24 | B27: RNA/REGULATION OF TRANSCRIPTION/MADS BOX TRANSCRIPTION FACTOR FAMILY | C27: 1.8603693 | D27: 0 | E27: 0
A28: 27.3.32 | B28: RNA/REGULATION OF TRANSCRIPTION/WRKY DOMAIN TRANSCRIPTION FACTOR FAMILY | C28: 0 | D28: 2.409604 | E28: 2.212452
A29: 27.3.35 | B29: RNA/REGULATION OF TRANSCRIPTION/BZIP TRANSCRIPTION FACTOR FAMILY | C29: 0 | D29: 0 | E29: 1.8303448
A30: 27.3.40 | B30: RNA/REGULATION OF TRANSCRIPTION/AUX/IAA FAMILY | C30: 2.0237858 | D30: 0 | E30: 0
A31: 27.3.71 | B31: RNA/REGULATION OF TRANSCRIPTION/SNF7 | C31: 0 | D31: 1.7228131 | E31: 1.7758546
A32: 29.3.4.3 | B32: PROTEIN/TARGETING/SECRETORY PATHWAY/VACUOLE | C32: 0 | D32: 1.8061992 | E32: 1.9007926 | F32: PROTEIN
A33: 29.3.4.99 | B33: PROTEIN/TARGETING/SECRETORY PATHWAY/UNSPECIFIED | C33: 0 | D33: 1.8398017 | E33: 0
A34: 29.4.1 | B34: PROTEIN/POSTRANSLATIONAL MODIFICATION/KINASE | C34: 0 | D34: 1.7149376 | E34: 0
A35: 29.4.1.57 | B35: PROTEIN/POSTRANSLATIONAL MODIFICATION/KINASE/RECEPTOR LIKE CYTOPLASMATIC KINASE VII | C35: 0 | D35: 1.8263915 | E35: 0
A36: 29.5.11.1 | B36: PROTEIN/DEGRADATION/UBIQUITIN/UBIQUITIN | C36: 0 | D36: 1.7962455 | E36: 1.6604366
A37: 29.5.11.20 | B37: PROTEIN/DEGRADATION/UBIQUITIN/PROTEASOM | C37: 0 | D37: 2.0206797 | E37: 0
A38: 29.5.11.3 | B38: PROTEIN/DEGRADATION/UBIQUITIN/E2 | C38: 0 | D38: 2.061539 | E38: 2.1349325
A39: 29.5.11.4.2 | B39: PROTEIN/DEGRADATION/UBIQUITIN/E3/RING | C39: 0 | D39: 0 | E39: 1.6156749
A40: 29.5.11.4.3.1 | B40: PROTEIN/DEGRADATION/UBIQUITIN/E3/SCF/SKP | C40: 0 | D40: 1.5950828 | E40: 0
A41: 29.5.11.4.3.2 | B41: PROTEIN/DEGRADATION/UBIQUITIN/E3/SCF/FBOX | C41: 0 | D41: 0 | E41: 1.6251658
A42: 29.5.2 | B42: PROTEIN/DEGRADATION/AUTOPHAGY | C42: 0 | D42: 1.7256074 | E42: 1.8232836
A43: 29.5.3 | B43: PROTEIN/DEGRADATION/CYSTEINE PROTEASE | C43: 1.8622098 | D43: 1.680345 | E43: 0
A44: 30.1 | B44: SIGNALLING/IN SUGAR AND NUTRIENT PHYSIOLOGY | C44: 0 | D44: 1.7488029 | E44: 0 | F44: SIGNALING
A45: 30.2.17 | B45: SIGNALLING/RECEPTOR KINASES/DUF 26 | C45: 0 | D45: 0 | E45: 1.7603866
A46: 30.2.19 | B46: SIGNALLING/RECEPTOR KINASES/LEGUME-LECTIN | C46: 0 | D46: 1.6061851 | E46: 1.8650775
A47: 30.2.20 | B47: SIGNALLING/RECEPTOR KINASES/WHEAT LRK10 LIKE | C47: 0 | D47: 1.8332494 | E47: 1.830707
A48: 30.11 | B48: SIGNALLING/LIGHT | C48: 1.8233774 | D48: 0 | E48: 0
A49: 34.13 | B49: TRANSPORT/PEPTIDES AND OLIGOPEPTIDES | C49: 0 | D49: 1.9570346 | E49: 1.9544774 | F49: TRANSPORT
A50: 34.19.1 | B50: TRANSPORT/MAJOR INTRINSIC PROTEINS/PIP | C50: 1.8324564 | D50: 0 | E50: 0
A51: 34.2 | B51: TRANSPORT/SUGARS | C51: 0 | D51: 1.6856345 | E51: 0
A52: 34.22 | B52: TRANSPORT/CYCLIC NUCLEOTIDE OR CALCIUM REGULATED CHANNELS | C52: 0 | D52: 1.6070596 | E52: 0
A53: 34.3 | B53: TRANSPORT/AMINO ACIDS | C53: 0 | D53: 1.7945993 | E53: 1.8843045
A54: 34.4 | B54: TRANSPORT/NITRATE | C54: 2.0067422 | D54: 1.7937611 | E54: 0
A55: 34.7 | B55: TRANSPORT/PHOSPHATE | C55: 0 | D55: 1.8090614 | E55: 1.6956209
A56: 35.1.3 | B56: NOT ASSIGNED/NO ONTOLOGY/ARMADILLO/BETA-CATENIN REPEAT FAMILY PROTEIN | C56: 0 | D56: 1.8937547 | E56: 0

Sheet Sheet8
A1: BIN | B1: Column1.2 | C1: v1.0-l | D1: v1.0-h | E1: v1.2-h | F1: Column1
A2: 1.1.1.1 | B2: PS.LIGHTREACTION.PHOTOSYSTEM II.LHC-II | C2: 0 | D2: -2.8507993 | E2: -2.8361762 | F2: PHOTOSYNTHESIS
A3: 1.1.1.2 | B3: PS.LIGHTREACTION.PHOTOSYSTEM II.PSII POLYPEPTIDE SUBUNITS | C3: 0 | D3: -3.0182064 | E3: -3.0314417
A4: 1.1.2.1 | B4: PS.LIGHTREACTION.PHOTOSYSTEM I.LHC-I | C4: 0 | D4: -2.6286025 | E4: -2.781654
A5: 1.1.2.2 | B5: PS.LIGHTREACTION.PHOTOSYSTEM I.PSI POLYPEPTIDE SUBUNITS | C5: 0 | D5: -2.887299 | E5: -2.9446847
A6: 1.3.13 | B6: PS.CALVIN CYCLE.RUBISCO INTERACTING | C6: 0 | D6: -2.107853 | E6: -2.141852
A7: 1.3.6 | B7: PS.CALVIN CYCLE.ALDOLASE | C7: 0 | D7: 0 | E7: -1.6244227
A8: 10.2 | B8: CELL WALL.CELLULOSE SYNTHESIS | C8: 0 | D8: 0 | E8: -2.1408293 | F8: CELL WALL
A9: 10.5.1.1 | B9: CELL WALL.CELL WALL PROTEINS.AGPS.AGP | C9: -1.7685975 | D9: -2.1091502 | E9: -2.427318
A10: 10.6.3 | B10: CELL WALL.DEGRADATION.PECTATE LYASES AND POLYGALACTURONASES | C10: 0 | D10: 0 | E10: -1.8121061
A11: 10.8.1 | B11: CELL WALL.PECTIN*ESTERASES.PME | C11: -1.7483578 | D11: 0 | E11: -1.6538737
A12: 11.3 | B12: LIPID METABOLISM.PHOSPHOLIPID SYNTHESIS | C12: 0 | D12: 0 | E12: -1.93939 | F12: LIPID METABOLISM
A13: 11.9.3.1 | B13: LIPID METABOLISM.LIPID DEGRADATION.LYSOPHOSPHOLIPASES.PHOSPHOLIPASE D | C13: 0 | D13: -1.8335947 | E13: 0
A14: 13.1.3.4 | B14: AMINO ACID METABOLISM.SYNTHESIS.ASPARTATE FAMILY.METHIONINE | C14: 0 | D14: 0 | E14: -1.8254398 | F14: AMINO ACID METABOLISM
A15: 26.21 | B15: MISC.PROTEASE INHIBITOR/SEED STORAGE/LIPID TRANSFER PROTEIN (LTP) FAMILY PROTEIN | C15: 0 | D15: -1.9183649 | E15: -1.8527651 | F15: MISC
A16: 26.28 | B16: MISC.GDSL-MOTIF LIPASE | C16: 0 | D16: -1.7767106 | E16: -1.7774082
A17: 26.3.2 | B17: MISC.GLUCO-, GALACTO- AND MANNOSIDASES.BETA-GALACTOSIDASE | C17: 0 | D17: -1.6574149 | E17: 0
A18: 26.4.1 | B18: MISC.BETA 1,3 GLUCAN HYDROLASES.GLUCAN ENDO-1,3-BETA-GLUCOSIDASE | C18: -1.7658294 | D18: 0 | E18: 0
A19: 27.1.2 | B19: RNA.PROCESSING.RNA HELICASE | C19: 0 | D19: -1.6274478 | E19: 0 | F19: RNA
A20: 27.3.26 | B20: RNA.REGULATION OF TRANSCRIPTION.MYB-RELATED TRANSCRIPTION FACTOR FAMILY | C20: 0 | D20: -1.8283106 | E20: 0
A21: 27.3.34 | B21: RNA.REGULATION OF TRANSCRIPTION.ORPHAN FAMILY | C21: 0 | D21: -1.8156065 | E21: -1.8383969
A22: 27.3.4 | B22: RNA.REGULATION OF TRANSCRIPTION.ARF, AUXIN RESPONSE FACTOR FAMILY | C22: 0 | D22: -1.6918719 | E22: -1.6255245
A23: 27.3.69 | B23: RNA.REGULATION OF TRANSCRIPTION.SET-DOMAIN TRANSCRIPTIONAL REGULATOR FAMILY | C23: 0 | D23: -1.7134569 | E23: 0
A24: 28.1 | B24: DNA.SYNTHESIS/CHROMATIN STRUCTURE | C24: 0 | D24: -1.8295889 | E24: 0 | F24: DNA
A25: 28.1.3.2.1 | B25: DNA.SYNTHESIS/CHROMATIN STRUCTURE.HISTONE.CORE.H2A | C25: -2.1773944 | D25: -1.8388014 | E25: -1.6740687
A26: 28.1.3.2.2 | B26: DNA.SYNTHESIS/CHROMATIN STRUCTURE.HISTONE.CORE.H2B | C26: -2.0319912 | D26: -1.7370316 | E26: 0
A27: 28.1.3.2.3 | B27: DNA.SYNTHESIS/CHROMATIN STRUCTURE.HISTONE.CORE.H3 | C27: -2.2654805 | D27: -1.866934 | E27: 0
A28: 28.1.3.2.4 | B28: DNA.SYNTHESIS/CHROMATIN STRUCTURE.HISTONE.CORE.H4 | C28: -2.3924305 | D28: -2.1392972 | E28: -1.7586148
A29: 29.2.2.3.1 | B29: PROTEIN.SYNTHESIS.RIBOSOME BIOGENESIS.PRE-RRNA PROCESSING AND MODIFICATIONS.SNORNPS | C29: -1.9614593 | D29: -1.8455456 | E29: -1.7948176 | F29: PROTEIN
A30: 29.2.2.3.3 | B30: PROTEIN.SYNTHESIS.RIBOSOME BIOGENESIS.PRE-RRNA PROCESSING AND MODIFICATIONS.METHYLOTRANSFERASES | C30: 0 | D30: -1.6501136 | E30: 0
A31: 29.2.4 | B31: PROTEIN.SYNTHESIS.ELONGATION | C31: 0 | D31: -1.8971437 | E31: -1.8526374
A32: 29.2.5 | B32: PROTEIN.SYNTHESIS.RELEASE | C32: 0 | D32: -1.6218861 | E32: 0
A33: 29.3.3 | B33: PROTEIN.TARGETING.CHLOROPLAST | C33: 0 | D33: -2.1318588 | E33: -2.0775955
A34: 29.6 | B34: PROTEIN.FOLDING | C34: 0 | D34: -1.8820784 | E34: -1.7265149
A35: 29.8 | B35: PROTEIN.ASSEMBLY AND COFACTOR LIGATION | C35: 0 | D35: -1.9078412 | E35: -1.8042482
A36: 30.2.22 | B36: SIGNALLING.RECEPTOR KINASES.PROLINE EXTENSIN LIKE | C36: -1.9127483 | D36: 0 | E36: 0 | F36: SIGNALLING
A37: 30.2.3 | B37: SIGNALLING.RECEPTOR KINASES.LEUCINE RICH REPEAT III | C37: 0 | D37: -2.4678848 | E37: -2.1773834
A38: 31.3 | B38: CELL.CYCLE | C38: 0 | D38: -1.6888845 | E38: 0 | F38: CELL CYCLE
A39: 34.19.2 | B39: TRANSPORT.MAJOR INTRINSIC PROTEINS.TIP | C39: 0 | D39: -1.9814844 | E39: 0 | F39: TRANSPORT
A40: 34.21 | B40: TRANSPORT.CALCIUM | C40: -1.9638817 | D40: 0 | E40: 0
A41: 35.1.5 | B41: NOT ASSIGNED.NO ONTOLOGY.PENTATRICOPEPTIDE (PPR) REPEAT-CONTAINING PROTEIN | C41: -2.1658123 | D41: -2.878375 | E41: -2.4671354
